Workbook

Sheet Calculation Sheet
B1: TPS25961 Design Calculation Tool
C3: Constants Cells | S3: fixed 5.9V
C4: Input/SelectCells | S4: Programmable
C5: Calculation Cells
C6: Calculated, but can be over-ridden by user
C7: Error Cells, Must be Fixed
B9: Parameter | C9: Description | D9: Value | E9: Units | F9: Tolerance | G9: Recommended Value
B10: VIN (max) | C10: Maximum Operating input voltage (magnitude) | D10: 12 | E10: V
B11: OVLO Set point | C11: For fixed OVLO of 5.9V connect OVLO pin to GND. For adjutable overoltage lockout threshold enter desired threshold in cell on right. | D11: 19 | E11: V | F11: 0.03
B12: UVLO Set Point | C12: Desired Undervoltage Threshold (VIN Rising) | D12: 10.8 | E12: V | F12: 0.03
B13: VUVP | C13: Internal Undervoltage Protection Threshold (VIN Rising) | D13: 2.54 | E13: V | F13: 0.03
B14: Cout | C14: Load Capacitance | D14: 100 | E14: uF | F14: 0.1
C15: Is there downstream load present other than load cap at startup? | D15: NO
B16: VONTH (CR) (V) | C16: constant resistance load turn on threshold voltage | D16: 0 | E16: V
B17: RLOAD (STARTUP) (Ω) | C17: CR load at startup | D17: 6 | E17: Ohm
B18: VONTH (CC) (V) | C18: constant current load turn on threshold voltage | D18: 3 | E18: V
B19: ILOAD (STARTUP) (A) | C19: CC load at startup | D19: 0 | E19: A
B20: VONTH (CP) (V) | C20: constant power load turn on threshold voltage | D20: 3 | E20: V
B21: PLOAD (STARTUP) (W) | C21: CP load at startup | D21: 0 | E21: W
B22: Istartup(A) | C22: It is sum of max downstream load current and load cap charge current during startup . If it is greater than current limit then device will go into current limit and have current limited startup. It is recommended to have non current limit startup when load other than cap is present. | D22: =(Vcc_max/TSD!AE5+TSD!AE7+TSD!AE9/D20+Icharge/1000) -> 0.500012 | E22: A
B23: Imax | C23: Maximum continuous load current (magnitude) | D23: 1 | E23: A
B24: Ilimit | C24: Current Limit, 10.5% higher than maximum continuous load current | D24: =IF(1.105*Imax<0.1, 0.1, IF(1.105*Imax>2, 2,1.105*Imax )) -> 1.105 | E24: A
B25: TA, MAX | C25: Maximum Operating Ambient temperature | D25: 25 | E25: °C
B28: UVLO, OVLO set point calculations | L28: R2+R3
B29: UVLO Set Point | C29: Desired Undervoltage Threshold (VIN Rising) | D29: =D12 -> 10.8 | L29: =(OVref*D31)/(D29-OVref) -> 58.75
B30: OVLO Set Point | C30: Desired Over Voltage Lockout Set Point | D30: =D11 -> 19 | J30: =D38 -> 9.78907563 | K30: Power Fail (VIN Falling) | L30: R2
B31: R1: Pullup at EN/OVLO Pin | D31: 470 | E31: kOhm | F31: 0.01 | J31: =D37 -> 10.6789916 | K31: Release UVLO (VIN Rising) | L31: =IF(D32>=10000,D32/100,IF(D32>=1000,D32/10,IF(D32>=100,D32,IF(D32>=10,D32*10,D32*100)))) -> 253.5526316
B32: R2_cal | C32: Calculated value of Resistor at EN/OVLO pin | D32: =L29-D33 -> 25.35526316 | E32: kOhm | J32: =D40 -> 17.13088235 | K32: Release OVLO (VIN Falling) | L32: =INDEX('Res EIA Tables'!E$5:E$197,2+MATCH(L31,'Res EIA Tables'!E$5:E$197)) -> 255
B33: R3_cal | C33: Calculated value of Resistor at EN/OVLO pin | D33: =(D31+L29)*OVref/D30 -> 33.39473684 | E33: kOhm | J33: =D39 -> 18.68823529 | K33: OV Cutoff (VIN Rising) | L33: R3
B34: SELECT THE VALUE OF RESISTORS AS CLOSEST AVAILABLE VALUE OF R2 & R3 | L34: =IF(D33>=10000,D33/100,IF(D33>=1000,D33/10,IF(D33>=100,D33,IF(D33>=10,D33*10,D33*100)))) -> 333.9473684 | S34: R2+R3
B35: R2 | C35: Select the closest possible value as R2_cal | D35: =G35 -> 25.5 | E35: kOhm | F35: 0.01 | G35: =L32*D32/L31 -> 25.5 | L35: =INDEX('Res EIA Tables'!E$5:E$197,2+MATCH(L34,'Res EIA Tables'!E$5:E$197)) -> 340 | S35: =(OVref*K37)/(K35-OVref) -> 0
B36: R3 | C36: Select the closest possible value as R3_cal | D36: =G36 -> 34 | E36: kOhm | F36: 0.01 | G36: =L35*D33/L34 -> 34 | Q36: =K44 -> 0 | R36: Power Fail (VIN Falling) | S36: R2
B37: UV_final_rising | C37: Undervoltage Threshold (VIN Rising) | D37: =OVref*(D31+D35+D36)/(D35+D36) -> 10.6789916 | E37: V | F37: =SQRT(F88^2+F31^2+F35^2+F36^2) -> 0.03464101615 | L37: =IF(D45>=100,D45,IF(D45>=10,D45*10,D45*100)) -> 0 | Q37: =K43 -> 0 | R37: Release UVLO (VIN Rising) | S37: =IF(K38>=10000,K38/100,IF(K38>=1000,K38/10,IF(K38>=100,K38,IF(K38>=10,K38*10,K38*100)))) -> 0
B38: UV_final_falling | C38: Undervoltage Threshold (VIN Falling) | D38: =UVref*(D31+D35+D36)/(D35+D36) -> 9.78907563 | E38: V | F38: =SQRT(F87^2+F31^2+F35^2+F36^2) -> 0.0653375849 | L38: =IF(L37>1000,INDEX('Res EIA Tables'!E$5:E$197,MATCH(L37/10,'Res EIA Tables'!E$5:E$197))*10,INDEX('Res EIA Tables'!E$5:E$197,MATCH(L37,'Res EIA Tables'!E$5:E$197))) ->  | Q38: =K46 -> 0 | R38: Release OVLO (VIN Falling) | S38: =INDEX('Res EIA Tables'!L$5:L$197,2+MATCH(S37,'Res EIA Tables'!L$5:L$197)) -> 
B39: OV_final_rising | C39: Overvoltage Threshold (VIN Rising) | D39: =OVref*(D31+D35+D36)/(D36) -> 18.68823529 | E39: V | F39: =SQRT(F88^2+F31^2+F35^2+F36^2) -> 0.03464101615 | Q39: =K45 -> 0 | R39: OV Cutoff (VIN Rising) | S39: R3
B40: OV_final_falling | C40: Overvoltage Threshold (VIN Falling) | D40: =UVref*(D31+D35+D36)/(D36) -> 17.13088235 | E40: V | F40: =SQRT(F87^2+F31^2+F35^2+F36^2) -> 0.0653375849 | L40: =IF(#REF!>=10000,#REF!/100,IF(#REF!>=1000,#REF!/10,IF(#REF!>=100,#REF!,IF(#REF!>=10,#REF!*10,#REF!*100)))) ->  | S40: =IF(K39>=10000,K39/100,IF(K39>=1000,K39/10,IF(K39>=100,K39,IF(K39>=10,K39*10,K39*100)))) -> 0
B41: I_R123 | C41: Current in R1, R2 and R3 Branch | D41: =Vcc_max*1000/(D31+D35+D36) -> 22.66288952 | E41: uA | L41: =INDEX('Res EIA Tables'!E$5:E$197,2+MATCH(L40,'Res EIA Tables'!E$5:E$197)) ->  | S41: =INDEX('Res EIA Tables'!L$5:L$197,2+MATCH(S40,'Res EIA Tables'!L$5:L$197)) -> 
L42: =IF(#REF!>=10000,#REF!/100,IF(#REF!>=1000,#REF!/10,IF(#REF!>=100,#REF!,IF(#REF!>=10,#REF!*10,#REF!*100)))) -> 
L43: =INDEX('Res EIA Tables'!E$5:E$197,MATCH(L42,'Res EIA Tables'!E$5:E$197)) ->  | S43: =IF(#REF!>=100,#REF!,IF(#REF!>=10,#REF!*10,#REF!*100)) -> 
L44: =IF(D49>=10000,D49/100,IF(D49>=1000,D49/10,IF(D49>=100,D49,IF(D49>=10,D49*10,D49*100)))) -> 452.4886878 | S44: =IF(S43>1000,INDEX('Res EIA Tables'!L$5:L$197,MATCH(S43/10,'Res EIA Tables'!L$5:L$197))*10,INDEX('Res EIA Tables'!L$5:L$197,MATCH(S43,'Res EIA Tables'!L$5:L$197))) -> 
L45: =INDEX('Res EIA Tables'!E$5:E$197,2+MATCH(L44,'Res EIA Tables'!E$5:E$197)) -> 453
L46: =INDEX('Res EIA Tables'!E$5:E$197,MATCH(L44,'Res EIA Tables'!E$5:E$197)) -> 442 | S46: =IF(#REF!>=10000,#REF!/100,IF(#REF!>=1000,#REF!/10,IF(#REF!>=100,#REF!,IF(#REF!>=10,#REF!*10,#REF!*100)))) -> 
S47: =INDEX('Res EIA Tables'!L$5:L$197,2+MATCH(S46,'Res EIA Tables'!L$5:L$197)) -> 
B48: Calculations for Ilimit (resistor on ILM Pin) | K48: =Icharge*(10^-3) -> 0.5 | L48: Inrush Charging Current
B49: RILM_Cal | C49: Calculated current limit resistor | D49: =IF(AND(Ilimit<0.2,Ilimit>0.1),1/((Ilimit/(50000))-0.000002)/1000,IF(Ilimit>=0.2,(1*50000/Ilimit/1000),"OPEN")) -> 45.24886878 | E49: KOhm | K49: =Ilimit_final -> 1.131221719 | L49: Overload Curr Limit
B50: SELECT A ILIMIT RESISTOR WITH THE CLOSEST AVAILABLE VALUE OF Rilm_Cal
B51: RILM | C51: Select the closest available value of RILM_cal. Please ensure that final RILM after considering tolerance of RILM does not lie in between 58.8K - 66.7K, 111K - 142K and 250K-500K. End values are fine to use. | D51: =IF(D49="OPEN","OPEN",IF(D49<=250,G52,G51)) -> 44.2 | E51: KOhm | F51: 0.01 | G51: =L45/L44*D49 -> 45.3
C52: Is the selected resistor value as per datasheet recommendation (after considering RILM tolerance it is not inside undefined range)? | D52: =IF(D51="OPEN","YES",IF(OR(OR((AND((1+F51)*D51>58.8,(1+F51)*D51<66.7)),(AND((1-F51)*D51>58.8,(1-F51)*D51<66.7))),OR((AND((1+F51)*D51>111,(1+F51)*D51<142)),(AND((1-F51)*D51>111,(1-F51)*D51<142))),OR((AND((1+F51)*D51>250,(1+F51)*D51<500)),(AND((1-F51)*D51>250,(1-F51)*D51<500)))),"NO","YES")) -> YES | G52: =L46/L44*D49 -> 44.2
B53: Ilimit_final | C53: Final current Limit Set Point | D53: =IF(RILM="OPEN",0.1,IF(RILM<=250,(1/RILM)*50,IF(RILM>=500,((1/RILM/1000)+0.000002)*50000,"Invalid RILM selection"))) -> 1.131221719 | E53: A | F53: =SQRT(0.25^2+F51^2) -> 0.2501999201
B55: Calculations for SoftStart control (external cap on dVdt pin)
B56: Parameter | C56: Description | D56: Value | E56: Units | F56: Tolerance
B57: SR | C57: Fixed slew rate | D57: =(3.93+0.17*Vcc_max-0.0055*Vcc_max*Vcc_max) -> 5.178 | E57: V/ms
B58: Icharge | C58: Charging Current through load cap as per slew rate | D58: =Cout*5 -> 500 | E58: mA | G58: =IF(#REF!>1,INDEX('Cap Tables'!B4:B75,1+MATCH(#REF!,'Cap Tables'!B4:B75)),(INDEX('Cap Tables'!A4:A75,1+MATCH(#REF!*10,'Cap Tables'!A4:A75))/10)) -> 
B59: Does Device Enter Current Limit during start-up? | D59: =IF(D22 >= Ilimit_final,"YES","NO") -> NO | G59: =Cout*0.001*Vcc_max/Ilimit_final -> 1.0608
B60: Tchg_dvdt | C60: charge time set | D60: =IF(D59="YES", G59, Vcc_max/D57) -> 2.317497103 | E60: ms
C62: Will the System have glitch-free startup? | D62: =TSD!C7 -> YES
D63: =IF(TSD!E6>=146.1,CONCATENATE("Device is experiencing high power dissipation during startup."," Here are a few options to try out to achieve successful startup: 1. Decrease startup load current by adjusting load cap or other downstream load like CR,CC or CP load 2. Decrease ambient temperature")," ") -> 
B69: Steady state Voltage drop & Power dissipation
B70: Parameter | C70: Description | D70: Value | E70: Units | F70: Tolerance
B71: Vdrop | C71: Maximum voltage drop across device @ 25 degC | D71: =Imax*Rdson_25deg -> 100 | E71: mV
B72: Pdiss_Imax | C72: Steady state power dissipation with Max current @ 25degC | D72: =Imax^2*Rdson_25deg -> 100 | E72: mW
B75: Parameters internal to Device
B76: Internal FET Parameters
B77: Parameter | C77: Description | D77: Value | E77: Units | F77: Tolerance
B78: VIN(Max) | C78: Maximum input voltage | D78: 19 | E78: V
B79: ID(max) | C79: FET drain-source current rating (maximum) | D79: 2 | E79: A
B80: Rds(on)(typ) | C80: FET Rds(on) for –40°C ≤ TJ ≤ 125°C | D80: 100 | E80: mOhm
B82: Thermal Parameters
B83: Tj(max) | C83: Device maximum junction temperature | D83: 150 | E83: C
B84: RJA | C84: Junction to ambient thermal resistance | D84: 76.8 | E84: C/W
B86: Internal References
B87: UVref | C87: Internal Undervoltage reference (Falling) | D87: 1.1 | E87: V | F87: 0.063
B88: OVref | C88: Internal Overvoltage reference (Rising) | D88: 1.2 | E88: V | F88: 0.03

Sheet TSD (hidden)
B2: VIN (V) | C2: =Vcc_max -> 12
E4: VDS | F4: 5.469 | AD4: CLOAD (µF) | AE4: =Cout -> 100 | AG4: ='Calculation Sheet'!D15 -> NO
E5: MAX FET temp | F5: MAX TREL | AD5: RLOAD (STARTUP) (Ω) | AE5: =IF(AG4="NO",1000000,Rlstart) -> 1000000 | AJ5: 0.1-0.2 | AN5: 0.2-0.4 | AR5: 0.4-0.8 | AV5: 0.8-2
B6: MAX AMBIENT TEMPERATURE (⁰C) | C6: ='Calculation Sheet'!D25 -> 25 | E6: =MAX(Q27:Q2027) -> 51.04805569 | F6: =MAX(AG27:AG2027) -> 24.63065842 | AD6: VONTH (CR) (V) | AE6: ='Calculation Sheet'!D16 -> 0 | AG6: ='Calculation Sheet'!D59 -> NO | AI6: Max Die Temp | AM6: Max Die Temp | AQ6: Max Die Temp | AU6: Max Die Temp
B7: successful startup | C7: =IF(E6<146.01,"YES",IF(E6<160,"MARGINAL",IF(E6>=160,"NO","Error"))) -> YES | AD7: ILOAD (STARTUP) (A) | AE7: =IF(AG4="NO",0,'Calculation Sheet'!D19) -> 0 | AI7: Self heating | AM7: Self heating | AQ7: Self heating | AU7: Self heating
AD8: VONTH (CC) (V) | AE8: ='Calculation Sheet'!D18 -> 3 | AI8: τ (s) | AJ8: R (Ω) | AK8: C (F) | AM8: τ (s) | AN8: R (Ω) | AO8: C (F) | AQ8: τ (s) | AR8: R (Ω) | AS8: C (F) | AU8: τ (s) | AV8: R (Ω) | AW8: C (F)
AD9: PLOAD (STARTUP) (W) | AE9: =IF(AG4="NO",0,'Calculation Sheet'!D21) -> 0 | AG9: =Ilimit_final -> 1.131221719 | AI9: 3.032352908e-05 | AJ9: 3.573429682 | AK9: =AI9/AJ9 -> 8.485833435e-06 | AM9: 2.037113351 | AN9: 6.295262126 | AO9: =AM9/AN9 -> 0.3235946828 | AQ9: 2.018546588 | AR9: 7.806166075 | AS9: =AQ9/AR9 -> 0.2585836079 | AU9: 9.227638326e-06 | AV9: 1.388652717 | AW9: =AU9/AV9 -> 6.645029543e-06
AD10: VONTH (CP) (V) | AE10: ='Calculation Sheet'!D20 -> 3 | AI10: 0.003163403518 | AJ10: 8.93114703 | AK10: 0.0003541990191 | AM10: 2.73481043e-06 | AN10: 1.869600498 | AO10: 1.462777974e-06 | AQ10: 3.968284841e-07 | AR10: 0.1812496072 | AS10: 2.189403278e-06 | AU10: 0.0008452030955 | AV10: 3.06887722 | AW10: 0.0002754111797
AD11: TSTARTUP (ms) | AE11: =Tchg_dvdt -> 2.317497103 | AI11: 0.02122884538 | AJ11: 8.549127812 | AK11: 0.0024831592 | AM11: 5.6055461e-05 | AN11: 2.705535088 | AO11: 2.071880762e-05 | AQ11: 8.287048505e-06 | AR11: 2.161219081 | AS11: 3.834432417e-06 | AU11: 0.01368294176 | AV11: 5.20160609 | AW11: 0.002630522483
B12: CTS sensor temp | F12: TS sensor temp | AD12: SLEW RATE (mV/µs) | AE12: =Vcc_max/Tchg_dvdt -> 5.178 | AI12: 7.717160995 | AJ12: 9.248418819 | AK12: 0.8344303114 | AM12: 0.0003941384988 | AN12: 3.106811157 | AO12: 0.0001268627151 | AQ12: 0.00011592992 | AR12: 2.763553115 | AS12: 4.194958997e-05 | AU12: 12.72352512 | AV12: 7.329969069 | AW12: 1.735822484
B13: τ (s) | C13: R (Ω) | D13: C (F) | F13: τ (s) | G13: R (Ω) | H13: C (F) | AD13: IINRUSH (A) | AE13: =IF('Calculation Sheet'!D59="YES",Ilimit_final,Icharge/1000) -> 0.5 | AI13: 3.577786719e-07 | AJ13: 0.5368698172 | AK13: 6.664160668e-07 | AM13: 0.002862206237 | AN13: 7.016665733 | AO13: 0.0004079154325 | AQ13: 0.001393318282 | AR13: 4.729430556 | AS13: 0.0002946059288 | AU13: 0.631700186 | AV13: 9.698065545 | AW13: 0.06513672063
B14: 0.00455355421 | C14: 0.4817344773 | D14: =B14/C14 -> 0.009452415022 | F14: =G14*H14 -> 9.227638326e-06 | G14: =IF(AND(Ilimit_final>=0.1,Ilimit_final<0.2),AJ9,IF(AND(Ilimit_final>=0.2,Ilimit_final<0.4),AN9,IF(AND(Ilimit_final>=0.4,Ilimit_final<0.8),AR9,IF(AND(Ilimit_final>=0.8,Ilimit_final<=2),AV9,AV9)))) -> 1.388652717 | H14: =IF(AND(Ilimit_final>=0.1,Ilimit_final<0.2),AK9,IF(AND(Ilimit_final>=0.2,Ilimit_final<0.4),AO9,IF(AND(Ilimit_final>=0.4,Ilimit_final<0.8),AS9,IF(AND(Ilimit_final>=0.8,Ilimit_final<=2),AW9,AW9)))) -> 6.645029543e-06 | AI14: 2.848615428e-06 | AJ14: 1.670551135 | AK14: 1.705194992e-06 | AM14: 0.01164198586 | AN14: 6.458091059 | AO14: 0.001802697695 | AQ14: 0.00651515182 | AR14: 8.274978224 | AS14: 0.000787331597 | AU14: 0.003830356621 | AV14: 7.013741831 | AW14: 0.0005461217013
B15: 0.004553589382 | C15: 0.2582470642 | D15: 0.01763268596 | F15: =G15*H15 -> 0.0008452030955 | G15: 3.06887722 | H15: 0.0002754111797 | AI15: 0.0002601343468 | AJ15: 3.922989325 | AK15: 6.631023571e-05 | AM15: 0.05591635853 | AN15: 9.620586129 | AO15: 0.005812157158 | AQ15: 0.04141964906 | AR15: 9.44047236 | AS15: 0.004387455149 | AU15: 0.0001045743434 | AV15: 2.04189338 | AW15: 5.121439955e-05
B16: 0.004493981307 | C16: 0.007691155651 | D16: 0.5843050786 | F16: 0.01368294176 | G16: 5.20160609 | H16: 0.002630522483 | AI16: 0.1015808401 | AJ16: 10.80119772 | AK16: 0.009404590375 | AM16: 0.2283147799 | AN16: 16.74496044 | AO16: 0.01363483543 | AQ16: 0.1892806915 | AR16: 15.80082193 | AS16: 0.01197916743 | AU16: 0.05311212939 | AV16: 8.669187058 | AW16: 0.006126540936
B17: 0.03 | C17: 2.937147394 | D17: 0.01021399201 | F17: 12.72352512 | G17: 7.329969069 | H17: 1.735822484 | AI17: 0.3110622375 | AJ17: 15.84199194 | AK17: 0.01963529831 | AM17: 0.7080961948 | AN17: 7.781107956 | AO17: 0.0910019754 | AQ17: 0.5552707372 | AR17: 9.693288296 | AS17: 0.05728404234 | AU17: 0.205865801 | AV17: 15.67892599 | AW17: 0.01313009584
B18: 0.03 | C18: 2.465474457 | D18: 0.01216804332 | F18: 0.631700186 | G18: 9.698065545 | H18: 0.06513672063 | AI18: 1.410058399 | AJ18: 10.08716186 | AK18: 0.1397874266 | AM18: 5.994907728 | AN18: 6.103586611 | AO18: 0.9821942589 | AQ18: 7.152470301 | AR18: 6.267505447 | AS18: 1.141198897 | AU18: 2.663256594 | AV18: 8.835423561 | AW18: 0.3014294194
B19: 0.03 | C19: 1.814822106 | D19: 0.01653054583 | F19: 0.003830356621 | G19: 7.013741831 | H19: 0.0005461217013 | AI19: 47.59867833 | AJ19: 5.892845399 | AK19: 8.077367571 | AM19: 20.94269978 | AN19: 5.546110069 | AO19: 3.77610605 | AQ19: 23.85263667 | AR19: 4.854780305 | AS19: 4.913226795 | AU19: 79.63588411 | AV19: 11.55780279 | AW19: 6.890226938
B20: 0.03 | C20: 1.393333328 | D20: 0.02153110057 | F20: 0.0001045743434 | G20: 2.04189338 | H20: 5.121439955e-05 | AI20: 112.2048722 | AJ20: 19.57418016 | AK20: 5.732289745 | AM20: 105.2252667 | AN20: 22.30157114 | AO20: 4.718289398 | AQ20: 105.8098008 | AR20: 21.98387845 | AS20: 4.813063401 | AU20: 124.6646249 | AV20: 11.83346445 | AW20: 10.53492199
F21: 0.05311212939 | G21: 8.669187058 | H21: 0.006126540936
F22: 0.205865801 | G22: 15.67892599 | H22: 0.01313009584
F23: 2.663256594 | G23: 8.835423561 | H23: 0.3014294194
F24: 79.63588411 | G24: 11.55780279 | H24: 6.890226938
F25: 124.6646249 | G25: 11.83346445 | H25: 10.53492199
A26: SERIAL NO. | B26: TIME (ms) | C26: VOUT (V) | D26: P_INRUSH (W) | E26: HFET τ1 | F26: HFET τ2 | G26: HFET τ3 | H26: HFET τ4 | I26: HFET τ5 | J26: HFET τ6 | K26: HFET τ7 | L26: HFET τ8 | M26: HFET τ9 | N26: HFET τ10 | O26: HFET τ11 | P26: HFET τ12 | Q26: HFET TEMPERATURE (⁰C) | R26: CONTROLLER τ1 | S26: CONTROLLER τ2 | T26: CONTROLLER τ3 | U26: CONTROLLER τ4 | V26: CONTROLLER τ5 | W26: CONTROLLER τ6 | X26: CONTROLLER τ7 | AA26: CONTROLLER TEMPERATURE (⁰C) | AD26: ICR | AE26: ICC | AF26: ICP | AG26: FET-cont temp
A27: 0 | B27: =($AE$11/2000)*(A27) -> 0 | C27: =$AE$13*B27*10^-3/($AE$4*10^-6) -> 0 | D27: =IF('Calculation Sheet'!$D$59="YES",(Vcc_max-C27)*ILIM_FINAL_TOL,(Vcc_max-C27)*($AE$13+IF(C27>=$AE$8,$AE$7,0)+(IF(C27>=$AE$6,C27,0)/$AE$5)+IF(C27>$AE$10,($AE$9/C27),0))) -> 6 | E27: 0 | F27: 0 | G27: 0 | H27: 0 | I27: 0 | J27: 0 | K27: 0 | L27: 0 | M27: 0 | N27: 0 | O27: 0 | P27: 0 | Q27: =$C$6 -> 25 | R27: 0 | S27: 0 | T27: 0 | U27: 0 | V27: 0 | W27: 0 | X27: 0 | AA27: =$C$6 -> 25 | AD27: =IF(C27>=$AE$6,C27,0)/$AE$5 -> 0 | AE27: =IF(C27>=$AE$8,$AE$7,0) -> 0 | AF27: =IF(C27>$AE$10,($AE$9/C27),0) -> 0 | AG27: =(Q27-AA27)*IF((Vcc_max-C27)>$F$4,1,0) -> 0
A28: 1 | B28: 0.001158748552 | C28: 0.005793742758 | D28: =IF('Calculation Sheet'!$D$59="YES",(Vcc_max-C28)*ILIM_FINAL_TOL,(Vcc_max-C28)*($AE$13+IF(C28>=$AE$8,$AE$7,0)+(IF(C28>=$AE$6,C28,0)/$AE$5)+IF(C28>$AE$10,($AE$9/C28),0))) -> 5.997103198 | E28: =(D27+((((EXP(-(B28-B27)*10^-3/$F$14)))*(E27-D27)))) -> 0.7080553665 | F28: =(D27+((((EXP(-(B28-B27)*10^-3/$F$15)))*(F27-D27)))) -> 0.008220187187 | G28: =(D27+((((EXP(-(B28-B27)*10^-3/$F$16)))*(G27-D27)))) -> 0.0005080922691 | H28: =(D27+((((EXP(-(B28-B27)*10^-3/$F$17)))*(H27-D27)))) -> 5.464280477e-07 | I28: =(D27+((((EXP(-(B28-B27)*10^-3/$F$18)))*(I27-D27)))) -> 1.100598842e-05 | J28: =(D27+((((EXP(-(B28-B27)*10^-3/$F$19)))*(JX27-D27)))) -> 0.001814828351 | K28: =(D27+((((EXP(-(B28-B27)*10^-3/$F$20)))*(K27-D27)))) -> 0.06611673576 | L28: =(D27+((((EXP(-(B28-B27)*10^-3/$F$21)))*(L27-D27)))) -> 0.0001309007104 | M28: =(D27+((((EXP(-(B28-B27)*10^-3/$F$22)))*(M27-D27)))) -> 3.377186357e-05 | N28: =(D27+((((EXP(-(B28-B27)*10^-3/$F$23)))*(N27-D27)))) -> 2.61052195e-06 | O28: =(D27+((((EXP(-(B28-B27)*10^-3/$F$24)))*(O27-D27)))) -> 8.730349865e-08 | P28: =(D27+((((EXP(-(B28-B27)*10^-3/$F$25)))*(P27-D27)))) -> 5.576956053e-08 | Q28: =$C$6+(E28*$G$14)+(F28*$G$15)+(G28*$G$16)+(H28*$G$17)+(I28*$G$18)+(J28*$G$19)+(K28*$G$20)+(L28*$G$21)+(M28*$G$22) -> 26.16061976 | R28: =(D27+((((EXP(-(B28-B27)*10^-3/$B$14)))*(R27-D27)))) -> 0.001526633144 | S28: =(D27+((((EXP(-(B28-B27)*10^-3/$B$15)))*(S27-D27)))) -> 0.001526621354 | T28: =(D27+((((EXP(-(B28-B27)*10^-3/$B$16)))*(T27-D27)))) -> 0.001546867817 | U28: =(D27+((((EXP(-(B28-B27)*10^-3/$B$17)))*(U27-D27)))) -> 0.0002317452347 | V28: =(D27+((((EXP(-(B28-B27)*10^-3/$B$18)))*(V27-D27)))) -> 0.0002317452347 | W28: =(D27+((((EXP(-(B28-B27)*10^-3/$B$19)))*(W27-D27)))) -> 0.0002317452347 | X28: =(D27+((((EXP(-(B28-B27)*10^-3/$B$20)))*(X27-D27)))) -> 0.0002317452347 | AA28: =$C$6+(R28*$C$14)+(S28*$C$15)+(T28*$C$16)+(U28*$C$17)+(V28*$C$18)+(W28*$C$19)+(X28*$C$20) -> 25.00313708 | AD28: 5.793742758e-09 | AE28: 0 | AF28: 0 | AG28: 1.157482682
A29: 2 | B29: 0.002317497103 | C29: 0.01158748552 | D29: =IF('Calculation Sheet'!$D$59="YES",(Vcc_max-C29)*ILIM_FINAL_TOL,(Vcc_max-C29)*($AE$13+IF(C29>=$AE$8,$AE$7,0)+(IF(C29>=$AE$6,C29,0)/$AE$5)+IF(C29>$AE$10,($AE$9/C29),0))) -> 5.994206396 | E29: 1.332211817 | F29: 0.01642514375 | G29: 0.001015896205 | H29: 1.09259223e-06 | I29: 2.200664296e-05 | J29: 0.001813952152 | K29: 0.1314729799 | L29: 0.0002617353661 | M29: 6.752723198e-05 | N29: =(D28+((((EXP(-(B29-B28)*10^-3/$F$23)))*(N28-D28)))) -> 5.219782403e-06 | O29: =(D28+((((EXP(-(B29-B28)*10^-3/$F$24)))*(O28-D28)))) -> 1.745648452e-07 | P29: =(D28+((((EXP(-(B29-B28)*10^-3/$F$25)))*(P28-D28)))) -> 1.11512195e-07 | Q29: =$C$6+(E29*$G$14)+(F29*$G$15)+(G29*$G$16)+(H29*$G$17)+(I29*$G$18)+(J29*$G$19)+(K29*$G$20)+(L29*$G$21)+(M29*$G$22) -> 27.19039622 | R29: 0.003052140794 | S29: 0.003052117225 | T29: 0.003092590006 | U29: 0.0004633696318 | V29: 0.0004633696318 | W29: =(D28+((((EXP(-(B29-B28)*10^-3/$B$19)))*(W28-D28)))) -> 0.0004633696318 | X29: =(D28+((((EXP(-(B29-B28)*10^-3/$B$20)))*(X28-D28)))) -> 0.0004633696318 | AA29: =$C$6+(R29*$C$14)+(S29*$C$15)+(T29*$C$16)+(U29*$C$17)+(V29*$C$18)+(W29*$C$19)+(X29*$C$20) -> 25.00627228 | AD29: 1.158748552e-08 | AE29: 0 | AF29: 0 | AG29: 2.184123937
A30: 3 | B30: 0.003476245655 | C30: 0.01738122827 | D30: =IF('Calculation Sheet'!$D$59="YES",(Vcc_max-C30)*ILIM_FINAL_TOL,(Vcc_max-C30)*($AE$13+IF(C30>=$AE$8,$AE$7,0)+(IF(C30>=$AE$6,C30,0)/$AE$5)+IF(C30>$AE$10,($AE$9/C30),0))) -> 5.991309594 | E30: 1.882370197 | F30: 0.02461489056 | G30: 0.001523411832 | H30: 1.638492547e-06 | I30: 3.300196362e-05 | J30: 0.001813075952 | K30: 0.1960771126 | L30: 0.0003925039684 | M30: 0.0001012661053 | N30: 7.82778136e-06 | O30: 2.617840407e-07 | P30: 1.672279035e-07 | Q30: 28.11583026 | R30: 0.004576523237 | S30: 0.004576487901 | T30: 0.004637166862 | U30: 0.0006948731959 | V30: 0.0006948731959 | W30: 0.0006948731959 | X30: 0.0006948731959 | AA30: 25.0094056 | AD30: 1.738122827e-08 | AE30: 0 | AF30: 0 | AG30: 3.10642466
A31: 4 | B31: 0.004634994206 | C31: 0.02317497103 | D31: =IF('Calculation Sheet'!$D$59="YES",(Vcc_max-C31)*ILIM_FINAL_TOL,(Vcc_max-C31)*($AE$13+IF(C31>=$AE$8,$AE$7,0)+(IF(C31>=$AE$6,C31,0)/$AE$5)+IF(C31>$AE$10,($AE$9/C31),0))) -> 5.988412792 | E31: 2.367262962 | F31: 0.03278944845 | G31: 0.002030639174 | H31: 2.184128999e-06 | I31: 4.399195042e-05 | J31: 0.001812199752 | K31: 0.2599374217 | L31: 0.0005232065189 | M31: 0.0001349884837 | N31: 1.043451882e-05 | O31: 3.489610849e-07 | P31: 2.22916686e-07 | Q31: 28.94906522 | R31: 0.006099780759 | S31: 0.006099733668 | T31: 0.006180598681 | U31: 0.0009262559316 | V31: 0.0009262559316 | W31: 0.0009262559316 | X31: 0.0009262559316 | AA31: 25.01253703 | AD31: 2.317497103e-08 | AE31: 0 | AF31: 0 | AG31: 3.936528185
A32: 5 | B32: 0.005793742758 | C32: 0.02896871379 | D32: =IF('Calculation Sheet'!$D$59="YES",(Vcc_max-C32)*ILIM_FINAL_TOL,(Vcc_max-C32)*($AE$13+IF(C32>=$AE$8,$AE$7,0)+(IF(C32>=$AE$6,C32,0)/$AE$5)+IF(C32>$AE$10,($AE$9/C32),0))) -> 5.98551599 | E32: 2.794592057 | F32: 0.04094883824 | G32: 0.002537578256 | H32: 2.729501586e-06 | I32: 5.497660337e-05 | J32: 0.001811323553 | K32: 0.3230621037 | L32: 0.000653843019 | M32: 0.0001686943672 | N32: 1.303999479e-05 | O32: 4.36095978e-07 | P32: 2.785785416e-07 | Q32: 29.70081323 | R32: 0.007621913646 | S32: 0.007621854811 | T32: 0.007722885756 | U32: 0.001157517844 | V32: 0.001157517844 | W32: 0.001157517844 | X32: 0.001157517844 | AA32: 25.01566659 | AD32: 2.896871379e-08 | AE32: 0 | AF32: 0 | AG32: 4.685146639
A33: 6 | B33: 0.006952491309 | C33: 0.03476245655 | D33: =IF('Calculation Sheet'!$D$59="YES",(Vcc_max-C33)*ILIM_FINAL_TOL,(Vcc_max-C33)*($AE$13+IF(C33>=$AE$8,$AE$7,0)+(IF(C33>=$AE$6,C33,0)/$AE$5)+IF(C33>$AE$10,($AE$9/C33),0))) -> 5.982619188 | E33: 3.171150526 | F33: 0.04909308069 | G33: 0.003044229102 | H33: 3.274610307e-06 | I33: 6.595592247e-05 | J33: 0.001810447353 | K33: 0.3854592649 | L33: 0.0007844134701 | M33: 0.0002023837559 | N33: 1.564420926e-05 | O33: 5.23188719e-07 | P33: 3.342134711e-07 | Q33: 30.38052408 | R33: 0.009142922184 | S33: 0.009142851617 | T33: 0.009264028385 | U33: 0.001388658937 | V33: 0.001388658937 | W33: 0.001388658937 | X33: 0.001388658937 | AA33: 25.01879426 | AD33: 3.476245655e-08 | AE33: 0 | AF33: 0 | AG33: 5.361729817
A34: 7 | B34: 0.008111239861 | C34: 0.0405561993 | D34: =IF('Calculation Sheet'!$D$59="YES",(Vcc_max-C34)*ILIM_FINAL_TOL,(Vcc_max-C34)*($AE$13+IF(C34>=$AE$8,$AE$7,0)+(IF(C34>=$AE$6,C34,0)/$AE$5)+IF(C34>$AE$10,($AE$9/C34),0))) -> 5.979722385 | E34: 3.502929772 | F34: 0.05722219657 | G34: 0.003550591737 | H34: 3.819455164e-06 | I34: 7.692990773e-05 | J34: 0.001809571153 | K34: 0.4471369222 | L34: 0.0009149178737 | M34: 0.0002360566499 | N34: 1.824716224e-05 | O34: 6.102393089e-07 | P34: 3.898214747e-07 | Q34: 30.99653418 | R34: 0.01066280666 | S34: 0.01066272437 | T34: 0.01080402686 | U34: 0.001619679216 | V34: 0.001619679216 | W34: 0.001619679216 | X34: 0.001619679216 | AA34: 25.02192005 | AD34: 4.05561993e-08 | AE34: 0 | AF34: 0 | AG34: 5.97461413
A35: 8 | B35: 0.009269988413 | C35: 0.04634994206 | D35: =IF('Calculation Sheet'!$D$59="YES",(Vcc_max-C35)*ILIM_FINAL_TOL,(Vcc_max-C35)*($AE$13+IF(C35>=$AE$8,$AE$7,0)+(IF(C35>=$AE$6,C35,0)/$AE$5)+IF(C35>$AE$10,($AE$9/C35),0))) -> 5.976825583 | E35: 3.795214155 | F35: 0.0653362066 | G35: 0.004056666185 | H35: 4.364036155e-06 | I35: 8.789855917e-05 | J35: 0.001808694953 | K35: 0.5081030041 | L35: 0.001045356231 | M35: 0.0002697130493 | N35: 2.084885372e-05 | O35: 6.972477475e-07 | P35: 4.454025522e-07 | Q35: 31.55619794 | R35: 0.01218156736 | S35: 0.01218147336 | T35: 0.01234288148 | U35: 0.001850578685 | V35: 0.001850578685 | W35: 0.001850578685 | X35: 0.001850578685 | AA35: 25.02504396 | AD35: 4.634994206e-08 | AE35: 0 | AF35: 0 | AG35: 6.531153974
A36: 9 | B36: 0.01042873696 | C36: 0.05214368482 | D36: =IF('Calculation Sheet'!$D$59="YES",(Vcc_max-C36)*ILIM_FINAL_TOL,(Vcc_max-C36)*($AE$13+IF(C36>=$AE$8,$AE$7,0)+(IF(C36>=$AE$6,C36,0)/$AE$5)+IF(C36>$AE$10,($AE$9/C36),0))) -> 5.973928781 | E36: 4.052664435 | F36: 0.07343513147 | G36: 0.00456245247 | H36: 4.90835328e-06 | I36: 9.88618768e-05 | J36: 0.001807818753 | K36: 0.5683653517 | L36: 0.001175728544 | M36: 0.0003033529542 | N36: 2.344928371e-05 | O36: 7.842140342e-07 | P36: 5.009567037e-07 | Q36: 32.06600359 | R36: 0.01369920457 | S36: 0.01369909887 | T36: 0.01388059254 | U36: 0.002081357349 | V36: 0.002081357349 | W36: 0.002081357349 | X36: 0.002081357349 | AA36: 25.02816599 | AD36: 5.214368482e-08 | AE36: 0 | AF36: 0 | AG36: 7.037837596
A37: 10 | B37: 0.01158748552 | C37: 0.05793742758 | D37: =IF('Calculation Sheet'!$D$59="YES",(Vcc_max-C37)*ILIM_FINAL_TOL,(Vcc_max-C37)*($AE$13+IF(C37>=$AE$8,$AE$7,0)+(IF(C37>=$AE$6,C37,0)/$AE$5)+IF(C37>$AE$10,($AE$9/C37),0))) -> 5.971031978 | E37: 4.279391357 | F37: 0.08151899185 | G37: 0.005067950617 | H37: 5.45240654e-06 | I37: 0.0001098198606 | J37: 0.001806942553 | K37: 0.6279317198 | L37: 0.001306034814 | M37: 0.0003369763647 | N37: 2.604845221e-05 | O37: 8.711381696e-07 | P37: 5.564839292e-07 | Q37: 32.53167544 | R37: 0.01521571857 | S37: 0.01521560119 | T37: 0.01541716032 | U37: 0.002312015213 | V37: 0.002312015213 | W37: 0.002312015213 | X37: 0.002312015213 | AA37: 25.03128614 | AD37: 5.793742758e-08 | AE37: 0 | AF37: 0 | AG37: 7.500389293
A38: 11 | B38: 0.01274623407 | C38: 0.06373117034 | D38: =IF('Calculation Sheet'!$D$59="YES",(Vcc_max-C38)*ILIM_FINAL_TOL,(Vcc_max-C38)*($AE$13+IF(C38>=$AE$8,$AE$7,0)+(IF(C38>=$AE$6,C38,0)/$AE$5)+IF(C38>$AE$10,($AE$9/C38),0))) -> 5.968135176 | E38: 4.47902056 | F38: 0.08958780838 | G38: 0.005573160651 | H38: 5.996195935e-06 | I38: 0.0001207725106 | J38: 0.001806066354 | K38: 0.6868097778 | L38: 0.001436275041 | M38: 0.0003705832809 | N38: 2.864635922e-05 | O38: 9.580201539e-07 | P38: 6.119842286e-07 | Q38: 32.95826396 | R38: 0.01673110965 | S38: 0.0167309806 | T38: 0.01695258514 | U38: 0.002542552281 | V38: 0.002542552281 | W38: 0.002542552281 | X38: 0.002542552281 | AA38: 25.03440442 | AD38: 6.373117034e-08 | AE38: 0 | AF38: 0 | AG38: 7.923859542
A39: 12 | B39: 0.01390498262 | C39: 0.06952491309 | D39: =IF('Calculation Sheet'!$D$59="YES",(Vcc_max-C39)*ILIM_FINAL_TOL,(Vcc_max-C39)*($AE$13+IF(C39>=$AE$8,$AE$7,0)+(IF(C39>=$AE$6,C39,0)/$AE$5)+IF(C39>$AE$10,($AE$9/C39),0))) -> 5.965238373 | E39: 4.654749826 | F39: 0.09764160167 | G39: 0.006078082595 | H39: 6.539721465e-06 | I39: 0.0001317198269 | J39: 0.001805190154 | K39: 0.7450071104 | L39: 0.001566449229 | M39: 0.0004041737028 | N39: 3.124300473e-05 | O39: 1.044859987e-06 | P39: 6.674576021e-07 | Q39: 33.35022531 | R39: 0.0182453781 | S39: 0.01824523739 | T39: 0.01848686728 | U39: 0.002772968558 | V39: 0.002772968558 | W39: 0.002772968558 | X39: 0.002772968558 | AA39: 25.03752081 | AD39: 6.952491309e-08 | AE39: 0 | AF39: 0 | AG39: 8.312704502
A40: 13 | B40: 0.01506373117 | C40: 0.07531865585 | D40: =IF('Calculation Sheet'!$D$59="YES",(Vcc_max-C40)*ILIM_FINAL_TOL,(Vcc_max-C40)*($AE$13+IF(C40>=$AE$8,$AE$7,0)+(IF(C40>=$AE$6,C40,0)/$AE$5)+IF(C40>$AE$10,($AE$9/C40),0))) -> 5.96234157 | E40: 4.809399567 | F40: 0.1056803923 | G40: 0.006582716474 | H40: 7.08298313e-06 | I40: 0.0001426618093 | J40: 0.001804313954 | K40: 0.8025312189 | L40: 0.001696557377 | M40: 0.0004377476306 | N40: 3.383838876e-05 | O40: 1.131657668e-06 | P40: 7.229040495e-07 | Q40: 33.71149144 | R40: 0.0197585242 | S40: 0.01975837184 | T40: 0.02002000703 | U40: 0.003003264049 | V40: 0.003003264049 | W40: 0.003003264049 | X40: 0.003003264049 | AA40: 25.04063532 | AD40: 7.531865585e-08 | AE40: 0 | AF40: 0 | AG40: 8.670856126
A41: 14 | B41: 0.01622247972 | C41: 0.08111239861 | D41: =IF('Calculation Sheet'!$D$59="YES",(Vcc_max-C41)*ILIM_FINAL_TOL,(Vcc_max-C41)*($AE$13+IF(C41>=$AE$8,$AE$7,0)+(IF(C41>=$AE$6,C41,0)/$AE$5)+IF(C41>$AE$10,($AE$9/C41),0))) -> 5.959444767 | E41: 4.945457363 | F41: 0.1137042008 | G41: 0.007087062312 | H41: 7.625980929e-06 | I41: 0.000153598458 | J41: 0.001803437754 | K41: 0.8593895219 | L41: 0.001826599489 | M41: 0.0004713050644 | N41: 3.643251129e-05 | O41: 1.218413198e-06 | P41: 7.783235709e-07 | Q41: 34.04553196 | R41: 0.02127054824 | S41: 0.02127038424 | T41: 0.0215520047 | U41: 0.003233438758 | V41: 0.003233438758 | W41: 0.003233438758 | X41: 0.003233438758 | AA41: 25.04374795 | AD41: 8.111239861e-08 | AE41: 0 | AF41: 0 | AG41: 9.001784007
A42: 15 | B42: 0.01738122827 | C42: 0.08690614137 | D42: =IF('Calculation Sheet'!$D$59="YES",(Vcc_max-C42)*ILIM_FINAL_TOL,(Vcc_max-C42)*($AE$13+IF(C42>=$AE$8,$AE$7,0)+(IF(C42>=$AE$6,C42,0)/$AE$5)+IF(C42>$AE$10,($AE$9/C42),0))) -> 5.956547965 | E42: 5.065117233 | F42: 0.1217130478 | G42: 0.007591120134 | H42: 8.168714864e-06 | I42: 0.000164529773 | J42: 0.001802561554 | K42: 0.915589356 | L42: 0.001956575564 | M42: 0.0005048460042 | N42: 3.902537234e-05 | O42: 1.305126577e-06 | P42: 8.337161663e-07 | Q42: 34.35540863 | R42: 0.02278145051 | S42: 0.02278127488 | T42: 0.02308286056 | U42: 0.00346349269 | V42: 0.00346349269 | W42: 0.00346349269 | X42: 0.00346349269 | AA42: 25.04685871 | AD42: 8.690614137e-08 | AE42: 0 | AF42: 0 | AG42: 9.308549923
A43: 16 | B43: 0.01853997683 | C43: 0.09269988413 | D43: =IF('Calculation Sheet'!$D$59="YES",(Vcc_max-C43)*ILIM_FINAL_TOL,(Vcc_max-C43)*($AE$13+IF(C43>=$AE$8,$AE$7,0)+(IF(C43>=$AE$6,C43,0)/$AE$5)+IF(C43>$AE$10,($AE$9/C43),0))) -> 5.953651162 | E43: 5.170314286 | F43: 0.1297069537 | G43: 0.008094889965 | H43: 8.711184933e-06 | I43: 0.0001754557541 | J43: 0.001801685354 | K43: 0.9711379774 | L43: 0.002086485604 | M43: 0.0005383704501 | N43: 4.161697189e-05 | O43: 1.391797803e-06 | P43: 8.890818357e-07 | Q43: 34.64382352 | R43: 0.02429123128 | S43: 0.02429104403 | T43: 0.02461257493 | U43: 0.003693425849 | V43: 0.003693425849 | W43: 0.003693425849 | X43: 0.003693425849 | AA43: 25.04996758 | AD43: 9.269988413e-08 | AE43: 0 | AF43: 0 | AG43: 9.593855943
A44: 17 | B44: 0.01969872538 | C44: 0.09849362688 | D44: =IF('Calculation Sheet'!$D$59="YES",(Vcc_max-C44)*ILIM_FINAL_TOL,(Vcc_max-C44)*($AE$13+IF(C44>=$AE$8,$AE$7,0)+(IF(C44>=$AE$6,C44,0)/$AE$5)+IF(C44>$AE$10,($AE$9/C44),0))) -> 5.950754359 | E44: 5.262755265 | F44: 0.1376859389 | G44: 0.008598371828 | H44: 9.253391136e-06 | I44: 0.0001863764016 | J44: 0.001800809154 | K44: 1.026042562 | L44: 0.002216329611 | M44: 0.0005718784023 | N44: 4.420730996e-05 | O44: 1.478426879e-06 | P44: 9.444205791e-07 | Q44: 34.91316144 | R44: 0.02579989084 | S44: 0.02579969199 | T44: 0.0261411481 | U44: 0.003923238241 | V44: 0.003923238241 | W44: 0.003923238241 | X44: 0.003923238241 | AA44: 25.05307458 | AD44: 9.849362688e-08 | AE44: 0 | AF44: 0 | AG44: 9.860086861
A45: 18 | B45: 0.02085747393 | C45: 0.1042873696 | D45: =IF('Calculation Sheet'!$D$59="YES",(Vcc_max-C45)*ILIM_FINAL_TOL,(Vcc_max-C45)*($AE$13+IF(C45>=$AE$8,$AE$7,0)+(IF(C45>=$AE$6,C45,0)/$AE$5)+IF(C45>$AE$10,($AE$9/C45),0))) -> 5.947857556 | E45: 5.343945507 | F45: 0.145650024 | G45: 0.009101565747 | H45: 9.795333475e-06 | I45: 0.0001972917153 | J45: 0.001799932954 | K45: 1.080310207 | L45: 0.002346107587 | M45: 0.0006053698608 | N45: 4.679638654e-05 | O45: 1.565013803e-06 | P45: 9.997323955e-07 | Q45: 35.16552731 | R45: 0.02730742949 | S45: 0.02730721905 | T45: 0.02766858035 | U45: 0.00415292987 | V45: 0.00415292987 | W45: 0.00415292987 | X45: 0.00415292987 | AA45: 25.0561797 | AD45: 1.042873696e-07 | AE45: 0 | AF45: 0 | AG45: 10.10934762
A46: 19 | B46: 0.02201622248 | C46: 0.1100811124 | D46: =IF('Calculation Sheet'!$D$59="YES",(Vcc_max-C46)*ILIM_FINAL_TOL,(Vcc_max-C46)*($AE$13+IF(C46>=$AE$8,$AE$7,0)+(IF(C46>=$AE$6,C46,0)/$AE$5)+IF(C46>$AE$10,($AE$9/C46),0))) -> 5.944960753 | E46: 5.415212702 | F46: 0.1535992293 | G46: 0.009604471748 | H46: 1.033701195e-05 | I46: 0.0002082016953 | J46: 0.001799056754 | K46: 1.13394793 | L46: 0.002475819533 | M46: 0.0006388448257 | N46: 4.938420163e-05 | O46: 1.651558576e-06 | P46: 1.055017286e-06 | Q46: 35.40277924 | R46: 0.0288138475 | S46: 0.02881362547 | T46: 0.02919487198 | U46: 0.004382500741 | V46: 0.004382500741 | W46: 0.004382500741 | X46: 0.004382500741 | AA46: 25.05928294 | AD46: 1.100811124e-07 | AE46: 0 | AF46: 0 | AG46: 10.3434963
A47: 20 | B47: 0.02317497103 | C47: 0.1158748552 | D47: =IF('Calculation Sheet'!$D$59="YES",(Vcc_max-C47)*ILIM_FINAL_TOL,(Vcc_max-C47)*($AE$13+IF(C47>=$AE$8,$AE$7,0)+(IF(C47>=$AE$6,C47,0)/$AE$5)+IF(C47>$AE$10,($AE$9/C47),0))) -> 5.942063949 | E47: 5.47772786 | F47: 0.1615335753 | G47: 0.01010708986 | H47: 1.087842656e-05 | I47: 0.0002191063416 | J47: 0.001798180554 | K47: 1.186962674 | L47: 0.002605465449 | M47: 0.0006723032971 | N47: 5.197075523e-05 | O47: 1.738061197e-06 | P47: 1.11027525e-06 | Q47: 35.62655759 | R47: 0.03031914516 | S47: 0.03031891156 | T47: 0.03072002329 | U47: 0.004611950858 | V47: 0.004611950858 | W47: 0.004611950858 | X47: 0.004611950858 | AA47: 25.0623843 | AD47: 1.158748552e-07 | AE47: 0 | AF47: 0 | AG47: 10.56417329
A48: 21 | B48: 0.02433371958 | C48: 0.1216685979 | D48: =IF('Calculation Sheet'!$D$59="YES",(Vcc_max-C48)*ILIM_FINAL_TOL,(Vcc_max-C48)*($AE$13+IF(C48>=$AE$8,$AE$7,0)+(IF(C48>=$AE$6,C48,0)/$AE$5)+IF(C48>$AE$10,($AE$9/C48),0))) -> 5.939167146 | E48: 5.532523803 | F48: 0.1694530823 | G48: 0.01060942009 | H48: 1.14195773e-05 | I48: 0.0002300056542 | J48: 0.001797304354 | K48: 1.239361303 | L48: 0.002735045338 | M48: 0.0007057452751 | N48: 5.455604735e-05 | O48: 1.824521667e-06 | P48: 1.165506289e-06 | Q48: 35.83831067 | R48: 0.03182332275 | S48: 0.0318230776 | T48: 0.03224403457 | U48: 0.004841280226 | V48: 0.004841280226 | W48: 0.004841280226 | X48: 0.004841280226 | AA48: 25.06548379 | AD48: 1.216685979e-07 | AE48: 0 | AF48: 0 | AG48: 10.77282688
A49: 22 | B49: 0.02549246813 | C49: 0.1274623407 | D49: =IF('Calculation Sheet'!$D$59="YES",(Vcc_max-C49)*ILIM_FINAL_TOL,(Vcc_max-C49)*($AE$13+IF(C49>=$AE$8,$AE$7,0)+(IF(C49>=$AE$6,C49,0)/$AE$5)+IF(C49>$AE$10,($AE$9/C49),0))) -> 5.936270343 | E49: 5.58051147 | F49: 0.1773577705 | G49: 0.01111146248 | H49: 1.196046418e-05 | I49: 0.0002408996331 | J49: 0.001796428153 | K49: 1.291150607 | L49: 0.002864559201 | M49: 0.0007391707598 | N49: 5.714007798e-05 | O49: 1.910939986e-06 | P49: 1.220710401e-06 | Q49: 36.03931738 | R49: 0.03332638056 | S49: 0.03332612387 | T49: 0.03376690611 | U49: 0.005070488849 | V49: 0.005070488849 | W49: 0.005070488849 | X49: 0.005070488849 | AA49: 25.0685814 | AD49: 1.274623407e-07 | AE49: 0 | AF49: 0 | AG49: 10.97073598
A50: 23 | B50: 0.02665121669 | C50: 0.1332560834 | D50: =IF('Calculation Sheet'!$D$59="YES",(Vcc_max-C50)*ILIM_FINAL_TOL,(Vcc_max-C50)*($AE$13+IF(C50>=$AE$8,$AE$7,0)+(IF(C50>=$AE$6,C50,0)/$AE$5)+IF(C50>$AE$10,($AE$9/C50),0))) -> 5.93337354 | E50: 5.6224943 | F50: 0.1852476604 | G50: 0.01161321705 | H50: 1.250108719e-05 | I50: 0.0002517882783 | J50: 0.001795551953 | K50: 1.342337299 | L50: 0.00299400704 | M50: 0.0007725797513 | N50: 5.972284712e-05 | O50: 1.997316152e-06 | P50: 1.275887588e-06 | Q50: 36.23070719 | R50: 0.03482831888 | S50: 0.03482805065 | T50: 0.03528863821 | U50: 0.005299576733 | V50: 0.005299576733 | W50: 0.005299576733 | X50: 0.005299576733 | AA50: 25.07167713 | AD50: 1.332560834e-07 | AE50: 0 | AF50: 0 | AG50: 11.15903006
A51: 24 | B51: 0.02780996524 | C51: 0.1390498262 | D51: =IF('Calculation Sheet'!$D$59="YES",(Vcc_max-C51)*ILIM_FINAL_TOL,(Vcc_max-C51)*($AE$13+IF(C51>=$AE$8,$AE$7,0)+(IF(C51>=$AE$6,C51,0)/$AE$5)+IF(C51>$AE$10,($AE$9/C51),0))) -> 5.930476736 | E51: 5.659180919 | F51: 0.1931227722 | G51: 0.01211468383 | H51: 1.304144634e-05 | I51: 0.0002626715899 | J51: 0.001794675753 | K51: 1.392928021 | L51: 0.003123388856 | M51: 0.0008059722496 | N51: 6.230435478e-05 | O51: 2.083650168e-06 | P51: 1.331037848e-06 | Q51: 36.41347777 | R51: 0.03632913799 | S51: 0.03632885823 | T51: 0.03680923117 | U51: 0.005528543882 | V51: 0.005528543882 | W51: 0.005528543882 | X51: 0.005528543882 | AA51: 25.07477098 | AD51: 1.390498262e-07 | AE51: 0 | AF51: 0 | AG51: 11.33870678
A52: 25 | B52: 0.02896871379 | C52: 0.1448435689 | D52: =IF('Calculation Sheet'!$D$59="YES",(Vcc_max-C52)*ILIM_FINAL_TOL,(Vcc_max-C52)*($AE$13+IF(C52>=$AE$8,$AE$7,0)+(IF(C52>=$AE$6,C52,0)/$AE$5)+IF(C52>$AE$10,($AE$9/C52),0))) -> 5.927579933 | E52: 5.691196329 | F52: 0.2009831261 | G52: 0.01261586283 | H52: 1.358154162e-05 | I52: 0.0002735495677 | J52: 0.001793799553 | K52: 1.442929339 | L52: 0.00325270465 | M52: 0.000839348255 | N52: 6.488460096e-05 | O52: 2.169942032e-06 | P52: 1.386161182e-06 | Q52: 36.58851048 | R52: 0.03782883816 | S52: 0.0378285469 | T52: 0.03832868526 | U52: 0.0057573903 | V52: 0.0057573903 | W52: 0.0057573903 | X52: 0.0057573903 | AA52: 25.07786296 | AD52: 1.448435689e-07 | AE52: 0 | AF52: 0 | AG52: 11.51064752
A53: 26 | B53: 0.03012746234 | C53: 0.1506373117 | D53: =IF('Calculation Sheet'!$D$59="YES",(Vcc_max-C53)*ILIM_FINAL_TOL,(Vcc_max-C53)*($AE$13+IF(C53>=$AE$8,$AE$7,0)+(IF(C53>=$AE$6,C53,0)/$AE$5)+IF(C53>$AE$10,($AE$9/C53),0))) -> 5.924683129 | E53: 5.719091775 | F53: 0.2088287424 | G53: 0.01311675408 | H53: 1.412137304e-05 | I53: 0.000284422212 | J53: 0.001792923353 | K53: 1.492347749 | L53: 0.003381954424 | M53: 0.0008727077674 | N53: 6.746358565e-05 | O53: 2.256191745e-06 | P53: 1.441257591e-06 | Q53: 36.75658415 | R53: 0.0393274197 | S53: 0.03932711694 | T53: 0.0398470008 | U53: 0.005986115992 | V53: 0.005986115992 | W53: 0.005986115992 | X53: 0.005986115992 | AA53: 25.08095307 | AD53: 1.506373117e-07 | AE53: 0 | AF53: 0 | AG53: 11.67563108
A54: 27 | B54: 0.03128621089 | C54: 0.1564310545 | D54: =IF('Calculation Sheet'!$D$59="YES",(Vcc_max-C54)*ILIM_FINAL_TOL,(Vcc_max-C54)*($AE$13+IF(C54>=$AE$8,$AE$7,0)+(IF(C54>=$AE$6,C54,0)/$AE$5)+IF(C54>$AE$10,($AE$9/C54),0))) -> 5.921786325 | E54: 5.743353452 | F54: 0.2166596412 | G54: 0.01361735761 | H54: 1.46609406e-05 | I54: 0.0002952895226 | J54: 0.001792047153 | K54: 1.541189673 | L54: 0.003511138179 | M54: 0.0009060507869 | N54: 7.004130885e-05 | O54: 2.342399306e-06 | P54: 1.496327073e-06 | Q54: 36.91838711 | R54: 0.04082488289 | S54: 0.04082456863 | T54: 0.04136417807 | U54: 0.006214720964 | V54: 0.006214720964 | W54: 0.006214720964 | X54: 0.006214720964 | AA54: 25.0840413 | AD54: 1.564310545e-07 | AE54: 0 | AF54: 0 | AG54: 11.83434581
A55: 28 | B55: 0.03244495944 | C55: 0.1622247972 | D55: =IF('Calculation Sheet'!$D$59="YES",(Vcc_max-C55)*ILIM_FINAL_TOL,(Vcc_max-C55)*($AE$13+IF(C55>=$AE$8,$AE$7,0)+(IF(C55>=$AE$6,C55,0)/$AE$5)+IF(C55>$AE$10,($AE$9/C55),0))) -> 5.918889522 | E55: 5.764410178 | F55: 0.2244758428 | G55: 0.01411767344 | H55: 1.520024429e-05 | I55: 0.0003061514995 | J55: 0.001791170952 | K55: 1.589461465 | L55: 0.003640255916 | M55: 0.0009393773137 | N55: 7.261777058e-05 | O55: 2.428564716e-06 | P55: 1.551369629e-06 | Q55: 37.07452787 | R55: 0.04232122799 | S55: 0.04232090227 | T55: 0.04288021737 | U55: 0.006443205219 | V55: 0.006443205219 | W55: 0.006443205219 | X55: 0.006443205219 | AA55: 25.08712765 | AD55: 1.622247972e-07 | AE55: 0 | AF55: 0 | AG55: 11.98740022
A56: 29 | B56: 0.033603708 | C56: 0.16801854 | D56: =IF('Calculation Sheet'!$D$59="YES",(Vcc_max-C56)*ILIM_FINAL_TOL,(Vcc_max-C56)*($AE$13+IF(C56>=$AE$8,$AE$7,0)+(IF(C56>=$AE$6,C56,0)/$AE$5)+IF(C56>$AE$10,($AE$9/C56),0))) -> 5.915992718 | E56: 5.782640166 | F56: 0.2322773672 | G56: 0.01461770159 | H56: 1.573928411e-05 | I56: 0.0003170081429 | J56: 0.001790294752 | K56: 1.637169407 | L56: 0.003769307638 | M56: 0.0009726873479 | N56: 7.519297082e-05 | O56: 2.514687974e-06 | P56: 1.606385259e-06 | Q56: 37.22554452 | R56: 0.04381645532 | S56: 0.04381611812 | T56: 0.04439511898 | U56: 0.006671568762 | V56: 0.006671568762 | W56: 0.006671568762 | X56: 0.006671568762 | AA56: 25.09021212 | AD56: 1.6801854e-07 | AE56: 0 | AF56: 0 | AG56: 12.1353324
A57: 30 | B57: 0.03476245655 | C57: 0.1738122827 | D57: =IF('Calculation Sheet'!$D$59="YES",(Vcc_max-C57)*ILIM_FINAL_TOL,(Vcc_max-C57)*($AE$13+IF(C57>=$AE$8,$AE$7,0)+(IF(C57>=$AE$6,C57,0)/$AE$5)+IF(C57>$AE$10,($AE$9/C57),0))) -> 5.913095914 | E57: 5.798376998 | F57: 0.2400642345 | G57: 0.0151174421 | H57: 1.627806007e-05 | I57: 0.0003278594526 | J57: 0.001789418552 | K57: 1.684319712 | L57: 0.003898293346 | M57: 0.001005980889 | N57: 7.776690958e-05 | O57: 2.600769081e-06 | P57: 1.661373964e-06 | Q57: 37.37191305 | R57: 0.04531056514 | S57: 0.04531021649 | T57: 0.04590888321 | U57: 0.006899811598 | V57: 0.006899811598 | W57: 0.006899811598 | X57: 0.006899811598 | AA57: 25.09329473 | AD57: 1.738122827e-07 | AE57: 0 | AF57: 0 | AG57: 12.27861833
A58: 31 | B58: 0.0359212051 | C58: 0.1796060255 | D58: =IF('Calculation Sheet'!$D$59="YES",(Vcc_max-C58)*ILIM_FINAL_TOL,(Vcc_max-C58)*($AE$13+IF(C58>=$AE$8,$AE$7,0)+(IF(C58>=$AE$6,C58,0)/$AE$5)+IF(C58>$AE$10,($AE$9/C58),0))) -> 5.91019911 | E58: 5.811914888 | F58: 0.2478364649 | G58: 0.01561689497 | H58: 1.681657216e-05 | I58: 0.0003387054287 | J58: 0.001788542352 | K58: 1.730918525 | L58: 0.00402721304 | M58: 0.001039257939 | N58: 8.033958685e-05 | O58: 2.686808037e-06 | P58: 1.716335741e-06 | Q58: 37.51405463 | R58: 0.04680355773 | S58: 0.04680319764 | T58: 0.04742151034 | U58: 0.007127933732 | V58: 0.007127933732 | W58: 0.007127933732 | X58: 0.007127933732 | AA58: 25.09637545 | AD58: 1.796060255e-07 | AE58: 0 | AF58: 0 | AG58: 12.41767918
A59: 32 | B59: 0.03707995365 | C59: 0.1853997683 | D59: =IF('Calculation Sheet'!$D$59="YES",(Vcc_max-C59)*ILIM_FINAL_TOL,(Vcc_max-C59)*($AE$13+IF(C59>=$AE$8,$AE$7,0)+(IF(C59>=$AE$6,C59,0)/$AE$5)+IF(C59>$AE$10,($AE$9/C59),0))) -> 5.907302306 | E59: 5.823513334 | F59: 0.2555940784 | G59: 0.01611606025 | H59: 1.735482039e-05 | I59: 0.0003495460713 | J59: 0.001787666151 | K59: 1.776971924 | L59: 0.004156066723 | M59: 0.001072518495 | N59: 8.291100265e-05 | O59: 2.772804841e-06 | P59: 1.771270592e-06 | Q59: 37.65234208 | R59: 0.0482954334 | S59: 0.04829506188 | T59: 0.04893300067 | U59: 0.007355935168 | V59: 0.007355935168 | W59: 0.007355935168 | X59: 0.007355935168 | AA59: 25.0994543 | AD59: 1.853997683e-07 | AE59: 0 | AF59: 0 | AG59: 12.55288777
A60: 33 | B60: 0.0382387022 | C60: 0.191193511 | D60: =IF('Calculation Sheet'!$D$59="YES",(Vcc_max-C60)*ILIM_FINAL_TOL,(Vcc_max-C60)*($AE$13+IF(C60>=$AE$8,$AE$7,0)+(IF(C60>=$AE$6,C60,0)/$AE$5)+IF(C60>$AE$10,($AE$9/C60),0))) -> 5.904405502 | E60: 5.833401205 | F60: 0.263337095 | G60: 0.01661493795 | H60: 1.789280476e-05 | I60: 0.0003603813802 | J60: 0.001786789951 | K60: 1.822485917 | L60: 0.004284854396 | M60: 0.00110576256 | N60: 8.548115697e-05 | O60: 2.858759493e-06 | P60: 1.826178518e-06 | Q60: 37.78710555 | R60: 0.04978619241 | S60: 0.04978580947 | T60: 0.0504433545 | U60: 0.00758381591 | V60: 0.00758381591 | W60: 0.00758381591 | X60: 0.00758381591 | AA60: 25.10253128 | AD60: 1.91193511e-07 | AE60: 0 | AF60: 0 | AG60: 12.68457427
A61: 34 | B61: 0.03939745075 | C61: 0.1969872538 | D61: =IF('Calculation Sheet'!$D$59="YES",(Vcc_max-C61)*ILIM_FINAL_TOL,(Vcc_max-C61)*($AE$13+IF(C61>=$AE$8,$AE$7,0)+(IF(C61>=$AE$6,C61,0)/$AE$5)+IF(C61>$AE$10,($AE$9/C61),0))) -> 5.901508698 | E61: 5.841780368 | F61: 0.2710655347 | G61: 0.01711352809 | H61: 1.843052525e-05 | I61: 0.0003712113556 | J61: 0.001785913751 | K61: 1.86746645 | L61: 0.00441357606 | M61: 0.001138990132 | N61: 8.80500498e-05 | O61: 2.944671994e-06 | P61: 1.881059517e-06 | Q61: 37.91863756 | R61: 0.05127583506 | S61: 0.05127544071 | T61: 0.0519525721 | U61: 0.007811575965 | V61: 0.007811575965 | W61: 0.007811575965 | X61: 0.007811575965 | AA61: 25.10560639 | AD61: 1.969872538e-07 | AE61: 0 | AF61: 0 | AG61: 12.81303117
A62: 35 | B62: 0.0405561993 | C62: 0.2027809965 | D62: =IF('Calculation Sheet'!$D$59="YES",(Vcc_max-C62)*ILIM_FINAL_TOL,(Vcc_max-C62)*($AE$13+IF(C62>=$AE$8,$AE$7,0)+(IF(C62>=$AE$6,C62,0)/$AE$5)+IF(C62>$AE$10,($AE$9/C62),0))) -> 5.898611894 | E62: 5.848828862 | F62: 0.2787794175 | G62: 0.01761183071 | H62: 1.896798189e-05 | I62: 0.0003820359974 | J62: 0.00178503755 | K62: 1.911919401 | L62: 0.004542231716 | M62: 0.001172201212 | N62: 9.061768116e-05 | O62: 3.030542344e-06 | P62: 1.93591359e-06 | Q62: 38.04719742 | R62: 0.05276436163 | S62: 0.05276395588 | T62: 0.05346065379 | U62: 0.008039215335 | V62: 0.008039215335 | W62: 0.008039215335 | X62: 0.008039215335 | AA62: 25.10867962 | AD62: 2.027809965e-07 | AE62: 0 | AF62: 0 | AG62: 12.9385178
A63: 36 | B63: 0.04171494786 | C63: 0.2085747393 | D63: =IF('Calculation Sheet'!$D$59="YES",(Vcc_max-C63)*ILIM_FINAL_TOL,(Vcc_max-C63)*($AE$13+IF(C63>=$AE$8,$AE$7,0)+(IF(C63>=$AE$6,C63,0)/$AE$5)+IF(C63>$AE$10,($AE$9/C63),0))) -> 5.89571509 | E63: 5.854703719 | F63: 0.2864787633 | G63: 0.01810984582 | H63: 1.950517466e-05 | I63: 0.0003928553056 | J63: 0.00178416135 | K63: 1.955850584 | L63: 0.004670821367 | M63: 0.0012053958 | N63: 9.318405103e-05 | O63: 3.116370542e-06 | P63: 1.990740738e-06 | Q63: 38.17301511 | R63: 0.05425177239 | S63: 0.05425135527 | T63: 0.05496759985 | U63: 0.008266734026 | V63: 0.008266734026 | W63: 0.008266734026 | X63: 0.008266734026 | AA63: 25.11175097 | AD63: 2.085747393e-07 | AE63: 0 | AF63: 0 | AG63: 13.06126414
A64: 37 | B64: 0.04287369641 | C64: 0.214368482 | D64: =IF('Calculation Sheet'!$D$59="YES",(Vcc_max-C64)*ILIM_FINAL_TOL,(Vcc_max-C64)*($AE$13+IF(C64>=$AE$8,$AE$7,0)+(IF(C64>=$AE$6,C64,0)/$AE$5)+IF(C64>$AE$10,($AE$9/C64),0))) -> 5.892818285 | E64: 5.859543439 | F64: 0.2941635921 | G64: 0.01860757345 | H64: 2.004210356e-05 | I64: 0.0004036692803 | J64: 0.001783285149 | K64: 1.999265747 | L64: 0.004799345014 | M64: 0.001238573896 | N64: 9.574915943e-05 | O64: 3.202156589e-06 | P64: 2.045540959e-06 | Q64: 38.29629477 | R64: 0.05573806764 | S64: 0.05573763914 | T64: 0.05647341057 | U64: 0.008494132043 | V64: 0.008494132043 | W64: 0.008494132043 | X64: 0.008494132043 | AA64: 25.11482046 | AD64: 2.14368482e-07 | AE64: 0 | AF64: 0 | AG64: 13.18147432
A65: 38 | B65: 0.04403244496 | C65: 0.2201622248 | D65: =IF('Calculation Sheet'!$D$59="YES",(Vcc_max-C65)*ILIM_FINAL_TOL,(Vcc_max-C65)*($AE$13+IF(C65>=$AE$8,$AE$7,0)+(IF(C65>=$AE$6,C65,0)/$AE$5)+IF(C65>$AE$10,($AE$9/C65),0))) -> 5.889921481 | E65: 5.863470178 | F65: 0.3018339237 | G65: 0.01910501363 | H65: 2.05787686e-05 | I65: 0.0004144779215 | J65: 0.001782408949 | K65: 2.042170578 | L65: 0.004927802658 | M65: 0.001271735501 | N65: 9.831300635e-05 | O65: 3.287900484e-06 | P65: 2.100314254e-06 | Q65: 38.41721771 | R65: 0.05722324766 | S65: 0.0572228078 | T65: 0.05797808624 | U65: 0.00872140939 | V65: 0.00872140939 | W65: 0.00872140939 | X65: 0.00872140939 | AA65: 25.11788807 | AD65: 2.201622248e-07 | AE65: 0 | AF65: 0 | AG65: 13.29932964
A66: 39 | B66: 0.04519119351 | C66: 0.2259559676 | D66: =IF('Calculation Sheet'!$D$59="YES",(Vcc_max-C66)*ILIM_FINAL_TOL,(Vcc_max-C66)*($AE$13+IF(C66>=$AE$8,$AE$7,0)+(IF(C66>=$AE$6,C66,0)/$AE$5)+IF(C66>$AE$10,($AE$9/C66),0))) -> 5.887024677 | E66: 5.866591676 | F66: 0.309489778 | G66: 0.01960216637 | H66: 2.111516978e-05 | I66: 0.0004252812292 | J66: 0.001781532749 | K66: 2.084570699 | L66: 0.0050561943 | M66: 0.001304880613 | N66: 0.0001008755918 | O66: 3.373602229e-06 | P66: 2.155060623e-06 | Q66: 38.53594507 | R66: 0.05870731274 | S66: 0.05870686153 | T66: 0.05948162717 | U66: 0.008948566072 | V66: 0.008948566072 | W66: 0.008948566072 | X66: 0.008948566072 | AA66: 25.1209538 | AD66: 2.259559676e-07 | AE66: 0 | AF66: 0 | AG66: 13.41499126
A67: 40 | B67: 0.04634994206 | C67: 0.2317497103 | D67: =IF('Calculation Sheet'!$D$59="YES",(Vcc_max-C67)*ILIM_FINAL_TOL,(Vcc_max-C67)*($AE$13+IF(C67>=$AE$8,$AE$7,0)+(IF(C67>=$AE$6,C67,0)/$AE$5)+IF(C67>$AE$10,($AE$9/C67),0))) -> 5.884127872 | E67: 5.869002959 | F67: 0.3171311748 | G67: 0.02009903171 | H67: 2.165130709e-05 | I67: 0.0004360792033 | J67: 0.001780656548 | K67: 2.126471674 | L67: 0.005184519942 | M67: 0.001338009234 | N67: 0.0001034369158 | O67: 3.459261821e-06 | P67: 2.209780066e-06 | Q67: 38.65262023 | R67: 0.06019026315 | S67: 0.0601898006 | T67: 0.06098403363 | U67: 0.009175602093 | V67: 0.009175602093 | W67: 0.009175602093 | X67: 0.009175602093 | AA67: 25.12401767 | AD67: 2.317497103e-07 | AE67: 0 | AF67: 0 | AG67: 13.52860257
A68: 41 | B68: 0.04750869061 | C68: 0.2375434531 | D68: =IF('Calculation Sheet'!$D$59="YES",(Vcc_max-C68)*ILIM_FINAL_TOL,(Vcc_max-C68)*($AE$13+IF(C68>=$AE$8,$AE$7,0)+(IF(C68>=$AE$6,C68,0)/$AE$5)+IF(C68>$AE$10,($AE$9/C68),0))) -> 5.881231068 | E68: 5.870787838 | F68: 0.3247581339 | G68: 0.02059560966 | H68: 2.218718054e-05 | I68: 0.0004468718439 | J68: 0.001779780348 | K68: 2.167879001 | L68: 0.005312779586 | M68: 0.001371121364 | N68: 0.0001059969783 | O68: 3.544879262e-06 | P68: 2.264472584e-06 | Q68: 38.76737088 | R68: 0.06167209918 | S68: 0.0616716253 | T68: 0.06248530593 | U68: 0.009402517459 | V68: 0.009402517459 | W68: 0.009402517459 | X68: 0.009402517459 | AA68: 25.12707966 | AD68: 2.375434531e-07 | AE68: 0 | AF68: 0 | AG68: 13.64029122
A69: 42 | B69: 0.04866743917 | C69: 0.2433371958 | D69: =IF('Calculation Sheet'!$D$59="YES",(Vcc_max-C69)*ILIM_FINAL_TOL,(Vcc_max-C69)*($AE$13+IF(C69>=$AE$8,$AE$7,0)+(IF(C69>=$AE$6,C69,0)/$AE$5)+IF(C69>$AE$10,($AE$9/C69),0))) -> 5.878334263 | E69: 5.872020235 | F69: 0.3323706752 | G69: 0.02109190025 | H69: 2.272279012e-05 | I69: 0.000457659151 | J69: 0.001778904147 | K69: 2.20879812 | L69: 0.005440973232 | M69: 0.001404217002 | N69: 0.0001085557793 | O69: 3.630454552e-06 | P69: 2.319138175e-06 | Q69: 38.88031083 | R69: 0.06315282111 | S69: 0.06315233592 | T69: 0.06398544436 | U69: 0.009629312173 | V69: 0.009629312173 | W69: 0.009629312173 | X69: 0.009629312173 | AA69: 25.13013978 | AD69: 2.433371958e-07 | AE69: 0 | AF69: 0 | AG69: 13.75017105
A70: 43 | B70: 0.04982618772 | C70: 0.2491309386 | D70: =IF('Calculation Sheet'!$D$59="YES",(Vcc_max-C70)*ILIM_FINAL_TOL,(Vcc_max-C70)*($AE$13+IF(C70>=$AE$8,$AE$7,0)+(IF(C70>=$AE$6,C70,0)/$AE$5)+IF(C70>$AE$10,($AE$9/C70),0))) -> 5.875437458 | E70: 5.872765349 | F70: 0.3399688183 | G70: 0.02158790351 | H70: 2.325813584e-05 | I70: 0.0004684411247 | J70: 0.001778027947 | K70: 2.249234412 | L70: 0.005569100883 | M70: 0.001437296148 | N70: 0.0001111133188 | O70: 3.71598769e-06 | P70: 2.373776839e-06 | Q70: 38.99154167 | R70: 0.06463242923 | S70: 0.06463193274 | T70: 0.0654844492 | U70: 0.009855986241 | V70: 0.009855986241 | W70: 0.009855986241 | X70: 0.009855986241 | AA70: 25.13319803 | AD70: 2.491309386e-07 | AE70: 0 | AF70: 0 | AG70: 13.85834364
A71: 44 | B71: 0.05098493627 | C71: 0.2549246813 | D71: =IF('Calculation Sheet'!$D$59="YES",(Vcc_max-C71)*ILIM_FINAL_TOL,(Vcc_max-C71)*($AE$13+IF(C71>=$AE$8,$AE$7,0)+(IF(C71>=$AE$6,C71,0)/$AE$5)+IF(C71>$AE$10,($AE$9/C71),0))) -> 5.872540653 | E71: 5.873080682 | F71: 0.3475525831 | G71: 0.02208361946 | H71: 2.379321769e-05 | I71: 0.0004792177649 | J71: 0.001777151746 | K71: 2.289193197 | L71: 0.005697162539 | M71: 0.001470358804 | N71: 0.0001136695969 | O71: 3.801478677e-06 | P71: 2.428388577e-06 | Q71: 39.10115416 | R71: 0.06611092383 | S71: 0.06611041604 | T71: 0.06698232076 | U71: 0.01008253967 | V71: 0.01008253967 | W71: 0.01008253967 | X71: 0.01008253967 | AA71: 25.13625441 | AD71: 2.549246813e-07 | AE71: 0 | AF71: 0 | AG71: 13.96489975
A72: 45 | B72: 0.05214368482 | C72: 0.2607184241 | D72: =IF('Calculation Sheet'!$D$59="YES",(Vcc_max-C72)*ILIM_FINAL_TOL,(Vcc_max-C72)*($AE$13+IF(C72>=$AE$8,$AE$7,0)+(IF(C72>=$AE$6,C72,0)/$AE$5)+IF(C72>$AE$10,($AE$9/C72),0))) -> 5.869643849 | E72: 5.873016954 | F72: 0.3551219891 | G72: 0.02257904813 | H72: 2.432803568e-05 | I72: 0.0004899890715 | J72: 0.001776275545 | K72: 2.328679736 | L72: 0.005825158202 | M72: 0.001503404968 | N72: 0.0001162246135 | O72: 3.886927512e-06 | P72: 2.48297339e-06 | Q72: 39.20922955 | R72: 0.06758830517 | S72: 0.0675877861 | T72: 0.06847905932 | U72: 0.01030897246 | V72: 0.01030897246 | W72: 0.01030897246 | X72: 0.01030897246 | AA72: 25.13930891 | AD72: 2.607184241e-07 | AE72: 0 | AF72: 0 | AG72: 14.06992064
A73: 46 | B73: 0.05330243337 | C73: 0.2665121669 | D73: =IF('Calculation Sheet'!$D$59="YES",(Vcc_max-C73)*ILIM_FINAL_TOL,(Vcc_max-C73)*($AE$13+IF(C73>=$AE$8,$AE$7,0)+(IF(C73>=$AE$6,C73,0)/$AE$5)+IF(C73>$AE$10,($AE$9/C73),0))) -> 5.866747044 | E73: 5.872618897 | F73: 0.3626770561 | G73: 0.02307418953 | H73: 2.48625898e-05 | I73: 0.0005007550448 | J73: 0.001775399345 | K73: 2.367699234 | L73: 0.005953087874 | M73: 0.001536434641 | N73: 0.0001187783686 | O73: 3.972334196e-06 | P73: 2.537531276e-06 | Q73: 39.31584065 | R73: 0.06906457355 | S73: 0.06906404322 | T73: 0.06997466517 | U73: 0.01053528461 | V73: 0.01053528461 | W73: 0.01053528461 | X73: 0.01053528461 | AA73: 25.14236155 | AD73: 2.665121669e-07 | AE73: 0 | AF73: 0 | AG73: 14.1734791
A74: 47 | B74: 0.05446118192 | C74: 0.2723059096 | D74: =IF('Calculation Sheet'!$D$59="YES",(Vcc_max-C74)*ILIM_FINAL_TOL,(Vcc_max-C74)*($AE$13+IF(C74>=$AE$8,$AE$7,0)+(IF(C74>=$AE$6,C74,0)/$AE$5)+IF(C74>$AE$10,($AE$9/C74),0))) -> 5.863850239 | E74: 5.871925964 | F74: 0.3702178037 | G74: 0.0235690437 | H74: 2.539688006e-05 | I74: 0.0005115156846 | J74: 0.001774523144 | K74: 2.406256838 | L74: 0.006080951556 | M74: 0.001569447823 | N74: 0.0001213308622 | O74: 4.057698728e-06 | P74: 2.592062236e-06 | Q74: 39.4210528 | R74: 0.07053972926 | S74: 0.07053918766 | T74: 0.07146913861 | U74: 0.01076147614 | V74: 0.01076147614 | W74: 0.01076147614 | X74: 0.01076147614 | AA74: 25.14541231 | AD74: 2.723059096e-07 | AE74: 0 | AF74: 0 | AG74: 14.27564048
A75: 48 | B75: 0.05561993048 | C75: 0.2780996524 | D75: =IF('Calculation Sheet'!$D$59="YES",(Vcc_max-C75)*ILIM_FINAL_TOL,(Vcc_max-C75)*($AE$13+IF(C75>=$AE$8,$AE$7,0)+(IF(C75>=$AE$6,C75,0)/$AE$5)+IF(C75>$AE$10,($AE$9/C75),0))) -> 5.860953434 | E75: 5.870972954 | F75: 0.3777442515 | G75: 0.02406361065 | H75: 2.593090645e-05 | I75: 0.0005222709909 | J75: 0.001773646944 | K75: 2.444357636 | L75: 0.00620874925 | M75: 0.001602444514 | N75: 0.0001238820944 | O75: 4.143021109e-06 | P75: 2.64656627e-06 | Q75: 39.52492478 | R75: 0.07201377256 | S75: 0.07201321972 | T75: 0.07296247993 | U75: 0.01098754704 | V75: 0.01098754704 | W75: 0.01098754704 | X75: 0.01098754704 | AA75: 25.14846121 | AD75: 2.780996524e-07 | AE75: 0 | AF75: 0 | AG75: 14.37646357
A76: 49 | B76: 0.05677867903 | C76: 0.2838933951 | D76: =IF('Calculation Sheet'!$D$59="YES",(Vcc_max-C76)*ILIM_FINAL_TOL,(Vcc_max-C76)*($AE$13+IF(C76>=$AE$8,$AE$7,0)+(IF(C76>=$AE$6,C76,0)/$AE$5)+IF(C76>$AE$10,($AE$9/C76),0))) -> 5.858056629 | E76: 5.869790558 | F76: 0.3852564191 | G76: 0.02455789042 | H76: 2.646466898e-05 | I76: 0.0005330209638 | J76: 0.001772770743 | K76: 2.482006663 | L76: 0.006336480956 | M76: 0.001635424715 | N76: 0.0001264320651 | O76: 4.228301338e-06 | P76: 2.701043378e-06 | Q76: 39.62750956 | R76: 0.07348670376 | S76: 0.07348613968 | T76: 0.07445468942 | U76: 0.01121349733 | V76: 0.01121349733 | W76: 0.01121349733 | X76: 0.01121349733 | AA76: 25.15150823 | AD76: 2.838933951e-07 | AE76: 0 | AF76: 0 | AG76: 14.47600133
A77: 50 | B77: 0.05793742758 | C77: 0.2896871379 | D77: =IF('Calculation Sheet'!$D$59="YES",(Vcc_max-C77)*ILIM_FINAL_TOL,(Vcc_max-C77)*($AE$13+IF(C77>=$AE$8,$AE$7,0)+(IF(C77>=$AE$6,C77,0)/$AE$5)+IF(C77>$AE$10,($AE$9/C77),0))) -> 5.855159823 | E77: 5.868405846 | F77: 0.3927543262 | G77: 0.02505188302 | H77: 2.699816764e-05 | I77: 0.0005437656033 | J77: 0.001771894542 | K77: 2.519208897 | L77: 0.006464146677 | M77: 0.001668388424 | N77: 0.0001289807743 | O77: 4.313539416e-06 | P77: 2.75549356e-06 | Q77: 39.72885494 | R77: 0.07495852312 | S77: 0.07495794782 | T77: 0.07594576737 | U77: 0.011439327 | V77: 0.011439327 | W77: 0.011439327 | X77: 0.011439327 | AA77: 25.15455338 | AD77: 2.896871379e-07 | AE77: 0 | AF77: 0 | AG77: 14.57430156
A78: 51 | B78: 0.05909617613 | C78: 0.2954808806 | D78: =IF('Calculation Sheet'!$D$59="YES",(Vcc_max-C78)*ILIM_FINAL_TOL,(Vcc_max-C78)*($AE$13+IF(C78>=$AE$8,$AE$7,0)+(IF(C78>=$AE$6,C78,0)/$AE$5)+IF(C78>$AE$10,($AE$9/C78),0))) -> 5.852263018 | E78: 5.866842693 | F78: 0.4002379921 | G78: 0.02554558848 | H78: 2.753140244e-05 | I78: 0.0005545049094 | J78: 0.001771018342 | K78: 2.555969261 | L78: 0.006591746414 | M78: 0.001701335643 | N78: 0.0001315282221 | O78: 4.398735343e-06 | P78: 2.809916817e-06 | Q78: 39.8290042 | R78: 0.07642923093 | S78: 0.07642864442 | T78: 0.07743571407 | U78: 0.01166503607 | V78: 0.01166503607 | W78: 0.01166503607 | X78: 0.01166503607 | AA78: 25.15759667 | AD78: 2.954808806e-07 | AE78: 0 | AF78: 0 | AG78: 14.67140753
A79: 52 | B79: 0.06025492468 | C79: 0.3012746234 | D79: =IF('Calculation Sheet'!$D$59="YES",(Vcc_max-C79)*ILIM_FINAL_TOL,(Vcc_max-C79)*($AE$13+IF(C79>=$AE$8,$AE$7,0)+(IF(C79>=$AE$6,C79,0)/$AE$5)+IF(C79>$AE$10,($AE$9/C79),0))) -> 5.849366213 | E79: 5.865122157 | F79: 0.4077074365 | G79: 0.02603900683 | H79: 2.806437338e-05 | I79: 0.0005652388821 | J79: 0.001770142141 | K79: 2.592292625 | L79: 0.006719280167 | M79: 0.001734266372 | N79: 0.0001340744084 | O79: 4.483889119e-06 | P79: 2.864313147e-06 | Q79: 39.92799657 | R79: 0.07789882748 | S79: 0.07789822977 | T79: 0.07892452982 | U79: 0.01189062452 | V79: 0.01189062452 | W79: 0.01189062452 | X79: 0.01189062452 | AA79: 25.16063808 | AD79: 3.012746234e-07 | AE79: 0 | AF79: 0 | AG79: 14.76735849
A80: 53 | B80: 0.06141367323 | C80: 0.3070683662 | D80: =IF('Calculation Sheet'!$D$59="YES",(Vcc_max-C80)*ILIM_FINAL_TOL,(Vcc_max-C80)*($AE$13+IF(C80>=$AE$8,$AE$7,0)+(IF(C80>=$AE$6,C80,0)/$AE$5)+IF(C80>$AE$10,($AE$9/C80),0))) -> 5.846469407 | E80: 5.86326281 | F80: 0.4151626788 | G80: 0.02653213809 | H80: 2.859708045e-05 | I80: 0.0005759675214 | J80: 0.00176926594 | K80: 2.628183804 | L80: 0.00684674794 | M80: 0.00176718061 | N80: 0.0001366193332 | O80: 4.569000742e-06 | P80: 2.918682551e-06 | Q80: 40.02586775 | R80: 0.07936731305 | S80: 0.07936670415 | T80: 0.08041221491 | U80: 0.01211609238 | V80: 0.01211609238 | W80: 0.01211609238 | X80: 0.01211609238 | AA80: 25.16367763 | AD80: 3.070683662e-07 | AE80: 0 | AF80: 0 | AG80: 14.86219013
A81: 54 | B81: 0.06257242178 | C81: 0.3128621089 | D81: =IF('Calculation Sheet'!$D$59="YES",(Vcc_max-C81)*ILIM_FINAL_TOL,(Vcc_max-C81)*($AE$13+IF(C81>=$AE$8,$AE$7,0)+(IF(C81>=$AE$6,C81,0)/$AE$5)+IF(C81>$AE$10,($AE$9/C81),0))) -> 5.843572602 | E81: 5.861281034 | F81: 0.4226037384 | G81: 0.02702498228 | H81: 2.912952366e-05 | I81: 0.0005866908273 | J81: 0.001768389739 | K81: 2.66364756 | L81: 0.006974149732 | M81: 0.001800078358 | N81: 0.0001391629965 | O81: 4.654070215e-06 | P81: 2.973025028e-06 | Q81: 40.12265027 | R81: 0.08083468792 | S81: 0.08083406784 | T81: 0.08189876963 | U81: 0.01234143965 | V81: 0.01234143965 | W81: 0.01234143965 | X81: 0.01234143965 | AA81: 25.1667153 | AD81: 3.128621089e-07 | AE81: 0 | AF81: 0 | AG81: 14.95593497
A82: 55 | B82: 0.06373117034 | C82: 0.3186558517 | D82: =IF('Calculation Sheet'!$D$59="YES",(Vcc_max-C82)*ILIM_FINAL_TOL,(Vcc_max-C82)*($AE$13+IF(C82>=$AE$8,$AE$7,0)+(IF(C82>=$AE$6,C82,0)/$AE$5)+IF(C82>$AE$10,($AE$9/C82),0))) -> 5.840675796 | E82: 5.859191275 | F82: 0.4300306349 | G82: 0.02751753942 | H82: 2.9661703e-05 | I82: 0.0005974087999 | J82: 0.001767513539 | K82: 2.698688604 | L82: 0.007101485546 | M82: 0.001832959615 | N82: 0.0001417053984 | O82: 4.739097536e-06 | P82: 3.027340579e-06 | Q82: 40.21837386 | R82: 0.08230095237 | S82: 0.08230032112 | T82: 0.08338419427 | U82: 0.01256666632 | V82: 0.01256666632 | W82: 0.01256666632 | X82: 0.01256666632 | AA82: 25.16975111 | AD82: 3.186558517e-07 | AE82: 0 | AF82: 0 | AG82: 15.04862275
A83: 56 | B83: 0.06488991889 | C83: 0.3244495944 | D83: =IF('Calculation Sheet'!$D$59="YES",(Vcc_max-C83)*ILIM_FINAL_TOL,(Vcc_max-C83)*($AE$13+IF(C83>=$AE$8,$AE$7,0)+(IF(C83>=$AE$6,C83,0)/$AE$5)+IF(C83>$AE$10,($AE$9/C83),0))) -> 5.837778991 | E83: 5.857006278 | F83: 0.4374433876 | G83: 0.02800980955 | H83: 3.019361848e-05 | I83: 0.0006081214391 | J83: 0.001766637338 | K83: 2.733311594 | L83: 0.007228755383 | M83: 0.001865824382 | N83: 0.0001442465388 | O83: 4.824082705e-06 | P83: 3.081629204e-06 | Q83: 40.31306578 | R83: 0.08376610668 | S83: 0.08376546428 | T83: 0.08486848912 | U83: 0.0127917724 | V83: 0.0127917724 | W83: 0.0127917724 | X83: 0.0127917724 | AA83: 25.17278505 | AD83: 3.244495944e-07 | AE83: 0 | AF83: 0 | AG83: 15.14028074
A84: 57 | B84: 0.06604866744 | C84: 0.3302433372 | D84: =IF('Calculation Sheet'!$D$59="YES",(Vcc_max-C84)*ILIM_FINAL_TOL,(Vcc_max-C84)*($AE$13+IF(C84>=$AE$8,$AE$7,0)+(IF(C84>=$AE$6,C84,0)/$AE$5)+IF(C84>$AE$10,($AE$9/C84),0))) -> 5.834882185 | E84: 5.854737281 | F84: 0.4448420158 | G84: 0.02850179268 | H84: 3.072527009e-05 | I84: 0.0006188287449 | J84: 0.001765761137 | K84: 2.767521135 | L84: 0.007355959244 | M84: 0.001898672659 | N84: 0.0001467864177 | O84: 4.909025723e-06 | P84: 3.135890903e-06 | Q84: 40.40675113 | R84: 0.08523015114 | S84: 0.0852294976 | T84: 0.08635165447 | U84: 0.01301675791 | V84: 0.01301675791 | W84: 0.01301675791 | X84: 0.01301675791 | AA84: 25.17581712 | AD84: 3.302433372e-07 | AE84: 0 | AF84: 0 | AG84: 15.23093401
A85: 58 | B85: 0.06720741599 | C85: 0.33603708 | D85: =IF('Calculation Sheet'!$D$59="YES",(Vcc_max-C85)*ILIM_FINAL_TOL,(Vcc_max-C85)*($AE$13+IF(C85>=$AE$8,$AE$7,0)+(IF(C85>=$AE$6,C85,0)/$AE$5)+IF(C85>$AE$10,($AE$9/C85),0))) -> 5.83198538 | E85: 5.852394196 | F85: 0.452226539 | G85: 0.02899348885 | H85: 3.125665784e-05 | I85: 0.0006295307174 | J85: 0.001764884936 | K85: 2.801321785 | L85: 0.007483097131 | M85: 0.001931504447 | N85: 0.0001493250352 | O85: 4.99392659e-06 | P85: 3.190125677e-06 | Q85: 40.49945301 | R85: 0.08669308604 | S85: 0.08669242136 | T85: 0.08783369061 | U85: 0.01324162284 | V85: 0.01324162284 | W85: 0.01324162284 | X85: 0.01324162284 | AA85: 25.17884732 | AD85: 3.3603708e-07 | AE85: 0 | AF85: 0 | AG85: 15.32060569
A86: 59 | B86: 0.06836616454 | C86: 0.3418308227 | D86: =IF('Calculation Sheet'!$D$59="YES",(Vcc_max-C86)*ILIM_FINAL_TOL,(Vcc_max-C86)*($AE$13+IF(C86>=$AE$8,$AE$7,0)+(IF(C86>=$AE$6,C86,0)/$AE$5)+IF(C86>$AE$10,($AE$9/C86),0))) -> 5.829088574 | E86: 5.849985767 | F86: 0.4595969765 | G86: 0.02948489807 | H86: 3.178778173e-05 | I86: 0.0006402273565 | J86: 0.001764008735 | K86: 2.834718049 | L86: 0.007610169046 | M86: 0.001964319744 | N86: 0.0001518623912 | O86: 5.078785304e-06 | P86: 3.244333524e-06 | Q86: 40.59119284 | R86: 0.08815491164 | S86: 0.08815423585 | T86: 0.08931459784 | U86: 0.01346636719 | V86: 0.01346636719 | W86: 0.01346636719 | X86: 0.01346636719 | AA86: 25.18187565 | AD86: 3.418308227e-07 | AE86: 0 | AF86: 0 | AG86: 15.40931719
A87: 60 | B87: 0.06952491309 | C87: 0.3476245655 | D87: =IF('Calculation Sheet'!$D$59="YES",(Vcc_max-C87)*ILIM_FINAL_TOL,(Vcc_max-C87)*($AE$13+IF(C87>=$AE$8,$AE$7,0)+(IF(C87>=$AE$6,C87,0)/$AE$5)+IF(C87>$AE$10,($AE$9/C87),0))) -> 5.826191768 | E87: 5.847519706 | F87: 0.4669533475 | G87: 0.02997602037 | H87: 3.231864175e-05 | I87: 0.0006509186624 | J87: 0.001763132534 | K87: 2.867714384 | L87: 0.007737174989 | M87: 0.001997118552 | N87: 0.0001543984858 | O87: 5.163601868e-06 | P87: 3.298514445e-06 | Q87: 40.68199048 | R87: 0.08961562825 | S87: 0.08961494134 | T87: 0.09079437645 | U87: 0.01369099098 | V87: 0.01369099098 | W87: 0.01369099098 | X87: 0.01369099098 | AA87: 25.18490212 | AD87: 3.476245655e-07 | AE87: 0 | AF87: 0 | AG87: 15.49708836
A88: 61 | B88: 0.07068366165 | C88: 0.3534183082 | D88: =IF('Calculation Sheet'!$D$59="YES",(Vcc_max-C88)*ILIM_FINAL_TOL,(Vcc_max-C88)*($AE$13+IF(C88>=$AE$8,$AE$7,0)+(IF(C88>=$AE$6,C88,0)/$AE$5)+IF(C88>$AE$10,($AE$9/C88),0))) -> 5.823294962 | E88: 5.845002812 | F88: 0.4742956713 | G88: 0.03046685577 | H88: 3.28492379e-05 | I88: 0.0006616046349 | J88: 0.001762256334 | K88: 2.900315195 | L88: 0.007864114962 | M88: 0.002029900869 | N88: 0.0001569333188 | O88: 5.24837628e-06 | P88: 3.35266844e-06 | Q88: 40.77186442 | R88: 0.09107523612 | S88: 0.09107453812 | T88: 0.09227302672 | U88: 0.01391549421 | V88: 0.01391549421 | W88: 0.01391549421 | X88: 0.01391549421 | AA88: 25.18792672 | AD88: 3.534183082e-07 | AE88: 0 | AF88: 0 | AG88: 15.5839377
A89: 62 | B89: 0.0718424102 | C89: 0.359212051 | D89: =IF('Calculation Sheet'!$D$59="YES",(Vcc_max-C89)*ILIM_FINAL_TOL,(Vcc_max-C89)*($AE$13+IF(C89>=$AE$8,$AE$7,0)+(IF(C89>=$AE$6,C89,0)/$AE$5)+IF(C89>$AE$10,($AE$9/C89),0))) -> 5.820398156 | E89: 5.842441086 | F89: 0.4816239672 | G89: 0.0309574043 | H89: 3.337957019e-05 | I89: 0.0006722852741 | J89: 0.001761380133 | K89: 2.932524842 | L89: 0.007990988967 | M89: 0.002062666698 | N89: 0.0001594668904 | O89: 5.333108541e-06 | P89: 3.406795509e-06 | Q89: 40.86083197 | R89: 0.09253373556 | S89: 0.09253302647 | T89: 0.09375054896 | U89: 0.01413987688 | V89: 0.01413987688 | W89: 0.01413987688 | X89: 0.01413987688 | AA89: 25.19094945 | AD89: 3.59212051e-07 | AE89: 0 | AF89: 0 | AG89: 15.66988252
A90: 63 | B90: 0.07300115875 | C90: 0.3650057937 | D90: =IF('Calculation Sheet'!$D$59="YES",(Vcc_max-C90)*ILIM_FINAL_TOL,(Vcc_max-C90)*($AE$13+IF(C90>=$AE$8,$AE$7,0)+(IF(C90>=$AE$6,C90,0)/$AE$5)+IF(C90>$AE$10,($AE$9/C90),0))) -> 5.81750135 | E90: 5.839839817 | F90: 0.4889382544 | G90: 0.03144766598 | H90: 3.390963862e-05 | I90: 0.00068296058 | J90: 0.001760503932 | K90: 2.964347634 | L90: 0.008117797005 | M90: 0.002095416036 | N90: 0.0001619992006 | O90: 5.41779865e-06 | P90: 3.460895652e-06 | Q90: 40.94890933 | R90: 0.09399112684 | S90: 0.09399040667 | T90: 0.09522694344 | U90: 0.01436413899 | V90: 0.01436413899 | W90: 0.01436413899 | X90: 0.01436413899 | AA90: 25.19397032 | AD90: 3.650057937e-07 | AE90: 0 | AF90: 0 | AG90: 15.75493901
A91: 64 | B91: =($AE$11/2000)*(A91) -> 0.0741599073 | C91: =$AE$13*B91*10^-3/($AE$4*10^-6) -> 0.3707995365 | D91: =IF('Calculation Sheet'!$D$59="YES",(Vcc_max-C91)*ILIM_FINAL_TOL,(Vcc_max-C91)*($AE$13+IF(C91>=$AE$8,$AE$7,0)+(IF(C91>=$AE$6,C91,0)/$AE$5)+IF(C91>$AE$10,($AE$9/C91),0))) -> 5.814604544 | E91: 5.837203671 | F91: 0.4962385521 | G91: 0.03193764084 | H91: 3.443944318e-05 | I91: 0.0006936305527 | J91: 0.001759627731 | K91: 2.995787836 | L91: 0.008244539077 | M91: 0.002128148886 | N91: 0.0001645302493 | O91: 5.502446608e-06 | P91: 3.514968868e-06 | Q91: 41.03611173 | R91: 0.09544741024 | S91: 0.09544667901 | T91: 0.09670221046 | U91: 0.01458828056 | V91: 0.01458828056 | W91: 0.01458828056 | X91: 0.01458828056 | AA91: 25.19698932 | AD91: =IF(C91>=$AE$6,C91,0)/$AE$5 -> 3.707995365e-07 | AE91: =IF(C91>=$AE$8,$AE$7,0) -> 0 | AF91: =IF(C91>$AE$10,($AE$9/C91),0) -> 0 | AG91: =(Q91-AA91)*IF((Vcc_max-C91)>$F$4,1,0) -> 15.83912241
A92: 65 | B92: 0.07531865585 | C92: 0.3765932793 | D92: =IF('Calculation Sheet'!$D$59="YES",(Vcc_max-C92)*ILIM_FINAL_TOL,(Vcc_max-C92)*($AE$13+IF(C92>=$AE$8,$AE$7,0)+(IF(C92>=$AE$6,C92,0)/$AE$5)+IF(C92>$AE$10,($AE$9/C92),0))) -> 5.811707738 | E92: =(D91+((((EXP(-(B92-B91)*10^-3/$F$14)))*(E91-D91)))) -> 5.834536766 | F92: =(D91+((((EXP(-(B92-B91)*10^-3/$F$15)))*(F91-D91)))) -> 0.5035248794 | G92: =(D91+((((EXP(-(B92-B91)*10^-3/$F$16)))*(G91-D91)))) -> 0.0324273289 | H92: =(D91+((((EXP(-(B92-B91)*10^-3/$F$17)))*(H91-D91)))) -> 3.496898388e-05 | I92: =(D91+((((EXP(-(B92-B91)*10^-3/$F$18)))*(I91-D91)))) -> 0.0007042951921 | J92: =(D91+((((EXP(-(B92-B91)*10^-3/$F$19)))*(JX91-D91)))) -> 0.00175875153 | K92: =(D91+((((EXP(-(B92-B91)*10^-3/$F$20)))*(K91-D91)))) -> 3.026849663 | L92: =(D91+((((EXP(-(B92-B91)*10^-3/$F$21)))*(L91-D91)))) -> 0.008371215186 | M92: =(D91+((((EXP(-(B92-B91)*10^-3/$F$22)))*(M91-D91)))) -> 0.002160865246 | N92: 0.0001670600365 | O92: 5.587052414e-06 | P92: 3.569015158e-06 | Q92: 41.12245357 | R92: =(D91+((((EXP(-(B92-B91)*10^-3/$B$14)))*(R91-D91)))) -> 0.09690258605 | S92: =(D91+((((EXP(-(B92-B91)*10^-3/$B$15)))*(S91-D91)))) -> 0.09690184376 | T92: =(D91+((((EXP(-(B92-B91)*10^-3/$B$16)))*(T91-D91)))) -> 0.09817635031 | U92: =(D91+((((EXP(-(B92-B91)*10^-3/$B$17)))*(U91-D91)))) -> 0.01481230158 | V92: =(D91+((((EXP(-(B92-B91)*10^-3/$B$18)))*(V91-D91)))) -> 0.01481230158 | W92: 0.01481230158 | X92: 0.01481230158 | AA92: 25.20000645 | AD92: 3.765932793e-07 | AE92: 0 | AF92: 0 | AG92: 15.92244712
A93: 66 | B93: 0.0764774044 | C93: 0.382387022 | D93: =IF('Calculation Sheet'!$D$59="YES",(Vcc_max-C93)*ILIM_FINAL_TOL,(Vcc_max-C93)*($AE$13+IF(C93>=$AE$8,$AE$7,0)+(IF(C93>=$AE$6,C93,0)/$AE$5)+IF(C93>$AE$10,($AE$9/C93),0))) -> 5.808810931 | E93: 5.83184273 | F93: 0.5107972555 | G93: 0.03291673018 | H93: 3.549826072e-05 | I93: 0.0007149544982 | J93: 0.001757875329 | K93: 3.057537284 | L93: 0.008497825331 | M93: 0.002193565116 | N93: =(D92+((((EXP(-(B93-B92)*10^-3/$F$23)))*(N92-D92)))) -> 0.0001695885622 | O93: =(D92+((((EXP(-(B93-B92)*10^-3/$F$24)))*(O92-D92)))) -> 5.671616069e-06 | P93: =(D92+((((EXP(-(B93-B92)*10^-3/$F$25)))*(P92-D92)))) -> 3.623034522e-06 | Q93: =$C$6+(E93*$G$14)+(F93*$G$15)+(G93*$G$16)+(H93*$G$17)+(I93*$G$18)+(J93*$G$19)+(K93*$G$20)+(L93*$G$21)+(M93*$G$22) -> 41.20794846 | R93: 0.09835665454 | S93: 0.09835590121 | T93: 0.09964936328 | U93: 0.01503620206 | V93: 0.01503620206 | W93: =(D92+((((EXP(-(B93-B92)*10^-3/$B$19)))*(W92-D92)))) -> 0.01503620206 | X93: =(D92+((((EXP(-(B93-B92)*10^-3/$B$20)))*(X92-D92)))) -> 0.01503620206 | AA93: =$C$6+(R93*$C$14)+(S93*$C$15)+(T93*$C$16)+(U93*$C$17)+(V93*$C$18)+(W93*$C$19)+(X93*$C$20) -> 25.20302172 | AD93: 3.82387022e-07 | AE93: 0 | AF93: 0 | AG93: 16.00492674
A94: 67 | B94: 0.07763615295 | C94: 0.3881807648 | D94: =IF('Calculation Sheet'!$D$59="YES",(Vcc_max-C94)*ILIM_FINAL_TOL,(Vcc_max-C94)*($AE$13+IF(C94>=$AE$8,$AE$7,0)+(IF(C94>=$AE$6,C94,0)/$AE$5)+IF(C94>$AE$10,($AE$9/C94),0))) -> 5.805914125 | E94: 5.829124765 | F94: 0.5180556996 | G94: 0.03340584471 | H94: 3.602727369e-05 | I94: 0.000725608471 | J94: 0.001756999128 | K94: 3.087854822 | L94: 0.008624369516 | M94: 0.002226248498 | N94: 0.0001721158265 | O94: 5.756137573e-06 | P94: 3.67702696e-06 | Q94: 41.29260932 | R94: 0.099809616 | S94: 0.09980885165 | T94: 0.1011212497 | U94: 0.01525998201 | V94: 0.01525998201 | W94: 0.01525998201 | X94: 0.01525998201 | AA94: 25.20603512 | AD94: 3.881807648e-07 | AE94: 0 | AF94: 0 | AG94: 16.08657419
A95: 68 | B95: 0.07879490151 | C95: 0.3939745075 | D95: =IF('Calculation Sheet'!$D$59="YES",(Vcc_max-C95)*ILIM_FINAL_TOL,(Vcc_max-C95)*($AE$13+IF(C95>=$AE$8,$AE$7,0)+(IF(C95>=$AE$6,C95,0)/$AE$5)+IF(C95>$AE$10,($AE$9/C95),0))) -> 5.803017319 | E95: 5.826385695 | F95: 0.5253002306 | G95: 0.03389467252 | H95: 3.655602279e-05 | I95: 0.0007362571106 | J95: 0.001756122927 | K95: 3.117806357 | L95: 0.00875084774 | M95: 0.00225891539 | N95: 0.0001746418293 | O95: 5.840616925e-06 | P95: 3.730992472e-06 | Q95: 41.37644845 | R95: 0.1012614707 | S95: 0.1012606953 | T95: 0.1025920097 | U95: 0.01548364143 | V95: 0.01548364143 | W95: 0.01548364143 | X95: 0.01548364143 | AA95: 25.20904666 | AD95: 3.939745075e-07 | AE95: 0 | AF95: 0 | AG95: 16.16740179
A96: 69 | B96: 0.07995365006 | C96: 0.3997682503 | D96: =IF('Calculation Sheet'!$D$59="YES",(Vcc_max-C96)*ILIM_FINAL_TOL,(Vcc_max-C96)*($AE$13+IF(C96>=$AE$8,$AE$7,0)+(IF(C96>=$AE$6,C96,0)/$AE$5)+IF(C96>$AE$10,($AE$9/C96),0))) -> 5.800120512 | E96: 5.823628011 | F96: 0.5325308676 | G96: 0.03438321362 | H96: 3.708450804e-05 | I96: 0.000746900417 | J96: 0.001755246726 | K96: 3.147395921 | L96: 0.008877260006 | M96: 0.002291565794 | N96: 0.0001771665707 | O96: 5.925054126e-06 | P96: 3.784931058e-06 | Q96: 41.45947762 | R96: 0.102712219 | S96: 0.1027114326 | T96: 0.1040616438 | U96: 0.01570718032 | V96: 0.01570718032 | W96: 0.01570718032 | X96: 0.01570718032 | AA96: 25.21205633 | AD96: 3.997682503e-07 | AE96: 0 | AF96: 0 | AG96: 16.24742129
A97: 70 | B97: 0.08111239861 | C97: 0.405561993 | D97: =IF('Calculation Sheet'!$D$59="YES",(Vcc_max-C97)*ILIM_FINAL_TOL,(Vcc_max-C97)*($AE$13+IF(C97>=$AE$8,$AE$7,0)+(IF(C97>=$AE$6,C97,0)/$AE$5)+IF(C97>$AE$10,($AE$9/C97),0))) -> 5.797223706 | E97: 5.820853909 | F97: 0.5397476298 | G97: 0.03487146804 | H97: 3.761272941e-05 | I97: 0.0007575383901 | J97: 0.001754370525 | K97: 3.176627503 | L97: 0.009003606316 | M97: 0.002324199709 | N97: 0.0001796900506 | O97: 6.009449175e-06 | P97: 3.838842718e-06 | Q97: 41.54170807 | R97: 0.104161861 | S97: 0.1041610636 | T97: 0.1055301522 | U97: 0.01593059869 | V97: 0.01593059869 | W97: 0.01593059869 | X97: 0.01593059869 | AA97: 25.21506413 | AD97: 4.05561993e-07 | AE97: 0 | AF97: 0 | AG97: 16.32664394
A98: 71 | B98: 0.08227114716 | C98: 0.4113557358 | D98: =IF('Calculation Sheet'!$D$59="YES",(Vcc_max-C98)*ILIM_FINAL_TOL,(Vcc_max-C98)*($AE$13+IF(C98>=$AE$8,$AE$7,0)+(IF(C98>=$AE$6,C98,0)/$AE$5)+IF(C98>$AE$10,($AE$9/C98),0))) -> 5.794326899 | E98: 5.818065327 | F98: 0.546950536 | G98: 0.03535943581 | H98: 3.814068693e-05 | I98: 0.00076817103 | J98: 0.001753494323 | K98: 3.205505047 | L98: 0.009129886669 | M98: 0.002356817135 | N98: 0.000182212269 | O98: 6.093802073e-06 | P98: 3.892727452e-06 | Q98: 41.62315061 | R98: 0.1056103972 | S98: 0.1056095888 | T98: 0.1069975351 | U98: 0.01615389654 | V98: 0.01615389654 | W98: 0.01615389654 | X98: 0.01615389654 | AA98: 25.21807008 | AD98: 4.113557358e-07 | AE98: 0 | AF98: 0 | AG98: 16.40508054
A99: 72 | B99: 0.08342989571 | C99: 0.4171494786 | D99: =IF('Calculation Sheet'!$D$59="YES",(Vcc_max-C99)*ILIM_FINAL_TOL,(Vcc_max-C99)*($AE$13+IF(C99>=$AE$8,$AE$7,0)+(IF(C99>=$AE$6,C99,0)/$AE$5)+IF(C99>$AE$10,($AE$9/C99),0))) -> 5.791430092 | E99: 5.815263974 | F99: 0.5541396054 | G99: 0.03584711695 | H99: 3.866838058e-05 | I99: 0.0007787983367 | J99: 0.001752618122 | K99: 3.234032456 | L99: 0.009256101069 | M99: 0.002389418072 | N99: 0.000184733226 | O99: 6.178112819e-06 | P99: 3.94658526e-06 | Q99: 41.70381564 | R99: 0.1070578277 | S99: 0.1070570084 | T99: 0.1084637929 | U99: 0.01637707389 | V99: 0.01637707389 | W99: 0.01637707389 | X99: 0.01637707389 | AA99: 25.22107415 | AD99: 4.171494786e-07 | AE99: 0 | AF99: 0 | AG99: 16.48274149
A100: 73 | B100: 0.08458864426 | C100: 0.4229432213 | D100: =IF('Calculation Sheet'!$D$59="YES",(Vcc_max-C100)*ILIM_FINAL_TOL,(Vcc_max-C100)*($AE$13+IF(C100>=$AE$8,$AE$7,0)+(IF(C100>=$AE$6,C100,0)/$AE$5)+IF(C100>$AE$10,($AE$9/C100),0))) -> 5.788533286 | E100: 5.812451356 | F100: 0.5613148567 | G100: 0.03633451149 | H100: 3.919581036e-05 | I100: 0.0007894203102 | J100: 0.001751741921 | K100: 3.262213586 | L100: 0.009382249516 | M100: 0.002422002521 | N100: 0.0001872529215 | O100: 6.262381413e-06 | P100: 4.000416142e-06 | Q100: 41.78371318 | R100: 0.1085041529 | S100: 0.1085033226 | T100: 0.1099289258 | U100: 0.01660013072 | V100: 0.01660013072 | W100: 0.01660013072 | X100: 0.01660013072 | AA100: 25.22407636 | AD100: 4.229432213e-07 | AE100: 0 | AF100: 0 | AG100: 16.55963682
A101: 74 | B101: 0.08574739282 | C101: 0.4287369641 | D101: =IF('Calculation Sheet'!$D$59="YES",(Vcc_max-C101)*ILIM_FINAL_TOL,(Vcc_max-C101)*($AE$13+IF(C101>=$AE$8,$AE$7,0)+(IF(C101>=$AE$6,C101,0)/$AE$5)+IF(C101>$AE$10,($AE$9/C101),0))) -> 5.785636479 | E101: 5.809628803 | F101: 0.5684763091 | G101: 0.03682161944 | H101: 3.972297628e-05 | I101: 0.0008000369506 | J101: 0.00175086572 | K101: 3.290052255 | L101: 0.009508332012 | M101: 0.002454570481 | N101: 0.0001897713556 | O101: 6.346607857e-06 | P101: 4.054220097e-06 | Q101: 41.86285293 | R101: 0.109949373 | S101: 0.1099485317 | T101: 0.1113929342 | U101: 0.01682306706 | V101: 0.01682306706 | W101: 0.01682306706 | X101: 0.01682306706 | AA101: 25.22707671 | AD101: 4.287369641e-07 | AE101: 0 | AF101: 0 | AG101: 16.63577622
A102: 75 | B102: 0.08690614137 | C102: 0.4345307068 | D102: =IF('Calculation Sheet'!$D$59="YES",(Vcc_max-C102)*ILIM_FINAL_TOL,(Vcc_max-C102)*($AE$13+IF(C102>=$AE$8,$AE$7,0)+(IF(C102>=$AE$6,C102,0)/$AE$5)+IF(C102>$AE$10,($AE$9/C102),0))) -> 5.782739672 | E102: 5.806797487 | F102: 0.5756239812 | G102: 0.03730844084 | H102: 4.024987834e-05 | I102: 0.0008106482577 | J102: 0.001749989519 | K102: 3.317552236 | L102: 0.009634348559 | M102: 0.002487121952 | N102: 0.0001922885282 | O102: 6.430792149e-06 | P102: 4.107997126e-06 | Q102: 41.94124429 | R102: 0.1113934883 | S102: 0.1113926362 | T102: 0.1128558184 | U102: 0.01704588289 | V102: 0.01704588289 | W102: 0.01704588289 | X102: 0.01704588289 | AA102: 25.2300752 | AD102: 4.345307068e-07 | AE102: 0 | AF102: 0 | AG102: 16.71116909
A103: 76 | B103: 0.08806488992 | C103: 0.4403244496 | D103: =IF('Calculation Sheet'!$D$59="YES",(Vcc_max-C103)*ILIM_FINAL_TOL,(Vcc_max-C103)*($AE$13+IF(C103>=$AE$8,$AE$7,0)+(IF(C103>=$AE$6,C103,0)/$AE$5)+IF(C103>$AE$10,($AE$9/C103),0))) -> 5.779842865 | E103: 5.803958443 | F103: 0.5827578922 | G103: 0.03779497571 | H103: 4.077651653e-05 | I103: 0.0008212542317 | J103: 0.001749113318 | K103: 3.34471726 | L103: 0.009760299157 | M103: 0.002519656936 | N103: 0.0001948044394 | O103: 6.514934289e-06 | P103: 4.16174723e-06 | Q103: 42.01889636 | R103: 0.1128364992 | S103: 0.1128356361 | T103: 0.1143175785 | U103: 0.01726857824 | V103: 0.01726857824 | W103: 0.01726857824 | X103: 0.01726857824 | AA103: 25.23307182 | AD103: 4.403244496e-07 | AE103: 0 | AF103: 0 | AG103: 16.78582454
A104: 77 | B104: 0.08922363847 | C104: 0.4461181924 | D104: =IF('Calculation Sheet'!$D$59="YES",(Vcc_max-C104)*ILIM_FINAL_TOL,(Vcc_max-C104)*($AE$13+IF(C104>=$AE$8,$AE$7,0)+(IF(C104>=$AE$6,C104,0)/$AE$5)+IF(C104>$AE$10,($AE$9/C104),0))) -> 5.776946058 | E104: 5.801112582 | F104: 0.5898780607 | G104: 0.03828122406 | H104: 4.130289086e-05 | I104: 0.0008318548725 | J104: 0.001748237116 | K104: 3.371551019 | L104: 0.009886183808 | M104: 0.002552175431 | N104: 0.000197319089 | O104: 6.599034278e-06 | P104: 4.215470407e-06 | Q104: 42.09581801 | R104: 0.1142784058 | S104: 0.1142775318 | T104: 0.115778215 | U104: 0.01749115309 | V104: 0.01749115309 | W104: 0.01749115309 | X104: 0.01749115309 | AA104: 25.23606658 | AD104: 4.461181924e-07 | AE104: 0 | AF104: 0 | AG104: 16.85975143
A105: 78 | B105: 0.09038238702 | C105: 0.4519119351 | D105: =IF('Calculation Sheet'!$D$59="YES",(Vcc_max-C105)*ILIM_FINAL_TOL,(Vcc_max-C105)*($AE$13+IF(C105>=$AE$8,$AE$7,0)+(IF(C105>=$AE$6,C105,0)/$AE$5)+IF(C105>$AE$10,($AE$9/C105),0))) -> 5.774049251 | E105: 5.79826071 | F105: 0.5969845057 | G105: 0.03876718594 | H105: 4.182900133e-05 | I105: 0.0008424501802 | J105: 0.001747360915 | K105: 3.398057164 | L105: 0.01001200251 | M105: 0.002584677438 | N105: 0.0001998324773 | O105: 6.683092115e-06 | P105: 4.269166658e-06 | Q105: 42.17201787 | R105: 0.1157192085 | S105: 0.1157183236 | T105: 0.117237728 | U105: 0.01771360746 | V105: 0.01771360746 | W105: 0.01771360746 | X105: 0.01771360746 | AA105: 25.23905947 | AD105: 4.519119351e-07 | AE105: 0 | AF105: 0 | AG105: 16.93295839
A106: 79 | B106: 0.09154113557 | C106: 0.4577056779 | D106: =IF('Calculation Sheet'!$D$59="YES",(Vcc_max-C106)*ILIM_FINAL_TOL,(Vcc_max-C106)*($AE$13+IF(C106>=$AE$8,$AE$7,0)+(IF(C106>=$AE$6,C106,0)/$AE$5)+IF(C106>$AE$10,($AE$9/C106),0))) -> 5.771152444 | E106: 5.795403534 | F106: 0.6040772459 | G106: 0.03925286135 | H106: 4.235484793e-05 | I106: 0.0008530401547 | J106: 0.001746484714 | K106: 3.424239304 | L106: 0.01013775528 | M106: 0.002617162957 | N106: 0.000202344604 | O106: 6.767107801e-06 | P106: 4.322835983e-06 | Q106: 42.24750434 | R106: 0.1171589075 | S106: 0.1171580117 | T106: 0.118696118 | U106: 0.01793594136 | V106: 0.01793594136 | W106: 0.01793594136 | X106: 0.01793594136 | AA106: 25.2420505 | AD106: 4.577056779e-07 | AE106: 0 | AF106: 0 | AG106: 17.00545384
A107: 80 | B107: 0.09269988413 | C107: 0.4634994206 | D107: =IF('Calculation Sheet'!$D$59="YES",(Vcc_max-C107)*ILIM_FINAL_TOL,(Vcc_max-C107)*($AE$13+IF(C107>=$AE$8,$AE$7,0)+(IF(C107>=$AE$6,C107,0)/$AE$5)+IF(C107>$AE$10,($AE$9/C107),0))) -> 5.768255637 | E107: 5.792541682 | F107: 0.6111563002 | G107: 0.03973825033 | H107: 4.288043066e-05 | I107: 0.0008636247961 | J107: 0.001745608513 | K107: 3.45010101 | L107: 0.01026344209 | M107: 0.002649631988 | N107: 0.0002048554694 | O107: 6.851081336e-06 | P107: 4.376478381e-06 | Q107: 42.32228566 | R107: 0.1185975032 | S107: 0.1185965965 | T107: 0.1201533851 | U107: 0.01815815477 | V107: 0.01815815477 | W107: 0.01815815477 | X107: 0.01815815477 | AA107: 25.24503967 | AD107: 4.634994206e-07 | AE107: 0 | AF107: 0 | AG107: 17.07724599
A108: 81 | B108: 0.09385863268 | C108: 0.4692931634 | D108: =IF('Calculation Sheet'!$D$59="YES",(Vcc_max-C108)*ILIM_FINAL_TOL,(Vcc_max-C108)*($AE$13+IF(C108>=$AE$8,$AE$7,0)+(IF(C108>=$AE$6,C108,0)/$AE$5)+IF(C108>$AE$10,($AE$9/C108),0))) -> 5.76535883 | E108: 5.789675704 | F108: 0.6182216871 | G108: 0.04022335289 | H108: 4.340574954e-05 | I108: 0.0008742041044 | J108: 0.001744732311 | K108: 3.475645813 | L108: 0.01038906297 | M108: 0.002682084531 | N108: 0.0002073650732 | O108: 6.935012719e-06 | P108: 4.430093854e-06 | Q108: 42.39636985 | R108: 0.1200349957 | S108: 0.1200340782 | T108: 0.1216095297 | U108: 0.01838024772 | V108: 0.01838024772 | W108: 0.01838024772 | X108: 0.01838024772 | AA108: 25.24802698 | AD108: 4.692931634e-07 | AE108: 0 | AF108: 0 | AG108: 17.14834287
A109: 82 | B109: 0.09501738123 | C109: 0.4750869061 | D109: =IF('Calculation Sheet'!$D$59="YES",(Vcc_max-C109)*ILIM_FINAL_TOL,(Vcc_max-C109)*($AE$13+IF(C109>=$AE$8,$AE$7,0)+(IF(C109>=$AE$6,C109,0)/$AE$5)+IF(C109>$AE$10,($AE$9/C109),0))) -> 5.762462022 | E109: 5.786806089 | F109: 0.6252734256 | G109: 0.04070816907 | H109: 4.393080455e-05 | I109: 0.0008847780796 | J109: 0.00174385611 | K109: 3.500877205 | L109: 0.01051461791 | M109: 0.002714520587 | N109: 0.0002098734156 | O109: 7.01890195e-06 | P109: 4.483682401e-06 | Q109: 42.46976478 | R109: 0.1214713855 | S109: 0.121470457 | T109: 0.1230645521 | U109: 0.01860222021 | V109: 0.01860222021 | W109: 0.01860222021 | X109: 0.01860222021 | AA109: 25.25101243 | AD109: 4.750869061e-07 | AE109: 0 | AF109: 0 | AG109: 17.21875235
A110: 83 | B110: 0.09617612978 | C110: 0.4808806489 | D110: =IF('Calculation Sheet'!$D$59="YES",(Vcc_max-C110)*ILIM_FINAL_TOL,(Vcc_max-C110)*($AE$13+IF(C110>=$AE$8,$AE$7,0)+(IF(C110>=$AE$6,C110,0)/$AE$5)+IF(C110>$AE$10,($AE$9/C110),0))) -> 5.759565215 | E110: 5.783933264 | F110: 0.6323115343 | G110: 0.04119269889 | H110: 4.445559569e-05 | I110: 0.0008953467217 | J110: 0.001742979909 | K110: 3.525798639 | L110: 0.01064010691 | M110: 0.002746940155 | N110: 0.0002123804966 | O110: 7.102749031e-06 | P110: 4.537244022e-06 | Q110: 42.54247815 | R110: 0.1229066727 | S110: 0.1229057334 | T110: 0.1245184525 | U110: 0.01882407223 | V110: 0.01882407223 | W110: 0.01882407223 | X110: 0.01882407223 | AA110: 25.25399601 | AD110: 4.808806489e-07 | AE110: 0 | AF110: 0 | AG110: 17.28848214
A111: 84 | B111: 0.09733487833 | C111: 0.4866743917 | D111: =IF('Calculation Sheet'!$D$59="YES",(Vcc_max-C111)*ILIM_FINAL_TOL,(Vcc_max-C111)*($AE$13+IF(C111>=$AE$8,$AE$7,0)+(IF(C111>=$AE$6,C111,0)/$AE$5)+IF(C111>$AE$10,($AE$9/C111),0))) -> 5.756668407 | E111: 5.781057609 | F111: 0.6393360318 | G111: 0.04167694237 | H111: 4.498012297e-05 | I111: 0.0009059100306 | J111: 0.001742103707 | K111: 3.550413531 | L111: 0.01076552997 | M111: 0.002779343235 | N111: 0.0002148863161 | O111: 7.186553959e-06 | P111: 4.590778716e-06 | Q111: 42.61451752 | R111: 0.1243408577 | S111: 0.1243399075 | T111: 0.1259712312 | U111: 0.0190458038 | V111: 0.0190458038 | W111: 0.0190458038 | X111: 0.0190458038 | AA111: 25.25697773 | AD111: 4.866743917e-07 | AE111: 0 | AF111: 0 | AG111: 17.35753978
A112: 85 | B112: 0.09849362688 | C112: 0.4924681344 | D112: =IF('Calculation Sheet'!$D$59="YES",(Vcc_max-C112)*ILIM_FINAL_TOL,(Vcc_max-C112)*($AE$13+IF(C112>=$AE$8,$AE$7,0)+(IF(C112>=$AE$6,C112,0)/$AE$5)+IF(C112>$AE$10,($AE$9/C112),0))) -> 5.7537716 | E112: 5.778179459 | F112: 0.6463469368 | G112: 0.04216089953 | H112: 4.550438639e-05 | I112: 0.0009164680065 | J112: 0.001741227506 | K112: 3.57472526 | L112: 0.0108908871 | M112: 0.002811729828 | N112: 0.0002173908741 | O112: 7.270316736e-06 | P112: 4.644286484e-06 | Q112: 42.6858903 | R112: 0.1257739406 | S112: 0.1257729797 | T112: 0.1274228886 | U112: 0.01926741491 | V112: 0.01926741491 | W112: 0.01926741491 | X112: 0.01926741491 | AA112: 25.25995759 | AD112: 4.924681344e-07 | AE112: 0 | AF112: 0 | AG112: 17.42593271
A113: 86 | B113: 0.09965237543 | C113: 0.4982618772 | D113: =IF('Calculation Sheet'!$D$59="YES",(Vcc_max-C113)*ILIM_FINAL_TOL,(Vcc_max-C113)*($AE$13+IF(C113>=$AE$8,$AE$7,0)+(IF(C113>=$AE$6,C113,0)/$AE$5)+IF(C113>$AE$10,($AE$9/C113),0))) -> 5.750874792 | E113: 5.775299106 | F113: 0.6533442679 | G113: 0.04264457041 | H113: 4.602838594e-05 | I113: 0.0009270206494 | J113: 0.001740351305 | K113: 3.598737165 | L113: 0.0110161783 | M113: 0.002844099933 | N113: 0.0002198941707 | O113: 7.354037362e-06 | P113: 4.697767326e-06 | Q113: 42.7566038 | R113: 0.1272059219 | S113: 0.1272049502 | T113: 0.1288734249 | U113: 0.01948890558 | V113: 0.01948890558 | W113: 0.01948890558 | X113: 0.01948890558 | AA113: 25.26293559 | AD113: 4.982618772e-07 | AE113: 0 | AF113: 0 | AG113: 17.4936682
A114: 87 | B114: 0.100811124 | C114: 0.5040556199 | D114: =IF('Calculation Sheet'!$D$59="YES",(Vcc_max-C114)*ILIM_FINAL_TOL,(Vcc_max-C114)*($AE$13+IF(C114>=$AE$8,$AE$7,0)+(IF(C114>=$AE$6,C114,0)/$AE$5)+IF(C114>$AE$10,($AE$9/C114),0))) -> 5.747977985 | E114: 5.772416812 | F114: 0.6603280437 | G114: 0.04312795501 | H114: 4.655212163e-05 | I114: 0.0009375679591 | J114: 0.001739475103 | K114: 3.622452551 | L114: 0.01114140356 | M114: 0.002876453551 | N114: 0.0002223962059 | O114: 7.437715837e-06 | P114: 4.751221242e-06 | Q114: 42.82666516 | R114: 0.1286368018 | S114: 0.1286358192 | T114: 0.1303228404 | U114: 0.01971027581 | V114: 0.01971027581 | W114: 0.01971027581 | X114: 0.01971027581 | AA114: 25.26591173 | AD114: 5.040556199e-07 | AE114: 0 | AF114: 0 | AG114: 17.56075343
A115: 88 | B115: 0.1019698725 | C115: 0.5098493627 | D115: =IF('Calculation Sheet'!$D$59="YES",(Vcc_max-C115)*ILIM_FINAL_TOL,(Vcc_max-C115)*($AE$13+IF(C115>=$AE$8,$AE$7,0)+(IF(C115>=$AE$6,C115,0)/$AE$5)+IF(C115>$AE$10,($AE$9/C115),0))) -> 5.745081177 | E115: 5.769532805 | F115: 0.6672982829 | G115: 0.04361105338 | H115: 4.707559346e-05 | I115: 0.0009481099358 | J115: 0.001738598902 | K115: 3.645874685 | L115: 0.01126656289 | M115: 0.002908790682 | N115: 0.0002248969795 | O115: 7.52135216e-06 | P115: 4.804648232e-06 | Q115: 42.89608144 | R115: 0.1300665806 | S115: 0.1300655872 | T115: 0.1317711354 | U115: 0.0199315256 | V115: 0.0199315256 | W115: 0.0199315256 | X115: 0.0199315256 | AA115: 25.26888601 | AD115: 5.098493627e-07 | AE115: 0 | AF115: 0 | AG115: 17.62719543
A116: 89 | B116: 0.1031286211 | C116: 0.5156431054 | D116: =IF('Calculation Sheet'!$D$59="YES",(Vcc_max-C116)*ILIM_FINAL_TOL,(Vcc_max-C116)*($AE$13+IF(C116>=$AE$8,$AE$7,0)+(IF(C116>=$AE$6,C116,0)/$AE$5)+IF(C116>$AE$10,($AE$9/C116),0))) -> 5.742184369 | E116: 5.766647287 | F116: 0.6742550039 | G116: 0.04409386553 | H116: 4.759880142e-05 | I116: 0.0009586465795 | J116: 0.0017377227 | K116: 3.669006798 | L116: 0.01139165629 | M116: 0.002941111326 | N116: 0.0002273964918 | O116: 7.604946331e-06 | P116: 4.858048296e-06 | Q116: 42.96485958 | R116: 0.1314952585 | S116: 0.1314942543 | T116: 0.1332183101 | U116: 0.02015265496 | V116: 0.02015265496 | W116: 0.02015265496 | X116: 0.02015265496 | AA116: 25.27185843 | AD116: 5.156431054e-07 | AE116: 0 | AF116: 0 | AG116: 17.69300114
A117: 90 | B117: 0.1042873696 | C117: 0.5214368482 | D117: =IF('Calculation Sheet'!$D$59="YES",(Vcc_max-C117)*ILIM_FINAL_TOL,(Vcc_max-C117)*($AE$13+IF(C117>=$AE$8,$AE$7,0)+(IF(C117>=$AE$6,C117,0)/$AE$5)+IF(C117>$AE$10,($AE$9/C117),0))) -> 5.739287561 | E117: 5.763760437 | F117: 0.6811982252 | G117: 0.04457639148 | H117: 4.812174552e-05 | I117: 0.0009691778902 | J117: 0.001736846499 | K117: 3.691852087 | L117: 0.01151668376 | M117: 0.002973415482 | N117: 0.0002298947426 | O117: 7.688498352e-06 | P117: 4.911421434e-06 | Q117: 43.03300639 | R117: 0.1329228358 | S117: 0.1329218209 | T117: 0.134664365 | U117: 0.02037366389 | V117: 0.02037366389 | W117: 0.02037366389 | X117: 0.02037366389 | AA117: 25.27482899 | AD117: 5.214368482e-07 | AE117: 0 | AF117: 0 | AG117: 17.7581774
A118: 91 | B118: 0.1054461182 | C118: 0.527230591 | D118: =IF('Calculation Sheet'!$D$59="YES",(Vcc_max-C118)*ILIM_FINAL_TOL,(Vcc_max-C118)*($AE$13+IF(C118>=$AE$8,$AE$7,0)+(IF(C118>=$AE$6,C118,0)/$AE$5)+IF(C118>$AE$10,($AE$9/C118),0))) -> 5.736390753 | E118: 5.760872412 | F118: 0.6881279654 | G118: 0.04505863127 | H118: 4.864442575e-05 | I118: 0.0009797038678 | J118: 0.001735970297 | K118: 3.714413712 | L118: 0.01164164531 | M118: 0.003005703152 | N118: 0.0002323917319 | O118: 7.77200822e-06 | P118: 4.964767646e-06 | Q118: 43.10052862 | R118: 0.1343493128 | S118: 0.1343482871 | T118: 0.1361093002 | U118: 0.0205945524 | V118: 0.0205945524 | W118: 0.0205945524 | X118: 0.0205945524 | AA118: 25.27779769 | AD118: 5.27230591e-07 | AE118: 0 | AF118: 0 | AG118: 17.82273094
A119: 92 | B119: 0.1066048667 | C119: 0.5330243337 | D119: =IF('Calculation Sheet'!$D$59="YES",(Vcc_max-C119)*ILIM_FINAL_TOL,(Vcc_max-C119)*($AE$13+IF(C119>=$AE$8,$AE$7,0)+(IF(C119>=$AE$6,C119,0)/$AE$5)+IF(C119>$AE$10,($AE$9/C119),0))) -> 5.733493945 | E119: 5.75798335 | F119: 0.6950442429 | G119: 0.04554058491 | H119: 4.916684212e-05 | I119: 0.0009902245124 | J119: 0.001735094096 | K119: 3.736694799 | L119: 0.01176654093 | M119: 0.003037974335 | N119: 0.0002348874598 | O119: 7.855475937e-06 | P119: 5.018086932e-06 | Q119: 43.1674329 | R119: 0.1357746898 | S119: 0.1357736534 | T119: 0.1375531161 | U119: 0.02081532048 | V119: 0.02081532048 | W119: 0.02081532048 | X119: 0.02081532048 | AA119: 25.28076453 | AD119: 5.330243337e-07 | AE119: 0 | AF119: 0 | AG119: 17.88666837
A120: 93 | B120: 0.1077636153 | C120: 0.5388180765 | D120: =IF('Calculation Sheet'!$D$59="YES",(Vcc_max-C120)*ILIM_FINAL_TOL,(Vcc_max-C120)*($AE$13+IF(C120>=$AE$8,$AE$7,0)+(IF(C120>=$AE$6,C120,0)/$AE$5)+IF(C120>$AE$10,($AE$9/C120),0))) -> 5.730597137 | E120: 5.755093374 | F120: 0.7019470762 | G120: 0.04602225243 | H120: 4.968899463e-05 | I120: 0.001000739824 | J120: 0.001734217894 | K120: 3.758698439 | L120: 0.01189137063 | M120: 0.003070229031 | N120: 0.0002373819262 | O120: 7.938901503e-06 | P120: 5.071379291e-06 | Q120: 43.23372576 | R120: 0.1371989671 | S120: 0.13719792 | T120: 0.1389958129 | U120: 0.02103596816 | V120: 0.02103596816 | W120: 0.02103596816 | X120: 0.02103596816 | AA120: 25.28372951 | AD120: 5.388180765e-07 | AE120: 0 | AF120: 0 | AG120: 17.94999625
A121: 94 | B121: 0.1089223638 | C121: 0.5446118192 | D121: =IF('Calculation Sheet'!$D$59="YES",(Vcc_max-C121)*ILIM_FINAL_TOL,(Vcc_max-C121)*($AE$13+IF(C121>=$AE$8,$AE$7,0)+(IF(C121>=$AE$6,C121,0)/$AE$5)+IF(C121>$AE$10,($AE$9/C121),0))) -> 5.727700329 | E121: 5.752202592 | F121: 0.7088364837 | G121: 0.04650363386 | H121: 5.021088327e-05 | I121: 0.001011249803 | J121: 0.001733341693 | K121: 3.78042769 | L121: 0.0120161344 | M121: 0.003102467241 | N121: 0.0002398751312 | O121: 8.022284917e-06 | P121: 5.124644724e-06 | Q121: 43.29941365 | R121: 0.138622145 | S121: 0.1386210871 | T121: 0.1404373909 | U121: 0.02125649543 | V121: 0.02125649543 | W121: 0.02125649543 | X121: 0.02125649543 | AA121: 25.28669263 | AD121: 5.446118192e-07 | AE121: 0 | AF121: 0 | AG121: 18.01272102
A122: 95 | B122: 0.1100811124 | C122: 0.550405562 | D122: =IF('Calculation Sheet'!$D$59="YES",(Vcc_max-C122)*ILIM_FINAL_TOL,(Vcc_max-C122)*($AE$13+IF(C122>=$AE$8,$AE$7,0)+(IF(C122>=$AE$6,C122,0)/$AE$5)+IF(C122>$AE$10,($AE$9/C122),0))) -> 5.724803521 | E122: 5.749311099 | F122: 0.7157124837 | G122: 0.04698472921 | H122: 5.073250805e-05 | I122: 0.001021754448 | J122: 0.001732465491 | K122: 3.801885575 | L122: 0.01214083226 | M122: 0.003134688964 | N122: 0.0002423670748 | O122: 8.10562618e-06 | P122: 5.177883231e-06 | Q122: 43.36450293 | R122: 0.1400442236 | S122: 0.140043155 | T122: 0.1418778504 | U122: 0.02147690229 | V122: 0.02147690229 | W122: 0.02147690229 | X122: 0.02147690229 | AA122: 25.28965389 | AD122: 5.50405562e-07 | AE122: 0 | AF122: 0 | AG122: 18.07484904
A123: 96 | B123: 0.111239861 | C123: 0.5561993048 | D123: =IF('Calculation Sheet'!$D$59="YES",(Vcc_max-C123)*ILIM_FINAL_TOL,(Vcc_max-C123)*($AE$13+IF(C123>=$AE$8,$AE$7,0)+(IF(C123>=$AE$6,C123,0)/$AE$5)+IF(C123>$AE$10,($AE$9/C123),0))) -> 5.721906713 | E123: 5.746418979 | F123: 0.7225750947 | G123: 0.04746553852 | H123: 5.125386897e-05 | I123: 0.001032253761 | J123: 0.001731589289 | K123: 3.823075085 | L123: 0.01226546419 | M123: 0.0031668942 | N123: 0.0002448577568 | O123: 8.188925292e-06 | P123: 5.231094812e-06 | Q123: 43.42899989 | R123: 0.1414652034 | S123: 0.1414641241 | T123: 0.1433171918 | U123: 0.02169718875 | V123: 0.02169718875 | W123: 0.02169718875 | X123: 0.02169718875 | AA123: 25.2926133 | AD123: 5.561993048e-07 | AE123: 0 | AF123: 0 | AG123: 18.1363866
A124: 97 | B124: 0.1123986095 | C124: 0.5619930475 | D124: =IF('Calculation Sheet'!$D$59="YES",(Vcc_max-C124)*ILIM_FINAL_TOL,(Vcc_max-C124)*($AE$13+IF(C124>=$AE$8,$AE$7,0)+(IF(C124>=$AE$6,C124,0)/$AE$5)+IF(C124>$AE$10,($AE$9/C124),0))) -> 5.719009904 | E124: 5.743526305 | F124: 0.729424335 | G124: 0.0479460618 | H124: 5.177496602e-05 | I124: 0.00104274774 | J124: 0.001730713088 | K124: 3.843999176 | L124: 0.01239003021 | M124: 0.003199082951 | N124: 0.0002473471775 | O124: 8.272182251e-06 | P124: 5.284279466e-06 | Q124: 43.49291073 | R124: 0.1428850846 | S124: 0.1428839946 | T124: 0.1447554152 | U124: 0.02191735481 | V124: 0.02191735481 | W124: 0.02191735481 | X124: 0.02191735481 | AA124: 25.29557084 | AD124: 5.619930475e-07 | AE124: 0 | AF124: 0 | AG124: 18.19733988
A125: 98 | B125: 0.1135573581 | C125: 0.5677867903 | D125: =IF('Calculation Sheet'!$D$59="YES",(Vcc_max-C125)*ILIM_FINAL_TOL,(Vcc_max-C125)*($AE$13+IF(C125>=$AE$8,$AE$7,0)+(IF(C125>=$AE$6,C125,0)/$AE$5)+IF(C125>$AE$10,($AE$9/C125),0))) -> 5.716113096 | E125: 5.740633144 | F125: 0.7362602229 | G125: 0.04842629908 | H125: 5.229579921e-05 | I125: 0.001053236387 | J125: 0.001729836886 | K125: 3.864660775 | L125: 0.0125145303 | M125: 0.003231255214 | N125: 0.0002498353367 | O125: 8.35539706e-06 | P125: 5.337437195e-06 | Q125: 43.55624155 | R125: 0.1443038674 | S125: 0.1443027667 | T125: 0.146192521 | U125: 0.02213740049 | V125: 0.02213740049 | W125: 0.02213740049 | X125: 0.02213740049 | AA125: 25.29852653 | AD125: 5.677867903e-07 | AE125: 0 | AF125: 0 | AG125: 18.25771502
A126: 99 | B126: 0.1147161066 | C126: 0.573580533 | D126: =IF('Calculation Sheet'!$D$59="YES",(Vcc_max-C126)*ILIM_FINAL_TOL,(Vcc_max-C126)*($AE$13+IF(C126>=$AE$8,$AE$7,0)+(IF(C126>=$AE$6,C126,0)/$AE$5)+IF(C126>$AE$10,($AE$9/C126),0))) -> 5.713216287 | E126: 5.737739552 | F126: 0.7430827767 | G126: 0.04890625039 | H126: 5.281636853e-05 | I126: 0.001063719701 | J126: 0.001728960684 | K126: 3.885062772 | L126: 0.01263896449 | M126: 0.003263410992 | N126: 0.0002523222344 | O126: 8.438569717e-06 | P126: 5.390567998e-06 | Q126: 43.6189984 | R126: 0.1457215522 | S126: 0.1457204408 | T126: 0.1476285095 | U126: 0.02235732578 | V126: 0.02235732578 | W126: 0.02235732578 | X126: 0.02235732578 | AA126: 25.30148036 | AD126: 5.73580533e-07 | AE126: 0 | AF126: 0 | AG126: 18.31751805
A127: 100 | B127: 0.1158748552 | C127: 0.5793742758 | D127: =IF('Calculation Sheet'!$D$59="YES",(Vcc_max-C127)*ILIM_FINAL_TOL,(Vcc_max-C127)*($AE$13+IF(C127>=$AE$8,$AE$7,0)+(IF(C127>=$AE$6,C127,0)/$AE$5)+IF(C127>$AE$10,($AE$9/C127),0))) -> 5.710319479 | E127: 5.73484558 | F127: 0.7498920146 | G127: 0.04938591575 | H127: 5.333667399e-05 | I127: 0.001074197682 | J127: 0.001728084483 | K127: 3.905208029 | L127: 0.01276333276 | M127: 0.003295550284 | N127: 0.0002548078707 | O127: 8.521700222e-06 | P127: 5.443671875e-06 | Q127: 43.68118726 | R127: 0.1471381392 | S127: 0.1471370172 | T127: 0.1490633809 | U127: 0.02257713068 | V127: 0.02257713068 | W127: 0.02257713068 | X127: 0.02257713068 | AA127: 25.30443233 | AD127: 5.793742758e-07 | AE127: 0 | AF127: 0 | AG127: 18.37675493
A128: 101 | B128: 0.1170336037 | C128: 0.5851680185 | D128: =IF('Calculation Sheet'!$D$59="YES",(Vcc_max-C128)*ILIM_FINAL_TOL,(Vcc_max-C128)*($AE$13+IF(C128>=$AE$8,$AE$7,0)+(IF(C128>=$AE$6,C128,0)/$AE$5)+IF(C128>$AE$10,($AE$9/C128),0))) -> 5.70742267 | E128: 5.731951274 | F128: 0.756687955 | G128: 0.04986529518 | H128: 5.385671559e-05 | I128: 0.00108467033 | J128: 0.001727208281 | K128: 3.925099375 | L128: 0.01288763512 | M128: 0.003327673089 | N128: 0.0002572922456 | O128: 8.604788576e-06 | P128: 5.496748826e-06 | Q128: 43.74281402 | R128: 0.1485536287 | S128: 0.148552496 | T128: 0.1504971356 | U128: 0.02279681522 | V128: 0.02279681522 | W128: 0.02279681522 | X128: 0.02279681522 | AA128: 25.30738245 | AD128: 5.851680185e-07 | AE128: 0 | AF128: 0 | AG128: 18.43543157
A129: 102 | B129: 0.1181923523 | C129: 0.5909617613 | D129: =IF('Calculation Sheet'!$D$59="YES",(Vcc_max-C129)*ILIM_FINAL_TOL,(Vcc_max-C129)*($AE$13+IF(C129>=$AE$8,$AE$7,0)+(IF(C129>=$AE$6,C129,0)/$AE$5)+IF(C129>$AE$10,($AE$9/C129),0))) -> 5.704525862 | E129: 5.729056672 | F129: 0.763470616 | G129: 0.0503443887 | H129: 5.437649332e-05 | I129: 0.001095137645 | J129: 0.001726332079 | K129: 3.944739608 | L129: 0.01301187156 | M129: 0.003359779409 | N129: 0.000259775359 | O129: 8.687834779e-06 | P129: 5.54979885e-06 | Q129: 43.80388449 | R129: 0.149968021 | S129: 0.1499668777 | T129: 0.1519297738 | U129: 0.02301637937 | V129: 0.02301637937 | W129: 0.02301637937 | X129: 0.02301637937 | AA129: 25.3103307 | AD129: 5.909617613e-07 | AE129: 0 | AF129: 0 | AG129: 18.49355379
A130: 103 | B130: 0.1193511008 | C130: 0.5967555041 | D130: =IF('Calculation Sheet'!$D$59="YES",(Vcc_max-C130)*ILIM_FINAL_TOL,(Vcc_max-C130)*($AE$13+IF(C130>=$AE$8,$AE$7,0)+(IF(C130>=$AE$6,C130,0)/$AE$5)+IF(C130>$AE$10,($AE$9/C130),0))) -> 5.701629053 | E130: 5.72616181 | F130: 0.7702400159 | G130: 0.05082319635 | H130: 5.489600719e-05 | I130: 0.001105599627 | J130: 0.001725455878 | K130: 3.964131495 | L130: 0.0131360421 | M130: 0.003391869243 | N130: 0.000262257211 | O130: 8.770838829e-06 | P130: 5.602821948e-06 | Q130: 43.86440444 | R130: 0.1513813163 | S130: 0.1513801624 | T130: 0.1533612958 | U130: 0.02323582317 | V130: 0.02323582317 | W130: 0.02323582317 | X130: 0.02323582317 | AA130: 25.31327711 | AD130: 5.967555041e-07 | AE130: 0 | AF130: 0 | AG130: 18.55112733
A131: 104 | B131: 0.1205098494 | C131: 0.6025492468 | D131: =IF('Calculation Sheet'!$D$59="YES",(Vcc_max-C131)*ILIM_FINAL_TOL,(Vcc_max-C131)*($AE$13+IF(C131>=$AE$8,$AE$7,0)+(IF(C131>=$AE$6,C131,0)/$AE$5)+IF(C131>$AE$10,($AE$9/C131),0))) -> 5.698732244 | E131: 5.723266719 | F131: 0.7769961727 | G131: 0.05130171815 | H131: 5.54152572e-05 | I131: 0.001116056276 | J131: 0.001724579676 | K131: 3.983277773 | L131: 0.01326014673 | M131: 0.003423942591 | N131: 0.0002647378015 | O131: 8.853800729e-06 | P131: 5.65581812e-06 | Q131: 43.92437955 | R131: 0.152793515 | S131: 0.1527923505 | T131: 0.154791702 | U131: 0.02345514659 | V131: 0.02345514659 | W131: 0.02345514659 | X131: 0.02345514659 | AA131: 25.31622165 | AD131: 6.025492468e-07 | AE131: 0 | AF131: 0 | AG131: 18.6081579
A132: 105 | B132: 0.1216685979 | C132: 0.6083429896 | D132: =IF('Calculation Sheet'!$D$59="YES",(Vcc_max-C132)*ILIM_FINAL_TOL,(Vcc_max-C132)*($AE$13+IF(C132>=$AE$8,$AE$7,0)+(IF(C132>=$AE$6,C132,0)/$AE$5)+IF(C132>$AE$10,($AE$9/C132),0))) -> 5.695835435 | E132: 5.720371424 | F132: 0.7837391047 | G132: 0.05177995411 | H132: 5.593424334e-05 | I132: 0.001126507592 | J132: 0.001723703474 | K132: 4.002181148 | L132: 0.01338418545 | M132: 0.003455999453 | N132: 0.0002672171306 | O132: 8.936720477e-06 | P132: 5.708787365e-06 | Q132: 43.98381544 | R132: 0.1542046173 | S132: 0.1542034422 | T132: 0.1562209925 | U132: 0.02367434966 | V132: 0.02367434966 | W132: 0.02367434966 | X132: 0.02367434966 | AA132: 25.31916434 | AD132: 6.083429896e-07 | AE132: 0 | AF132: 0 | AG132: 18.6646511
A133: 106 | B133: 0.1228273465 | C133: 0.6141367323 | D133: =IF('Calculation Sheet'!$D$59="YES",(Vcc_max-C133)*ILIM_FINAL_TOL,(Vcc_max-C133)*($AE$13+IF(C133>=$AE$8,$AE$7,0)+(IF(C133>=$AE$6,C133,0)/$AE$5)+IF(C133>$AE$10,($AE$9/C133),0))) -> 5.692938626 | E133: 5.717475951 | F133: 0.7904688299 | G133: 0.05225790427 | H133: 5.645296562e-05 | I133: 0.001136953576 | J133: 0.001722827272 | K133: 4.020844297 | L133: 0.01350815827 | M133: 0.00348803983 | N133: 0.0002696951982 | O133: 9.019598074e-06 | P133: 5.761729685e-06 | Q133: 44.04271767 | R133: 0.1556146235 | S133: 0.1556134378 | T133: 0.1576491677 | U133: 0.02389343238 | V133: 0.02389343238 | W133: 0.02389343238 | X133: 0.02389343238 | AA133: 25.32210517 | AD133: 6.141367323e-07 | AE133: 0 | AF133: 0 | AG133: 18.7206125
A134: 107 | B134: 0.123986095 | C134: 0.6199304751 | D134: =IF('Calculation Sheet'!$D$59="YES",(Vcc_max-C134)*ILIM_FINAL_TOL,(Vcc_max-C134)*($AE$13+IF(C134>=$AE$8,$AE$7,0)+(IF(C134>=$AE$6,C134,0)/$AE$5)+IF(C134>$AE$10,($AE$9/C134),0))) -> 5.690041817 | E134: 5.71458032 | F134: 0.7971853665 | G134: 0.05273556865 | H134: 5.697142404e-05 | I134: 0.001147394226 | J134: 0.00172195107 | K134: 4.039269867 | L134: 0.01363206518 | M134: 0.003520063722 | N134: 0.0002721720044 | O134: 9.102433519e-06 | P134: 5.814645079e-06 | Q134: 44.10109172 | R134: 0.1570235339 | S134: 0.1570223376 | T134: 0.1590762279 | U134: 0.02411239475 | V134: 0.02411239475 | W134: 0.02411239475 | X134: 0.02411239475 | AA134: 25.32504415 | AD134: 6.199304751e-07 | AE134: 0 | AF134: 0 | AG134: 18.77604757
A135: 108 | B135: 0.1251448436 | C135: 0.6257242178 | D135: =IF('Calculation Sheet'!$D$59="YES",(Vcc_max-C135)*ILIM_FINAL_TOL,(Vcc_max-C135)*($AE$13+IF(C135>=$AE$8,$AE$7,0)+(IF(C135>=$AE$6,C135,0)/$AE$5)+IF(C135>$AE$10,($AE$9/C135),0))) -> 5.687145008 | E135: 5.711684551 | F135: 0.8038887324 | G135: 0.05321294727 | H135: 5.748961859e-05 | I135: 0.001157829544 | J135: 0.001721074868 | K135: 4.057460476 | L135: 0.0137559062 | M135: 0.003552071128 | N135: 0.0002746475492 | O135: 9.185226813e-06 | P135: 5.867533547e-06 | Q135: 44.15894303 | R135: 0.1584313488 | S135: 0.1584301419 | T135: 0.1605021734 | U135: 0.02433123677 | V135: 0.02433123677 | W135: 0.02433123677 | X135: 0.02433123677 | AA135: 25.32798127 | AD135: 6.257242178e-07 | AE135: 0 | AF135: 0 | AG135: 18.83096176
A136: 109 | B136: 0.1263035921 | C136: 0.6315179606 | D136: =IF('Calculation Sheet'!$D$59="YES",(Vcc_max-C136)*ILIM_FINAL_TOL,(Vcc_max-C136)*($AE$13+IF(C136>=$AE$8,$AE$7,0)+(IF(C136>=$AE$6,C136,0)/$AE$5)+IF(C136>$AE$10,($AE$9/C136),0))) -> 5.684248199 | E136: 5.708788658 | F136: 0.8105789459 | G136: 0.05369004016 | H136: 5.800754928e-05 | I136: 0.001168259529 | J136: 0.001720198667 | K136: 4.075418713 | L136: 0.01387968131 | M136: 0.003584062049 | N136: 0.0002771218325 | O136: 9.267977955e-06 | P136: 5.920395089e-06 | Q136: 44.21627695 | R136: 0.1598380684 | S136: 0.1598368509 | T136: 0.1619270043 | U136: 0.02454995846 | V136: 0.02454995846 | W136: 0.02454995846 | X136: 0.02454995846 | AA136: 25.33091654 | AD136: 6.315179606e-07 | AE136: 0 | AF136: 0 | AG136: 18.88536041
A137: 110 | B137: 0.1274623407 | C137: 0.6373117034 | D137: =IF('Calculation Sheet'!$D$59="YES",(Vcc_max-C137)*ILIM_FINAL_TOL,(Vcc_max-C137)*($AE$13+IF(C137>=$AE$8,$AE$7,0)+(IF(C137>=$AE$6,C137,0)/$AE$5)+IF(C137>$AE$10,($AE$9/C137),0))) -> 5.68135139 | E137: 5.705892658 | F137: 0.8172560248 | G137: 0.05416684734 | H137: 5.85252161e-05 | I137: 0.001178684181 | J137: 0.001719322465 | K137: 4.093147138 | L137: 0.01400339052 | M137: 0.003616036485 | N137: 0.0002795948544 | O137: 9.350686946e-06 | P137: 5.973229705e-06 | Q137: 44.2730988 | R137: 0.161243693 | S137: 0.161242465 | T137: 0.1633507212 | U137: 0.02476855981 | V137: 0.02476855981 | W137: 0.02476855981 | X137: 0.02476855981 | AA137: 25.33384995 | AD137: 6.373117034e-07 | AE137: 0 | AF137: 0 | AG137: 18.93924885
A138: 111 | B138: 0.1286210892 | C138: 0.6431054461 | D138: =IF('Calculation Sheet'!$D$59="YES",(Vcc_max-C138)*ILIM_FINAL_TOL,(Vcc_max-C138)*($AE$13+IF(C138>=$AE$8,$AE$7,0)+(IF(C138>=$AE$6,C138,0)/$AE$5)+IF(C138>$AE$10,($AE$9/C138),0))) -> 5.678454581 | E138: 5.702996561 | F138: 0.8239199872 | G138: 0.05464336883 | H138: 5.904261907e-05 | I138: 0.0011891035 | J138: 0.001718446263 | K138: 4.110648285 | L138: 0.01412703383 | M138: 0.003647994435 | N138: 0.0002820666148 | O138: 9.433353785e-06 | P138: 6.026037394e-06 | Q138: 44.32941381 | R138: 0.1626482229 | S138: 0.1626469844 | T138: 0.1647733241 | U138: 0.02498704083 | V138: 0.02498704083 | W138: 0.02498704083 | X138: 0.02498704083 | AA138: 25.3367815 | AD138: 6.431054461e-07 | AE138: 0 | AF138: 0 | AG138: 18.9926323
A139: 112 | B139: 0.1297798378 | C139: 0.6488991889 | D139: =IF('Calculation Sheet'!$D$59="YES",(Vcc_max-C139)*ILIM_FINAL_TOL,(Vcc_max-C139)*($AE$13+IF(C139>=$AE$8,$AE$7,0)+(IF(C139>=$AE$6,C139,0)/$AE$5)+IF(C139>$AE$10,($AE$9/C139),0))) -> 5.675557771 | E139: 5.700100381 | F139: 0.8305708511 | G139: 0.05511960467 | H139: 5.955975816e-05 | I139: 0.001199517486 | J139: 0.001717570061 | K139: 4.127924657 | L139: 0.01425061125 | M139: 0.003679935901 | N139: 0.0002845371138 | O139: 9.515978473e-06 | P139: 6.078818156e-06 | Q139: 44.38522717 | R139: 0.1640516583 | S139: 0.1640504093 | T139: 0.1661948135 | U139: 0.02520540152 | V139: 0.02520540152 | W139: 0.02520540152 | X139: 0.02520540152 | AA139: 25.33971121 | AD139: 6.488991889e-07 | AE139: 0 | AF139: 0 | AG139: 19.04551596
A140: 113 | B140: 0.1309385863 | C140: 0.6546929316 | D140: =IF('Calculation Sheet'!$D$59="YES",(Vcc_max-C140)*ILIM_FINAL_TOL,(Vcc_max-C140)*($AE$13+IF(C140>=$AE$8,$AE$7,0)+(IF(C140>=$AE$6,C140,0)/$AE$5)+IF(C140>$AE$10,($AE$9/C140),0))) -> 5.672660962 | E140: 5.697204127 | F140: 0.8372086343 | G140: 0.05559555486 | H140: 6.00766334e-05 | I140: 0.00120992614 | J140: 0.001716693859 | K140: 4.144978732 | L140: 0.01437412277 | M140: 0.003711860881 | N140: 0.0002870063514 | O140: 9.598561009e-06 | P140: 6.131571993e-06 | Q140: 44.44054401 | R140: 0.1654539996 | S140: 0.1654527401 | T140: 0.1676151895 | U140: 0.02542364189 | V140: 0.02542364189 | W140: 0.02542364189 | X140: 0.02542364189 | AA140: 25.34263905 | AD140: 6.546929316e-07 | AE140: 0 | AF140: 0 | AG140: 19.09790495
A141: 114 | B141: 0.1320973349 | C141: 0.6604866744 | D141: =IF('Calculation Sheet'!$D$59="YES",(Vcc_max-C141)*ILIM_FINAL_TOL,(Vcc_max-C141)*($AE$13+IF(C141>=$AE$8,$AE$7,0)+(IF(C141>=$AE$6,C141,0)/$AE$5)+IF(C141>$AE$10,($AE$9/C141),0))) -> 5.669764152 | E141: 5.694307807 | F141: 0.8438333548 | G141: 0.05607121945 | H141: 6.059324477e-05 | I141: 0.001220329461 | J141: 0.001715817657 | K141: 4.161812959 | L141: 0.0144975684 | M141: 0.003743769377 | N141: 0.0002894743275 | O141: 9.681101394e-06 | P141: 6.184298904e-06 | Q141: 44.49536939 | R141: 0.1668552471 | S141: 0.1668539771 | T141: 0.1690344525 | U141: 0.02564176195 | V141: 0.02564176195 | W141: 0.02564176195 | X141: 0.02564176195 | AA141: 25.34556505 | AD141: 6.604866744e-07 | AE141: 0 | AF141: 0 | AG141: 19.14980435
A142: 115 | B142: 0.1332560834 | C142: 0.6662804171 | D142: =IF('Calculation Sheet'!$D$59="YES",(Vcc_max-C142)*ILIM_FINAL_TOL,(Vcc_max-C142)*($AE$13+IF(C142>=$AE$8,$AE$7,0)+(IF(C142>=$AE$6,C142,0)/$AE$5)+IF(C142>$AE$10,($AE$9/C142),0))) -> 5.666867343 | E142: 5.691411429 | F142: 0.8504450306 | G142: 0.05654659844 | H142: 6.110959228e-05 | I142: 0.001230727449 | J142: 0.001714941455 | K142: 4.178429761 | L142: 0.01462094813 | M142: 0.003775661389 | N142: 0.0002919410422 | O142: 9.763599627e-06 | P142: 6.236998889e-06 | Q142: 44.54970834 | R142: 0.1682554009 | S142: 0.1682541204 | T142: 0.1704526028 | U142: 0.02585976169 | V142: 0.02585976169 | W142: 0.02585976169 | X142: 0.02585976169 | AA142: 25.34848919 | AD142: 6.662804171e-07 | AE142: 0 | AF142: 0 | AG142: 19.20121915
A143: 116 | B143: 0.134414832 | C143: 0.6720741599 | D143: =IF('Calculation Sheet'!$D$59="YES",(Vcc_max-C143)*ILIM_FINAL_TOL,(Vcc_max-C143)*($AE$13+IF(C143>=$AE$8,$AE$7,0)+(IF(C143>=$AE$6,C143,0)/$AE$5)+IF(C143>$AE$10,($AE$9/C143),0))) -> 5.663970533 | E143: 5.688515 | F143: 0.8570436794 | G143: 0.05702169188 | H143: 6.162567592e-05 | I143: 0.001241120104 | J143: 0.001714065253 | K143: 4.194831534 | L143: 0.01474426198 | M143: 0.003807536915 | N143: 0.0002944064954 | O143: 9.846055709e-06 | P143: 6.289671948e-06 | Q143: 44.6035658 | R143: 0.1696544615 | S143: 0.1696531705 | T143: 0.1718696407 | U143: 0.02607764113 | V143: 0.02607764113 | W143: 0.02607764113 | X143: 0.02607764113 | AA143: 25.35141147 | AD143: 6.720741599e-07 | AE143: 0 | AF143: 0 | AG143: 19.25215433
A144: 117 | B144: 0.1355735805 | C144: 0.6778679027 | D144: =IF('Calculation Sheet'!$D$59="YES",(Vcc_max-C144)*ILIM_FINAL_TOL,(Vcc_max-C144)*($AE$13+IF(C144>=$AE$8,$AE$7,0)+(IF(C144>=$AE$6,C144,0)/$AE$5)+IF(C144>$AE$10,($AE$9/C144),0))) -> 5.661073724 | E144: 5.685618527 | F144: 0.8636293192 | G144: 0.05749649977 | H144: 6.214149571e-05 | I144: 0.001251507426 | J144: 0.001713189051 | K144: 4.211020646 | L144: 0.01486750993 | M144: 0.003839395957 | N144: 0.0002968706872 | O144: 9.92846964e-06 | P144: 6.34231808e-06 | Q144: 44.65694667 | R144: 0.171052429 | S144: 0.1710511275 | T144: 0.1732855663 | U144: 0.02629540027 | V144: 0.02629540027 | W144: 0.02629540027 | X144: 0.02629540027 | AA144: 25.35433191 | AD144: 6.778679027e-07 | AE144: 0 | AF144: 0 | AG144: 19.30261477
A145: 118 | B145: 0.1367323291 | C145: 0.6836616454 | D145: =IF('Calculation Sheet'!$D$59="YES",(Vcc_max-C145)*ILIM_FINAL_TOL,(Vcc_max-C145)*($AE$13+IF(C145>=$AE$8,$AE$7,0)+(IF(C145>=$AE$6,C145,0)/$AE$5)+IF(C145>$AE$10,($AE$9/C145),0))) -> 5.658176914 | E145: 5.682722014 | F145: 0.8702019677 | G145: 0.05797102215 | H145: 6.265705162e-05 | I145: 0.001261889416 | J145: 0.001712312849 | K145: 4.226999442 | L145: 0.014990692 | M145: 0.003871238515 | N145: 0.0002993336176 | O145: 1.001084142e-05 | P145: 6.394937287e-06 | Q145: 44.70985582 | R145: 0.1724493037 | S145: 0.1724479918 | T145: 0.1747003802 | U145: 0.0265130391 | V145: 0.0265130391 | W145: 0.0265130391 | X145: 0.0265130391 | AA145: 25.35725049 | AD145: 6.836616454e-07 | AE145: 0 | AF145: 0 | AG145: 19.35260533
A146: 119 | B146: 0.1378910776 | C146: 0.6894553882 | D146: =IF('Calculation Sheet'!$D$59="YES",(Vcc_max-C146)*ILIM_FINAL_TOL,(Vcc_max-C146)*($AE$13+IF(C146>=$AE$8,$AE$7,0)+(IF(C146>=$AE$6,C146,0)/$AE$5)+IF(C146>$AE$10,($AE$9/C146),0))) -> 5.655280104 | E146: 5.679825465 | F146: 0.8767616427 | G146: 0.05844525903 | H146: 6.317234368e-05 | I146: 0.001272266073 | J146: 0.001711436647 | K146: 4.242770239 | L146: 0.01511380818 | M146: 0.003903064588 | N146: 0.0003017952865 | O146: 1.009317105e-05 | P146: 6.447529568e-06 | Q146: 44.76229801 | R146: 0.173845086 | S146: 0.1738437636 | T146: 0.1761140824 | U146: 0.02673055765 | V146: 0.02673055765 | W146: 0.02673055765 | X146: 0.02673055765 | AA146: 25.36016721 | AD146: 6.894553882e-07 | AE146: 0 | AF146: 0 | AG146: 19.4021308
A147: 120 | B147: 0.1390498262 | C147: 0.6952491309 | D147: =IF('Calculation Sheet'!$D$59="YES",(Vcc_max-C147)*ILIM_FINAL_TOL,(Vcc_max-C147)*($AE$13+IF(C147>=$AE$8,$AE$7,0)+(IF(C147>=$AE$6,C147,0)/$AE$5)+IF(C147>$AE$10,($AE$9/C147),0))) -> 5.652383294 | E147: 5.676928886 | F147: 0.8833083621 | G147: 0.05891921045 | H147: 6.368737187e-05 | I147: 0.001282637397 | J147: 0.001710560445 | K147: 4.25833533 | L147: 0.01523685848 | M147: 0.003934874177 | N147: 0.000304255694 | O147: 1.017545852e-05 | P147: 6.500094922e-06 | Q147: 44.81427801 | R147: 0.1752397761 | S147: 0.1752384432 | T147: 0.1775266733 | U147: 0.02694795591 | V147: 0.02694795591 | W147: 0.02694795591 | X147: 0.02694795591 | AA147: 25.36308209 | AD147: 6.952491309e-07 | AE147: 0 | AF147: 0 | AG147: 19.45119592
A148: 121 | B148: 0.1402085747 | C148: 0.7010428737 | D148: =IF('Calculation Sheet'!$D$59="YES",(Vcc_max-C148)*ILIM_FINAL_TOL,(Vcc_max-C148)*($AE$13+IF(C148>=$AE$8,$AE$7,0)+(IF(C148>=$AE$6,C148,0)/$AE$5)+IF(C148>$AE$10,($AE$9/C148),0))) -> 5.649486484 | E148: 5.67403228 | F148: 0.8898421435 | G148: 0.05939287643 | H148: 6.42021362e-05 | I148: 0.001293003388 | J148: 0.001709684243 | K148: 4.27369698 | L148: 0.01535984289 | M148: 0.003966667282 | N148: 0.0003067148401 | O148: 1.025770385e-05 | P148: 6.55263335e-06 | Q148: 44.86580049 | R148: 0.1766333742 | S148: 0.176632031 | T148: 0.1789381532 | U148: 0.02716523388 | V148: 0.02716523388 | W148: 0.02716523388 | X148: 0.02716523388 | AA148: 25.36599511 | AD148: 7.010428737e-07 | AE148: 0 | AF148: 0 | AG148: 19.49980538
A149: 122 | B149: 0.1413673233 | C149: 0.7068366165 | D149: =IF('Calculation Sheet'!$D$59="YES",(Vcc_max-C149)*ILIM_FINAL_TOL,(Vcc_max-C149)*($AE$13+IF(C149>=$AE$8,$AE$7,0)+(IF(C149>=$AE$6,C149,0)/$AE$5)+IF(C149>$AE$10,($AE$9/C149),0))) -> 5.646589674 | E149: 5.671135649 | F149: 0.8963630048 | G149: 0.05986625699 | H149: 6.471663666e-05 | I149: 0.001303364047 | J149: 0.00170880804 | K149: 4.288857432 | L149: 0.01548276142 | M149: 0.003998443903 | N149: 0.0003091727247 | O149: 1.033990702e-05 | P149: 6.605144852e-06 | Q149: 44.9168701 | R149: 0.1780258807 | S149: 0.178024527 | T149: 0.1803485224 | U149: 0.02738239157 | V149: 0.02738239157 | W149: 0.02738239157 | X149: 0.02738239157 | AA149: 25.36890628 | AD149: 7.068366165e-07 | AE149: 0 | AF149: 0 | AG149: 19.54796382
A150: 123 | B150: 0.1425260718 | C150: 0.7126303592 | D150: =IF('Calculation Sheet'!$D$59="YES",(Vcc_max-C150)*ILIM_FINAL_TOL,(Vcc_max-C150)*($AE$13+IF(C150>=$AE$8,$AE$7,0)+(IF(C150>=$AE$6,C150,0)/$AE$5)+IF(C150>$AE$10,($AE$9/C150),0))) -> 5.643692864 | E150: 5.668238998 | F150: 0.9028709635 | G150: 0.06033935215 | H150: 6.523087327e-05 | I150: 0.001313719373 | J150: 0.001707931838 | K150: 4.303818902 | L150: 0.01560561407 | M150: 0.00403020404 | N150: 0.0003116293479 | O150: 1.042206804e-05 | P150: 6.657629427e-06 | Q150: 44.96749141 | R150: 0.1794172958 | S150: 0.1794159318 | T150: 0.1817577812 | U150: 0.02759942899 | V150: 0.02759942899 | W150: 0.02759942899 | X150: 0.02759942899 | AA150: 25.3718156 | AD150: 7.126303592e-07 | AE150: 0 | AF150: 0 | AG150: 19.59567581
A151: 124 | B151: 0.1436848204 | C151: 0.718424102 | D151: =IF('Calculation Sheet'!$D$59="YES",(Vcc_max-C151)*ILIM_FINAL_TOL,(Vcc_max-C151)*($AE$13+IF(C151>=$AE$8,$AE$7,0)+(IF(C151>=$AE$6,C151,0)/$AE$5)+IF(C151>$AE$10,($AE$9/C151),0))) -> 5.640796054 | E151: 5.665342328 | F151: 0.9093660374 | G151: 0.06081216194 | H151: 6.5744846e-05 | I151: 0.001324069366 | J151: 0.001707055636 | K151: 4.318583584 | L151: 0.01572840084 | M151: 0.004061947693 | N151: 0.0003140847097 | O151: 1.050418691e-05 | P151: 6.710087077e-06 | Q151: 45.01766897 | R151: 0.1808076198 | S151: 0.1808062454 | T151: 0.1831659298 | U151: 0.02781634614 | V151: 0.02781634614 | W151: 0.02781634614 | X151: 0.02781634614 | AA151: 25.37472307 | AD151: 7.18424102e-07 | AE151: 0 | AF151: 0 | AG151: 19.6429459
A152: 125 | B152: 0.1448435689 | C152: 0.7242178447 | D152: =IF('Calculation Sheet'!$D$59="YES",(Vcc_max-C152)*ILIM_FINAL_TOL,(Vcc_max-C152)*($AE$13+IF(C152>=$AE$8,$AE$7,0)+(IF(C152>=$AE$6,C152,0)/$AE$5)+IF(C152>$AE$10,($AE$9/C152),0))) -> 5.637899244 | E152: 5.662445641 | F152: 0.9158482441 | G152: 0.06128468639 | H152: 6.625855488e-05 | I152: 0.001334414027 | J152: 0.001706179434 | K152: 4.333153646 | L152: 0.01585112173 | M152: 0.004093674862 | N152: 0.00031653881 | O152: 1.058626363e-05 | P152: 6.762517801e-06 | Q152: 45.06740725 | R152: 0.1821968531 | S152: 0.1821954682 | T152: 0.1845729685 | U152: 0.02803314302 | V152: 0.02803314302 | W152: 0.02803314302 | X152: 0.02803314302 | AA152: 25.37762868 | AD152: 7.242178447e-07 | AE152: 0 | AF152: 0 | AG152: 19.68977857
A153: 126 | B153: 0.1460023175 | C153: 0.7300115875 | D153: =IF('Calculation Sheet'!$D$59="YES",(Vcc_max-C153)*ILIM_FINAL_TOL,(Vcc_max-C153)*($AE$13+IF(C153>=$AE$8,$AE$7,0)+(IF(C153>=$AE$6,C153,0)/$AE$5)+IF(C153>$AE$10,($AE$9/C153),0))) -> 5.635002433 | E153: 5.659548939 | F153: 0.9223176013 | G153: 0.06175692551 | H153: 6.677199989e-05 | I153: 0.001344753354 | J153: 0.001705303232 | K153: 4.347531233 | L153: 0.01597377675 | M153: 0.004125385548 | N153: 0.0003189916489 | O153: 1.06682982e-05 | P153: 6.814921599e-06 | Q153: 45.1167107 | R153: 0.1835849957 | S153: 0.1835836006 | T153: 0.1859788977 | U153: 0.02824981964 | V153: 0.02824981964 | W153: 0.02824981964 | X153: 0.02824981964 | AA153: 25.38053245 | AD153: 7.300115875e-07 | AE153: 0 | AF153: 0 | AG153: 19.73617826
A154: 127 | B154: 0.147161066 | C154: 0.7358053302 | D154: =IF('Calculation Sheet'!$D$59="YES",(Vcc_max-C154)*ILIM_FINAL_TOL,(Vcc_max-C154)*($AE$13+IF(C154>=$AE$8,$AE$7,0)+(IF(C154>=$AE$6,C154,0)/$AE$5)+IF(C154>$AE$10,($AE$9/C154),0))) -> 5.632105623 | E154: 5.656652225 | F154: 0.9287741266 | G154: 0.06222887934 | H154: 6.728518104e-05 | I154: 0.00135508735 | J154: 0.001704427029 | K154: 4.361718465 | L154: 0.01609636589 | M154: 0.00415707975 | N154: 0.0003214432264 | O154: 1.075029061e-05 | P154: 6.86729847e-06 | Q154: 45.16558371 | R154: 0.1849720482 | S154: 0.1849706426 | T154: 0.1873837175 | U154: 0.02846637601 | V154: 0.02846637601 | W154: 0.02846637601 | X154: 0.02846637601 | AA154: 25.38343436 | AD154: 7.358053302e-07 | AE154: 0 | AF154: 0 | AG154: 19.78214935
A155: 128 | B155: =($AE$11/2000)*(A155) -> 0.1483198146 | C155: =$AE$13*B155*10^-3/($AE$4*10^-6) -> 0.741599073 | D155: =IF('Calculation Sheet'!$D$59="YES",(Vcc_max-C155)*ILIM_FINAL_TOL,(Vcc_max-C155)*($AE$13+IF(C155>=$AE$8,$AE$7,0)+(IF(C155>=$AE$6,C155,0)/$AE$5)+IF(C155>$AE$10,($AE$9/C155),0))) -> 5.629208813 | E155: 5.6537555 | F155: 0.9352178375 | G155: 0.06270054789 | H155: 6.779809833e-05 | I155: 0.001365416012 | J155: 0.001703550827 | K155: 4.375717441 | L155: 0.01621888915 | M155: 0.004188757468 | N155: 0.0003238935424 | O155: 1.083224088e-05 | P155: 6.919648415e-06 | Q155: 45.2140306 | R155: 0.1863580106 | S155: 0.1863565947 | T155: 0.1887874284 | U155: 0.02868281213 | V155: 0.02868281213 | W155: 0.02868281213 | X155: 0.02868281213 | AA155: 25.38633442 | AD155: =IF(C155>=$AE$6,C155,0)/$AE$5 -> 7.41599073e-07 | AE155: =IF(C155>=$AE$8,$AE$7,0) -> 0 | AF155: =IF(C155>$AE$10,($AE$9/C155),0) -> 0 | AG155: =(Q155-AA155)*IF((Vcc_max-C155)>$F$4,1,0) -> 19.82769618
A156: 129 | B156: 0.1494785632 | C156: 0.7473928158 | D156: =IF('Calculation Sheet'!$D$59="YES",(Vcc_max-C156)*ILIM_FINAL_TOL,(Vcc_max-C156)*($AE$13+IF(C156>=$AE$8,$AE$7,0)+(IF(C156>=$AE$6,C156,0)/$AE$5)+IF(C156>$AE$10,($AE$9/C156),0))) -> 5.626312002 | E156: =(D155+((((EXP(-(B156-B155)*10^-3/$F$14)))*(E155-D155)))) -> 5.650858764 | F156: =(D155+((((EXP(-(B156-B155)*10^-3/$F$15)))*(F155-D155)))) -> 0.9416487515 | G156: =(D155+((((EXP(-(B156-B155)*10^-3/$F$16)))*(G155-D155)))) -> 0.06317193119 | H156: =(D155+((((EXP(-(B156-B155)*10^-3/$F$17)))*(H155-D155)))) -> 6.831075175e-05 | I156: =(D155+((((EXP(-(B156-B155)*10^-3/$F$18)))*(I155-D155)))) -> 0.001375739342 | J156: =(D155+((((EXP(-(B156-B155)*10^-3/$F$19)))*(JX155-D155)))) -> 0.001702674625 | K156: =(D155+((((EXP(-(B156-B155)*10^-3/$F$20)))*(K155-D155)))) -> 4.389530234 | L156: =(D155+((((EXP(-(B156-B155)*10^-3/$F$21)))*(L155-D155)))) -> 0.01634134655 | M156: =(D155+((((EXP(-(B156-B155)*10^-3/$F$22)))*(M155-D155)))) -> 0.004220418703 | N156: 0.000326342597 | O156: 1.091414899e-05 | P156: 6.971971434e-06 | Q156: 45.26205567 | R156: =(D155+((((EXP(-(B156-B155)*10^-3/$B$14)))*(R155-D155)))) -> 0.1877428833 | S156: =(D155+((((EXP(-(B156-B155)*10^-3/$B$15)))*(S155-D155)))) -> 0.1877414571 | T156: =(D155+((((EXP(-(B156-B155)*10^-3/$B$16)))*(T155-D155)))) -> 0.1901900305 | U156: =(D155+((((EXP(-(B156-B155)*10^-3/$B$17)))*(U155-D155)))) -> 0.02889912799 | V156: =(D155+((((EXP(-(B156-B155)*10^-3/$B$18)))*(V155-D155)))) -> 0.02889912799 | W156: 0.02889912799 | X156: 0.02889912799 | AA156: 25.38923264 | AD156: 7.473928158e-07 | AE156: 0 | AF156: 0 | AG156: 19.87282304
A157: 130 | B157: 0.1506373117 | C157: 0.7531865585 | D157: =IF('Calculation Sheet'!$D$59="YES",(Vcc_max-C157)*ILIM_FINAL_TOL,(Vcc_max-C157)*($AE$13+IF(C157>=$AE$8,$AE$7,0)+(IF(C157>=$AE$6,C157,0)/$AE$5)+IF(C157>$AE$10,($AE$9/C157),0))) -> 5.623415192 | E157: 5.64796202 | F157: 0.9480668863 | G157: 0.06364302927 | H157: 6.882314131e-05 | I157: 0.001386057339 | J157: 0.001701798423 | K157: 4.403158896 | L157: 0.01646373807 | M157: 0.004252063455 | N157: =(D156+((((EXP(-(B157-B156)*10^-3/$F$23)))*(N156-D156)))) -> 0.0003287903902 | O157: =(D156+((((EXP(-(B157-B156)*10^-3/$F$24)))*(O156-D156)))) -> 1.099601495e-05 | P157: =(D156+((((EXP(-(B157-B156)*10^-3/$F$25)))*(P156-D156)))) -> 7.024267527e-06 | Q157: =$C$6+(E157*$G$14)+(F157*$G$15)+(G157*$G$16)+(H157*$G$17)+(I157*$G$18)+(J157*$G$19)+(K157*$G$20)+(L157*$G$21)+(M157*$G$22) -> 45.30966318 | R157: 0.1891266667 | S157: 0.1891252301 | T157: 0.1915915242 | U157: 0.02911532362 | V157: 0.02911532362 | W157: =(D156+((((EXP(-(B157-B156)*10^-3/$B$19)))*(W156-D156)))) -> 0.02911532362 | X157: =(D156+((((EXP(-(B157-B156)*10^-3/$B$20)))*(X156-D156)))) -> 0.02911532362 | AA157: =$C$6+(R157*$C$14)+(S157*$C$15)+(T157*$C$16)+(U157*$C$17)+(V157*$C$18)+(W157*$C$19)+(X157*$C$20) -> 25.392129 | AD157: 7.531865585e-07 | AE157: 0 | AF157: 0 | AG157: 19.91753418
A158: 131 | B158: 0.1517960603 | C158: 0.7589803013 | D158: =IF('Calculation Sheet'!$D$59="YES",(Vcc_max-C158)*ILIM_FINAL_TOL,(Vcc_max-C158)*($AE$13+IF(C158>=$AE$8,$AE$7,0)+(IF(C158>=$AE$6,C158,0)/$AE$5)+IF(C158>$AE$10,($AE$9/C158),0))) -> 5.620518381 | E158: 5.645065267 | F158: 0.9544722594 | G158: 0.06411384215 | H158: 6.933526701e-05 | I158: 0.001396370004 | J158: 0.00170092222 | K158: 4.416605456 | L158: 0.01658606373 | M158: 0.004283691723 | N158: 0.000331236922 | O158: 1.107783876e-05 | P158: 7.076536694e-06 | Q158: 45.35685731 | R158: 0.1905093608 | S158: 0.190507914 | T158: 0.1929919097 | U158: 0.02933139901 | V158: 0.02933139901 | W158: 0.02933139901 | X158: 0.02933139901 | AA158: 25.39502351 | AD158: 7.589803013e-07 | AE158: 0 | AF158: 0 | AG158: 19.9618338
A159: 132 | B159: 0.1529548088 | C159: 0.764774044 | D159: =IF('Calculation Sheet'!$D$59="YES",(Vcc_max-C159)*ILIM_FINAL_TOL,(Vcc_max-C159)*($AE$13+IF(C159>=$AE$8,$AE$7,0)+(IF(C159>=$AE$6,C159,0)/$AE$5)+IF(C159>$AE$10,($AE$9/C159),0))) -> 5.61762157 | E159: 5.642168508 | F159: 0.9608648881 | G159: 0.06458436985 | H159: 6.984712884e-05 | I159: 0.001406677336 | J159: 0.001700046018 | K159: 4.429871922 | L159: 0.01670832351 | M159: 0.004315303508 | N159: 0.0003336821923 | O159: 1.115962042e-05 | P159: 7.128778934e-06 | Q159: 45.40364221 | R159: 0.1918909661 | S159: 0.1918895089 | T159: 0.1943911874 | U159: 0.02954735417 | V159: 0.02954735417 | W159: 0.02954735417 | X159: 0.02954735417 | AA159: 25.39791618 | AD159: 7.64774044e-07 | AE159: 0 | AF159: 0 | AG159: 20.00572604
A160: 133 | B160: 0.1541135574 | C160: 0.7705677868 | D160: =IF('Calculation Sheet'!$D$59="YES",(Vcc_max-C160)*ILIM_FINAL_TOL,(Vcc_max-C160)*($AE$13+IF(C160>=$AE$8,$AE$7,0)+(IF(C160>=$AE$6,C160,0)/$AE$5)+IF(C160>$AE$10,($AE$9/C160),0))) -> 5.61472476 | E160: 5.639271743 | F160: 0.9672447901 | G160: 0.06505461239 | H160: 7.035872681e-05 | I160: 0.001416979335 | J160: 0.001699169816 | K160: 4.442960277 | L160: 0.01683051743 | M160: 0.004346898811 | N160: 0.0003361262012 | O160: 1.124135993e-05 | P160: 7.180994249e-06 | Q160: 45.45002201 | R160: 0.1932714828 | S160: 0.1932700154 | T160: 0.1957893575 | U160: 0.0297631891 | V160: 0.0297631891 | W160: 0.0297631891 | X160: 0.0297631891 | AA160: 25.40080699 | AD160: 7.705677868e-07 | AE160: 0 | AF160: 0 | AG160: 20.04921502
A161: 134 | B161: 0.1552723059 | C161: 0.7763615295 | D161: =IF('Calculation Sheet'!$D$59="YES",(Vcc_max-C161)*ILIM_FINAL_TOL,(Vcc_max-C161)*($AE$13+IF(C161>=$AE$8,$AE$7,0)+(IF(C161>=$AE$6,C161,0)/$AE$5)+IF(C161>$AE$10,($AE$9/C161),0))) -> 5.611827949 | E161: 5.636374973 | F161: 0.9736119826 | G161: 0.06552456981 | H161: 7.087006092e-05 | I161: 0.001427276002 | J161: 0.001698293613 | K161: 4.455872484 | L161: 0.01695264549 | M161: 0.00437847763 | N161: 0.0003385689486 | O161: 1.132305728e-05 | P161: 7.233182638e-06 | Q161: 45.49600075 | R161: 0.1946509112 | S161: 0.1946494334 | T161: 0.1971864203 | U161: 0.0299789038 | V161: 0.0299789038 | W161: 0.0299789038 | X161: 0.0299789038 | AA161: 25.40369595 | AD161: 7.763615295e-07 | AE161: 0 | AF161: 0 | AG161: 20.09230479
A162: 135 | B162: 0.1564310545 | C162: 0.7821552723 | D162: =IF('Calculation Sheet'!$D$59="YES",(Vcc_max-C162)*ILIM_FINAL_TOL,(Vcc_max-C162)*($AE$13+IF(C162>=$AE$8,$AE$7,0)+(IF(C162>=$AE$6,C162,0)/$AE$5)+IF(C162>$AE$10,($AE$9/C162),0))) -> 5.608931138 | E162: 5.633478197 | F162: 0.9799664832 | G162: 0.06599424212 | H162: 7.138113116e-05 | I162: 0.001437567336 | J162: 0.001697417411 | K162: 4.468610484 | L162: 0.01707470768 | M162: 0.004410039966 | N162: 0.0003410104347 | O162: 1.140471249e-05 | P162: 7.2853441e-06 | Q162: 45.54158245 | R162: 0.1960292515 | S162: 0.1960277635 | T162: 0.1985823761 | U162: 0.03019449829 | V162: 0.03019449829 | W162: 0.03019449829 | X162: 0.03019449829 | AA162: 25.40658307 | AD162: 7.821552723e-07 | AE162: 0 | AF162: 0 | AG162: 20.13499938
A163: 136 | B163: 0.157589803 | C163: 0.7879490151 | D163: =IF('Calculation Sheet'!$D$59="YES",(Vcc_max-C163)*ILIM_FINAL_TOL,(Vcc_max-C163)*($AE$13+IF(C163>=$AE$8,$AE$7,0)+(IF(C163>=$AE$6,C163,0)/$AE$5)+IF(C163>$AE$10,($AE$9/C163),0))) -> 5.606034327 | E163: 5.630581418 | F163: 0.9863083092 | G163: 0.06646362935 | H163: 7.189193755e-05 | I163: 0.001447853338 | J163: 0.001696541208 | K163: 4.481176197 | L163: 0.01719670401 | M163: 0.00444158582 | N163: 0.0003434506593 | O163: 1.148632554e-05 | P163: 7.337478636e-06 | Q163: 45.5867711 | R163: 0.1974065041 | S163: 0.1974050058 | T163: 0.1999772251 | U163: 0.03040997256 | V163: 0.03040997256 | W163: 0.03040997256 | X163: 0.03040997256 | AA163: 25.40946834 | AD163: 7.879490151e-07 | AE163: 0 | AF163: 0 | AG163: 20.17730276
A164: 137 | B164: 0.1587485516 | C164: 0.7937427578 | D164: =IF('Calculation Sheet'!$D$59="YES",(Vcc_max-C164)*ILIM_FINAL_TOL,(Vcc_max-C164)*($AE$13+IF(C164>=$AE$8,$AE$7,0)+(IF(C164>=$AE$6,C164,0)/$AE$5)+IF(C164>$AE$10,($AE$9/C164),0))) -> 5.603137516 | E164: 5.627684635 | F164: 0.992637478 | G164: 0.06693273152 | H164: 7.240248006e-05 | I164: 0.001458134007 | J164: 0.001695665006 | K164: 4.493571522 | L164: 0.01731863448 | M164: 0.004473115191 | N164: 0.0003458896225 | O164: 1.156789644e-05 | P164: 7.389586246e-06 | Q164: 45.63157062 | R164: 0.1987826692 | S164: 0.1987811607 | T164: 0.2013709678 | U164: 0.03062532662 | V164: 0.03062532662 | W164: 0.03062532662 | X164: 0.03062532662 | AA164: 25.41235176 | AD164: 7.937427578e-07 | AE164: 0 | AF164: 0 | AG164: 20.21921886
A165: 138 | B165: 0.1599073001 | C165: 0.7995365006 | D165: =IF('Calculation Sheet'!$D$59="YES",(Vcc_max-C165)*ILIM_FINAL_TOL,(Vcc_max-C165)*($AE$13+IF(C165>=$AE$8,$AE$7,0)+(IF(C165>=$AE$6,C165,0)/$AE$5)+IF(C165>$AE$10,($AE$9/C165),0))) -> 5.600240705 | E165: 5.624787848 | F165: 0.9989540069 | G165: 0.06740154867 | H165: 7.291275872e-05 | I165: 0.001468409343 | J165: 0.001694788803 | K165: 4.505798336 | L165: 0.01744049909 | M165: 0.004504628079 | N165: 0.0003483273242 | O165: 1.164942519e-05 | P165: 7.44166693e-06 | Q165: 45.67598489 | R165: 0.200157747 | S165: 0.2001562283 | T165: 0.2027636042 | U165: 0.03084056048 | V165: 0.03084056048 | W165: 0.03084056048 | X165: 0.03084056048 | AA165: 25.41523333 | AD165: 7.995365006e-07 | AE165: 0 | AF165: 0 | AG165: 20.26075156
A166: 139 | B166: 0.1610660487 | C166: 0.8053302433 | D166: =IF('Calculation Sheet'!$D$59="YES",(Vcc_max-C166)*ILIM_FINAL_TOL,(Vcc_max-C166)*($AE$13+IF(C166>=$AE$8,$AE$7,0)+(IF(C166>=$AE$6,C166,0)/$AE$5)+IF(C166>$AE$10,($AE$9/C166),0))) -> 5.597343894 | E166: 5.621891059 | F166: 1.005257913 | G166: 0.0678700808 | H166: 7.342277351e-05 | I166: 0.001478679347 | J166: 0.001693912601 | K166: 4.517858495 | L166: 0.01756229784 | M166: 0.004536124485 | N166: 0.0003507637645 | O166: 1.173091179e-05 | P166: 7.493720688e-06 | Q166: 45.72001777 | R166: 0.201531738 | S166: 0.201530209 | T166: 0.2041551348 | U166: 0.03105567414 | V166: 0.03105567414 | W166: 0.03105567414 | X166: 0.03105567414 | AA166: 25.41811305 | AD166: 8.053302433e-07 | AE166: 0 | AF166: 0 | AG166: 20.30190471
A167: 140 | B167: 0.1622247972 | C167: 0.8111239861 | D167: =IF('Calculation Sheet'!$D$59="YES",(Vcc_max-C167)*ILIM_FINAL_TOL,(Vcc_max-C167)*($AE$13+IF(C167>=$AE$8,$AE$7,0)+(IF(C167>=$AE$6,C167,0)/$AE$5)+IF(C167>$AE$10,($AE$9/C167),0))) -> 5.594447083 | E167: 5.618994267 | F167: 1.011549214 | G167: 0.06833832795 | H167: 7.393252444e-05 | I167: 0.001488944018 | J167: 0.001693036399 | K167: 4.529753837 | L167: 0.01768403074 | M167: 0.004567604409 | N167: 0.0003531989434 | O167: 1.181235624e-05 | P167: 7.545747519e-06 | Q167: 45.76367305 | R167: 0.2029046423 | S167: 0.2029031031 | T167: 0.2055455599 | U167: 0.0312706676 | V167: 0.0312706676 | W167: 0.0312706676 | X167: 0.0312706676 | AA167: 25.42099093 | AD167: 8.111239861e-07 | AE167: 0 | AF167: 0 | AG167: 20.34268212
A168: 141 | B168: 0.1633835458 | C168: 0.8169177289 | D168: =IF('Calculation Sheet'!$D$59="YES",(Vcc_max-C168)*ILIM_FINAL_TOL,(Vcc_max-C168)*($AE$13+IF(C168>=$AE$8,$AE$7,0)+(IF(C168>=$AE$6,C168,0)/$AE$5)+IF(C168>$AE$10,($AE$9/C168),0))) -> 5.591550271 | E168: 5.616097472 | F168: 1.017827927 | G168: 0.06880629014 | H168: 7.444201151e-05 | I168: 0.001499203357 | J168: 0.001692160196 | K168: 4.541486177 | L168: 0.01780569778 | M168: 0.00459906785 | N168: 0.0003556328609 | O168: 1.189375853e-05 | P168: 7.597747425e-06 | Q168: 45.80695451 | R168: 0.2042764602 | S168: 0.2042749108 | T168: 0.2069348796 | U168: 0.03148554087 | V168: 0.03148554087 | W168: 0.03148554087 | X168: 0.03148554087 | AA168: 25.42386696 | AD168: 8.169177289e-07 | AE168: 0 | AF168: 0 | AG168: 20.38308755
A169: 142 | B169: 0.1645422943 | C169: 0.8227114716 | D169: =IF('Calculation Sheet'!$D$59="YES",(Vcc_max-C169)*ILIM_FINAL_TOL,(Vcc_max-C169)*($AE$13+IF(C169>=$AE$8,$AE$7,0)+(IF(C169>=$AE$6,C169,0)/$AE$5)+IF(C169>$AE$10,($AE$9/C169),0))) -> 5.58865346 | E169: 5.613200676 | F169: 1.02409407 | G169: 0.06927396739 | H169: 7.495123471e-05 | I169: 0.001509457363 | J169: 0.001691283993 | K169: 4.553057312 | L169: 0.01792729897 | M169: 0.004630514809 | N169: 0.000358065517 | O169: 1.197511868e-05 | P169: 7.649720405e-06 | Q169: 45.84986585 | R169: 0.205647192 | S169: 0.2056456324 | T169: 0.2083230943 | U169: 0.03170029395 | V169: 0.03170029395 | W169: 0.03170029395 | X169: 0.03170029395 | AA169: 25.42674114 | AD169: 8.227114716e-07 | AE169: 0 | AF169: 0 | AG169: 20.42312471
A170: 143 | B170: 0.1657010429 | C170: 0.8285052144 | D170: =IF('Calculation Sheet'!$D$59="YES",(Vcc_max-C170)*ILIM_FINAL_TOL,(Vcc_max-C170)*($AE$13+IF(C170>=$AE$8,$AE$7,0)+(IF(C170>=$AE$6,C170,0)/$AE$5)+IF(C170>$AE$10,($AE$9/C170),0))) -> 5.585756648 | E170: 5.610303878 | F170: 1.030347658 | G170: 0.06974135973 | H170: 7.546019405e-05 | I170: 0.001519706037 | J170: 0.001690407791 | K170: 4.564469018 | L170: 0.0180488343 | M170: 0.004661945286 | N170: 0.0003604969116 | O170: 1.205643667e-05 | P170: 7.701666458e-06 | Q170: 45.89241076 | R170: 0.2070168379 | S170: 0.2070152682 | T170: 0.2097102043 | U170: 0.03191492686 | V170: 0.03191492686 | W170: 0.03191492686 | X170: 0.03191492686 | AA170: 25.42961347 | AD170: 8.285052144e-07 | AE170: 0 | AF170: 0 | AG170: 20.46279729
A171: 144 | B171: 0.1668597914 | C171: 0.8342989571 | D171: =IF('Calculation Sheet'!$D$59="YES",(Vcc_max-C171)*ILIM_FINAL_TOL,(Vcc_max-C171)*($AE$13+IF(C171>=$AE$8,$AE$7,0)+(IF(C171>=$AE$6,C171,0)/$AE$5)+IF(C171>$AE$10,($AE$9/C171),0))) -> 5.582859837 | E171: 5.607407079 | F171: 1.036588711 | G171: 0.07020846719 | H171: 7.596888953e-05 | I171: 0.001529949378 | J171: 0.001689531588 | K171: 4.575723052 | L171: 0.01817030379 | M171: 0.00469335928 | N171: 0.0003629270448 | O171: 1.213771251e-05 | P171: 7.753585585e-06 | Q171: 45.93459289 | R171: 0.2083853983 | S171: 0.2083838184 | T171: 0.2110962098 | U171: 0.03212943958 | V171: 0.03212943958 | W171: 0.03212943958 | X171: 0.03212943958 | AA171: 25.43248396 | AD171: 8.342989571e-07 | AE171: 0 | AF171: 0 | AG171: 20.50210893
A172: 145 | B172: 0.16801854 | C172: 0.8400926999 | D172: =IF('Calculation Sheet'!$D$59="YES",(Vcc_max-C172)*ILIM_FINAL_TOL,(Vcc_max-C172)*($AE$13+IF(C172>=$AE$8,$AE$7,0)+(IF(C172>=$AE$6,C172,0)/$AE$5)+IF(C172>$AE$10,($AE$9/C172),0))) -> 5.579963025 | E172: 5.604510277 | F172: 1.042817244 | G172: 0.07067528978 | H172: 7.647732115e-05 | I172: 0.001540187387 | J172: 0.001688655386 | K172: 4.586821152 | L172: 0.01829170742 | M172: 0.004724756793 | N172: 0.0003653559166 | O172: 1.22189462e-05 | P172: 7.805477786e-06 | Q172: 45.97641583 | R172: 0.2097528735 | S172: 0.2097512834 | T172: 0.2124811112 | U172: 0.03234383213 | V172: 0.03234383213 | W172: 0.03234383213 | X172: 0.03234383213 | AA172: 25.4353526 | AD172: 8.400926999e-07 | AE172: 0 | AF172: 0 | AG172: 20.54106322
A173: 146 | B173: 0.1691772885 | C173: 0.8458864426 | D173: =IF('Calculation Sheet'!$D$59="YES",(Vcc_max-C173)*ILIM_FINAL_TOL,(Vcc_max-C173)*($AE$13+IF(C173>=$AE$8,$AE$7,0)+(IF(C173>=$AE$6,C173,0)/$AE$5)+IF(C173>$AE$10,($AE$9/C173),0))) -> 5.577066214 | E173: 5.601613475 | F173: 1.049033275 | G173: 0.07114182753 | H173: 7.69854889e-05 | I173: 0.001550420063 | J173: 0.001687779183 | K173: 4.597765035 | L173: 0.01841304521 | M173: 0.004756137824 | N173: 0.000367783527 | O173: 1.230013774e-05 | P173: 7.857343061e-06 | Q173: 46.01788314 | R173: 0.2111192636 | S173: 0.2111176634 | T173: 0.2138649087 | U173: 0.03255810452 | V173: 0.03255810452 | W173: 0.03255810452 | X173: 0.03255810452 | AA173: 25.4382194 | AD173: 8.458864426e-07 | AE173: 0 | AF173: 0 | AG173: 20.57966374
A174: 147 | B174: 0.1703360371 | C174: 0.8516801854 | D174: =IF('Calculation Sheet'!$D$59="YES",(Vcc_max-C174)*ILIM_FINAL_TOL,(Vcc_max-C174)*($AE$13+IF(C174>=$AE$8,$AE$7,0)+(IF(C174>=$AE$6,C174,0)/$AE$5)+IF(C174>$AE$10,($AE$9/C174),0))) -> 5.574169402 | E174: 5.598716672 | F174: 1.055236822 | G174: 0.07160808047 | H174: 7.749339279e-05 | I174: 0.001560647407 | J174: 0.00168690298 | K174: 4.608556401 | L174: 0.01853431715 | M174: 0.004787502374 | N174: 0.0003702098759 | O174: 1.238128712e-05 | P174: 7.909181409e-06 | Q174: 46.05899834 | R174: 0.212484569 | S174: 0.2124829586 | T174: 0.2152476026 | U174: 0.03277225674 | V174: 0.03277225674 | W174: 0.03277225674 | X174: 0.03277225674 | AA174: 25.44108435 | AD174: 8.516801854e-07 | AE174: 0 | AF174: 0 | AG174: 20.61791399
A175: 148 | B175: 0.1714947856 | C175: 0.8574739282 | D175: =IF('Calculation Sheet'!$D$59="YES",(Vcc_max-C175)*ILIM_FINAL_TOL,(Vcc_max-C175)*($AE$13+IF(C175>=$AE$8,$AE$7,0)+(IF(C175>=$AE$6,C175,0)/$AE$5)+IF(C175>$AE$10,($AE$9/C175),0))) -> 5.57127259 | E175: 5.595819868 | F175: 1.0614279 | G175: 0.07207404861 | H175: 7.800103282e-05 | I175: 0.001570869418 | J175: 0.001686026778 | K175: 4.619196931 | L175: 0.01865552325 | M175: 0.004818850441 | N175: 0.0003726349634 | O175: 1.246239436e-05 | P175: 7.960992832e-06 | Q175: 46.09976493 | R175: 0.21384879 | S175: 0.2138471695 | T175: 0.2166291932 | U175: 0.0329862888 | V175: 0.0329862888 | W175: 0.0329862888 | X175: 0.0329862888 | AA175: 25.44394745 | AD175: 8.574739282e-07 | AE175: 0 | AF175: 0 | AG175: 20.65581747
A176: 149 | B176: 0.1726535342 | C176: 0.8632676709 | D176: =IF('Calculation Sheet'!$D$59="YES",(Vcc_max-C176)*ILIM_FINAL_TOL,(Vcc_max-C176)*($AE$13+IF(C176>=$AE$8,$AE$7,0)+(IF(C176>=$AE$6,C176,0)/$AE$5)+IF(C176>$AE$10,($AE$9/C176),0))) -> 5.568375779 | E176: 5.592923062 | F176: 1.067606528 | G176: 0.07253973199 | H176: 7.850840898e-05 | I176: 0.001581086097 | J176: 0.001685150575 | K176: 4.629688287 | L176: 0.0187766635 | M176: 0.004850182027 | N176: 0.0003750587895 | O176: 1.254345944e-05 | P176: 8.012777329e-06 | Q176: 46.14018634 | R176: 0.2152119268 | S176: 0.2152102961 | T176: 0.2180096808 | U176: 0.03320020071 | V176: 0.03320020071 | W176: 0.03320020071 | X176: 0.03320020071 | AA176: 25.44680871 | AD176: 8.632676709e-07 | AE176: 0 | AF176: 0 | AG176: 20.69337763
A177: 150 | B177: 0.1738122827 | C177: 0.8690614137 | D177: =IF('Calculation Sheet'!$D$59="YES",(Vcc_max-C177)*ILIM_FINAL_TOL,(Vcc_max-C177)*($AE$13+IF(C177>=$AE$8,$AE$7,0)+(IF(C177>=$AE$6,C177,0)/$AE$5)+IF(C177>$AE$10,($AE$9/C177),0))) -> 5.565478967 | E177: 5.590026256 | F177: 1.073772723 | G177: 0.07300513062 | H177: 7.901552128e-05 | I177: 0.001591297443 | J177: 0.001684274372 | K177: 4.640032112 | L177: 0.01889773791 | M177: 0.004881497132 | N177: 0.0003774813542 | O177: 1.262448237e-05 | P177: 8.064534899e-06 | Q177: 46.18026599 | R177: 0.2165739797 | S177: 0.2165723389 | T177: 0.2193890657 | U177: 0.03341399248 | V177: 0.03341399248 | W177: 0.03341399248 | X177: 0.03341399248 | AA177: 25.44966813 | AD177: 8.690614137e-07 | AE177: 0 | AF177: 0 | AG177: 20.73059787
A178: 151 | B178: 0.1749710313 | C178: 0.8748551564 | D178: =IF('Calculation Sheet'!$D$59="YES",(Vcc_max-C178)*ILIM_FINAL_TOL,(Vcc_max-C178)*($AE$13+IF(C178>=$AE$8,$AE$7,0)+(IF(C178>=$AE$6,C178,0)/$AE$5)+IF(C178>$AE$10,($AE$9/C178),0))) -> 5.562582155 | E178: 5.58712945 | F178: 1.0799265 | G178: 0.07347024454 | H178: 7.952236972e-05 | I178: 0.001601503457 | J178: 0.00168339817 | K178: 4.650230033 | L178: 0.01901874648 | M178: 0.004912795755 | N178: 0.0003799026575 | O178: 1.270546315e-05 | P178: 8.116265543e-06 | Q178: 46.22000725 | R178: 0.2179349489 | S178: 0.2179332981 | T178: 0.2207673481 | U178: 0.03362766409 | V178: 0.03362766409 | W178: 0.03362766409 | X178: 0.03362766409 | AA178: 25.4525257 | AD178: 8.748551564e-07 | AE178: 0 | AF178: 0 | AG178: 20.76748156
A179: 152 | B179: 0.1761297798 | C179: 0.8806488992 | D179: =IF('Calculation Sheet'!$D$59="YES",(Vcc_max-C179)*ILIM_FINAL_TOL,(Vcc_max-C179)*($AE$13+IF(C179>=$AE$8,$AE$7,0)+(IF(C179>=$AE$6,C179,0)/$AE$5)+IF(C179>$AE$10,($AE$9/C179),0))) -> 5.559685343 | E179: 5.584232642 | F179: 1.086067878 | G179: 0.07393507376 | H179: 8.00289543e-05 | I179: 0.001611704138 | J179: 0.001682521967 | K179: 4.660283657 | L179: 0.01913968921 | M179: 0.004944077897 | N179: 0.0003823226993 | O179: 1.278640178e-05 | P179: 8.167969261e-06 | Q179: 46.25941346 | R179: 0.2192948349 | S179: 0.219293174 | T179: 0.2221445283 | U179: 0.03384121557 | V179: 0.03384121557 | W179: 0.03384121557 | X179: 0.03384121557 | AA179: 25.45538142 | AD179: 8.806488992e-07 | AE179: 0 | AF179: 0 | AG179: 20.80403204
A180: 153 | B180: 0.1772885284 | C180: 0.8864426419 | D180: =IF('Calculation Sheet'!$D$59="YES",(Vcc_max-C180)*ILIM_FINAL_TOL,(Vcc_max-C180)*($AE$13+IF(C180>=$AE$8,$AE$7,0)+(IF(C180>=$AE$6,C180,0)/$AE$5)+IF(C180>$AE$10,($AE$9/C180),0))) -> 5.556788531 | E180: 5.581335834 | F180: 1.092196874 | G180: 0.07439961831 | H180: 8.053527501e-05 | I180: 0.001621899487 | J180: 0.001681645764 | K180: 4.670194575 | L180: 0.01926056611 | M180: 0.004975343558 | N180: 0.0003847414797 | O180: 1.286729826e-05 | P180: 8.219646053e-06 | Q180: 46.2984879 | R180: 0.2206536377 | S180: 0.2206519667 | T180: 0.2235206067 | U180: 0.03405464691 | V180: 0.03405464691 | W180: 0.03405464691 | X180: 0.03405464691 | AA180: 25.4582353 | AD180: 8.864426419e-07 | AE180: 0 | AF180: 0 | AG180: 20.8402526
A181: 154 | B181: 0.1784472769 | C181: 0.8922363847 | D181: =IF('Calculation Sheet'!$D$59="YES",(Vcc_max-C181)*ILIM_FINAL_TOL,(Vcc_max-C181)*($AE$13+IF(C181>=$AE$8,$AE$7,0)+(IF(C181>=$AE$6,C181,0)/$AE$5)+IF(C181>$AE$10,($AE$9/C181),0))) -> 5.553891718 | E181: 5.578439026 | F181: 1.098313504 | G181: 0.07486387821 | H181: 8.104133186e-05 | I181: 0.001632089504 | J181: 0.001680769561 | K181: 4.679964358 | L181: 0.01938137717 | M181: 0.005006592737 | N181: 0.0003871589988 | O181: 1.294815258e-05 | P181: 8.271295918e-06 | Q181: 46.33723385 | R181: 0.2220113578 | S181: 0.2220096767 | T181: 0.2248955834 | U181: 0.03426795812 | V181: 0.03426795812 | W181: 0.03426795812 | X181: 0.03426795812 | AA181: 25.46108733 | AD181: 8.922363847e-07 | AE181: 0 | AF181: 0 | AG181: 20.87614652
A182: 155 | B182: 0.1796060255 | C182: 0.8980301275 | D182: =IF('Calculation Sheet'!$D$59="YES",(Vcc_max-C182)*ILIM_FINAL_TOL,(Vcc_max-C182)*($AE$13+IF(C182>=$AE$8,$AE$7,0)+(IF(C182>=$AE$6,C182,0)/$AE$5)+IF(C182>$AE$10,($AE$9/C182),0))) -> 5.550994906 | E182: 5.575542217 | F182: 1.104417785 | G182: 0.07532785349 | H182: 8.154712485e-05 | I182: 0.001642274188 | J182: 0.001679893359 | K182: 4.689594562 | L182: 0.01950212239 | M182: 0.005037825436 | N182: 0.0003895752563 | O182: 1.302896476e-05 | P182: 8.322918858e-06 | Q182: 46.37565454 | R182: 0.2233679953 | S182: 0.2233663042 | T182: 0.2262694588 | U182: 0.0344811492 | V182: 0.0344811492 | W182: 0.0344811492 | X182: 0.0344811492 | AA182: 25.46393753 | AD182: 8.980301275e-07 | AE182: 0 | AF182: 0 | AG182: 20.91171701
A183: 156 | B183: 0.180764774 | C183: 0.9038238702 | D183: =IF('Calculation Sheet'!$D$59="YES",(Vcc_max-C183)*ILIM_FINAL_TOL,(Vcc_max-C183)*($AE$13+IF(C183>=$AE$8,$AE$7,0)+(IF(C183>=$AE$6,C183,0)/$AE$5)+IF(C183>$AE$10,($AE$9/C183),0))) -> 5.548098094 | E183: 5.572645408 | F183: 1.110509734 | G183: 0.07579154418 | H183: 8.205265397e-05 | I183: 0.00165245354 | J183: 0.001679017156 | K183: 4.699086725 | L183: 0.01962280178 | M183: 0.005069041653 | N183: 0.0003919902525 | O183: 1.310973478e-05 | P183: 8.374514872e-06 | Q183: 46.41375315 | R183: 0.2247235506 | S183: 0.2247218495 | T183: 0.2276422332 | U183: 0.03469422016 | V183: 0.03469422016 | W183: 0.03469422016 | X183: 0.03469422016 | AA183: 25.46678587 | AD183: 9.038238702e-07 | AE183: 0 | AF183: 0 | AG183: 20.94696728
A184: 157 | B184: 0.1819235226 | C184: 0.909617613 | D184: =IF('Calculation Sheet'!$D$59="YES",(Vcc_max-C184)*ILIM_FINAL_TOL,(Vcc_max-C184)*($AE$13+IF(C184>=$AE$8,$AE$7,0)+(IF(C184>=$AE$6,C184,0)/$AE$5)+IF(C184>$AE$10,($AE$9/C184),0))) -> 5.545201282 | E184: 5.569748598 | F184: 1.116589369 | G184: 0.07625495029 | H184: 8.255791924e-05 | I184: 0.001662627559 | J184: 0.001678140953 | K184: 4.708442368 | L184: 0.01974341533 | M184: 0.00510024139 | N184: 0.0003944039873 | O184: 1.319046265e-05 | P184: 8.426083959e-06 | Q184: 46.45153285 | R184: 0.226078024 | S184: 0.2260763128 | T184: 0.2290139069 | U184: 0.03490717101 | V184: 0.03490717101 | W184: 0.03490717101 | X184: 0.03490717101 | AA184: 25.46963238 | AD184: 9.09617613e-07 | AE184: 0 | AF184: 0 | AG184: 20.98190047
A185: 158 | B185: 0.1830822711 | C185: 0.9154113557 | D185: =IF('Calculation Sheet'!$D$59="YES",(Vcc_max-C185)*ILIM_FINAL_TOL,(Vcc_max-C185)*($AE$13+IF(C185>=$AE$8,$AE$7,0)+(IF(C185>=$AE$6,C185,0)/$AE$5)+IF(C185>$AE$10,($AE$9/C185),0))) -> 5.542304469 | E185: 5.566851789 | F185: 1.122656705 | G185: 0.07671807184 | H185: 8.306292064e-05 | I185: 0.001672796246 | J185: 0.00167726475 | K185: 4.717662996 | L185: 0.01986396306 | M185: 0.005131424646 | N185: 0.0003968164606 | O185: 1.327114837e-05 | P185: 8.477626121e-06 | Q185: 46.48899676 | R185: 0.2274314156 | S185: 0.2274296944 | T185: 0.2303844801 | U185: 0.03512000174 | V185: 0.03512000174 | W185: 0.03512000174 | X185: 0.03512000174 | AA185: 25.47247704 | AD185: 9.154113557e-07 | AE185: 0 | AF185: 0 | AG185: 21.01651972
A186: 159 | B186: 0.1842410197 | C186: 0.9212050985 | D186: =IF('Calculation Sheet'!$D$59="YES",(Vcc_max-C186)*ILIM_FINAL_TOL,(Vcc_max-C186)*($AE$13+IF(C186>=$AE$8,$AE$7,0)+(IF(C186>=$AE$6,C186,0)/$AE$5)+IF(C186>$AE$10,($AE$9/C186),0))) -> 5.539407657 | E186: 5.563954978 | F186: 1.128711761 | G186: 0.07718090888 | H186: 8.356765817e-05 | I186: 0.001682959601 | J186: 0.001676388547 | K186: 4.726750097 | L186: 0.01998444496 | M186: 0.005162591422 | N186: 0.0003992276726 | O186: 1.335179194e-05 | P186: 8.529141356e-06 | Q186: 46.52614796 | R186: 0.2287837258 | S186: 0.2287819947 | T186: 0.2317539531 | U186: 0.03533271237 | V186: 0.03533271237 | W186: 0.03533271237 | X186: 0.03533271237 | AA186: 25.47531986 | AD186: 9.212050985e-07 | AE186: 0 | AF186: 0 | AG186: 21.0508281
A187: 160 | B187: 0.1853997683 | C187: 0.9269988413 | D187: =IF('Calculation Sheet'!$D$59="YES",(Vcc_max-C187)*ILIM_FINAL_TOL,(Vcc_max-C187)*($AE$13+IF(C187>=$AE$8,$AE$7,0)+(IF(C187>=$AE$6,C187,0)/$AE$5)+IF(C187>$AE$10,($AE$9/C187),0))) -> 5.536510844 | E187: 5.561058168 | F187: 1.134754552 | G187: 0.07764346141 | H187: 8.407213185e-05 | I187: 0.001693117623 | J187: 0.001675512344 | K187: 4.735705141 | L187: 0.02010486103 | M187: 0.005193741717 | N187: 0.0004016376231 | O187: 1.343239336e-05 | P187: 8.580629665e-06 | Q187: 46.56298952 | R187: 0.2301349549 | S187: 0.2301332138 | T187: 0.2331223262 | U187: 0.03554530289 | V187: 0.03554530289 | W187: 0.03554530289 | X187: 0.03554530289 | AA187: 25.47816084 | AD187: 9.269988413e-07 | AE187: 0 | AF187: 0 | AG187: 21.08482869
A188: 161 | B188: 0.1865585168 | C188: 0.932792584 | D188: =IF('Calculation Sheet'!$D$59="YES",(Vcc_max-C188)*ILIM_FINAL_TOL,(Vcc_max-C188)*($AE$13+IF(C188>=$AE$8,$AE$7,0)+(IF(C188>=$AE$6,C188,0)/$AE$5)+IF(C188>$AE$10,($AE$9/C188),0))) -> 5.533614031 | E188: 5.558161357 | F188: 1.140785095 | G188: 0.07810572946 | H188: 8.457634166e-05 | I188: 0.001703270313 | J188: 0.001674636141 | K188: 4.744529584 | L188: 0.02022521127 | M188: 0.005224875531 | N188: 0.0004040463122 | O188: 1.351295262e-05 | P188: 8.632091047e-06 | Q188: 46.59952446 | R188: 0.2314851031 | S188: 0.231483352 | T188: 0.2344895997 | U188: 0.03575777332 | V188: 0.03575777332 | W188: 0.03575777332 | X188: 0.03575777332 | AA188: 25.48099997 | AD188: 9.32792584e-07 | AE188: 0 | AF188: 0 | AG188: 21.11852449
A189: 162 | B189: 0.1877172654 | C189: 0.9385863268 | D189: =IF('Calculation Sheet'!$D$59="YES",(Vcc_max-C189)*ILIM_FINAL_TOL,(Vcc_max-C189)*($AE$13+IF(C189>=$AE$8,$AE$7,0)+(IF(C189>=$AE$6,C189,0)/$AE$5)+IF(C189>$AE$10,($AE$9/C189),0))) -> 5.530717219 | E189: 5.555264546 | F189: 1.146803408 | G189: 0.07856771306 | H189: 8.508028761e-05 | I189: 0.001713417671 | J189: 0.001673759938 | K189: 4.753224865 | L189: 0.02034549569 | M189: 0.005255992865 | N189: 0.0004064537399 | O189: 1.359346974e-05 | P189: 8.683525504e-06 | Q189: 46.63575576 | R189: 0.2328341708 | S189: 0.2328324096 | T189: 0.2358557739 | U189: 0.03597012365 | V189: 0.03597012365 | W189: 0.03597012365 | X189: 0.03597012365 | AA189: 25.48383726 | AD189: 9.385863268e-07 | AE189: 0 | AF189: 0 | AG189: 21.1519185
A190: 163 | B190: 0.1888760139 | C190: 0.9443800695 | D190: =IF('Calculation Sheet'!$D$59="YES",(Vcc_max-C190)*ILIM_FINAL_TOL,(Vcc_max-C190)*($AE$13+IF(C190>=$AE$8,$AE$7,0)+(IF(C190>=$AE$6,C190,0)/$AE$5)+IF(C190>$AE$10,($AE$9/C190),0))) -> 5.527820406 | E190: 5.552367735 | F190: 1.152809506 | G190: 0.07902941223 | H190: 8.55839697e-05 | I190: 0.001723559696 | J190: 0.001672883735 | K190: 4.761792408 | L190: 0.02046571429 | M190: 0.005287093719 | N190: 0.0004088599061 | O190: 1.36739447e-05 | P190: 8.734933035e-06 | Q190: 46.67168639 | R190: 0.2341821581 | S190: 0.234180387 | T190: 0.237220849 | U190: 0.03618235389 | V190: 0.03618235389 | W190: 0.03618235389 | X190: 0.03618235389 | AA190: 25.48667271 | AD190: 9.443800695e-07 | AE190: 0 | AF190: 0 | AG190: 21.18501368
A191: 164 | B191: 0.1900347625 | C191: 0.9501738123 | D191: =IF('Calculation Sheet'!$D$59="YES",(Vcc_max-C191)*ILIM_FINAL_TOL,(Vcc_max-C191)*($AE$13+IF(C191>=$AE$8,$AE$7,0)+(IF(C191>=$AE$6,C191,0)/$AE$5)+IF(C191>$AE$10,($AE$9/C191),0))) -> 5.524923593 | E191: 5.549470924 | F191: 1.158803408 | G191: 0.07949082699 | H191: 8.608738792e-05 | I191: 0.001733696389 | J191: 0.001672007532 | K191: 4.77023362 | L191: 0.02058586706 | M191: 0.005318178092 | N191: 0.000411264811 | O191: 1.375437751e-05 | P191: 8.786313639e-06 | Q191: 46.70731928 | R191: 0.2355290653 | S191: 0.2355272843 | T191: 0.2385848254 | U191: 0.03639446405 | V191: 0.03639446405 | W191: 0.03639446405 | X191: 0.03639446405 | AA191: 25.48950632 | AD191: 9.501738123e-07 | AE191: 0 | AF191: 0 | AG191: 21.21781296
A192: 165 | B192: 0.191193511 | C192: 0.955967555 | D192: =IF('Calculation Sheet'!$D$59="YES",(Vcc_max-C192)*ILIM_FINAL_TOL,(Vcc_max-C192)*($AE$13+IF(C192>=$AE$8,$AE$7,0)+(IF(C192>=$AE$6,C192,0)/$AE$5)+IF(C192>$AE$10,($AE$9/C192),0))) -> 5.52202678 | E192: 5.546574112 | F192: 1.164785129 | G192: 0.07995195737 | H192: 8.659054229e-05 | I192: 0.00174382775 | J192: 0.001671131329 | K192: 4.778549893 | L192: 0.02070595401 | M192: 0.005349245986 | N192: 0.0004136684544 | O192: 1.383476817e-05 | P192: 8.837667318e-06 | Q192: 46.7426573 | R192: 0.2368748928 | S192: 0.2368731019 | T192: 0.2399477033 | U192: 0.03660645413 | V192: 0.03660645413 | W192: 0.03660645413 | X192: 0.03660645413 | AA192: 25.49233808 | AD192: 9.55967555e-07 | AE192: 0 | AF192: 0 | AG192: 21.25031922
A193: 166 | B193: 0.1923522596 | C193: 0.9617612978 | D193: =IF('Calculation Sheet'!$D$59="YES",(Vcc_max-C193)*ILIM_FINAL_TOL,(Vcc_max-C193)*($AE$13+IF(C193>=$AE$8,$AE$7,0)+(IF(C193>=$AE$6,C193,0)/$AE$5)+IF(C193>$AE$10,($AE$9/C193),0))) -> 5.519129967 | E193: 5.5436773 | F193: 1.170754686 | G193: 0.0804128034 | H193: 8.709343279e-05 | I193: 0.001753953778 | J193: 0.001670255126 | K193: 4.786742604 | L193: 0.02082597515 | M193: 0.005380297399 | N193: 0.0004160708365 | O193: 1.391511668e-05 | P193: 8.88899407e-06 | Q193: 46.77770334 | R193: 0.2382196408 | S193: 0.2382178399 | T193: 0.241309483 | U193: 0.03681832413 | V193: 0.03681832413 | W193: 0.03681832413 | X193: 0.03681832413 | AA193: 25.49516801 | AD193: 9.617612978e-07 | AE193: 0 | AF193: 0 | AG193: 21.28253533
A194: 167 | B194: 0.1935110081 | C194: 0.9675550406 | D194: =IF('Calculation Sheet'!$D$59="YES",(Vcc_max-C194)*ILIM_FINAL_TOL,(Vcc_max-C194)*($AE$13+IF(C194>=$AE$8,$AE$7,0)+(IF(C194>=$AE$6,C194,0)/$AE$5)+IF(C194>$AE$10,($AE$9/C194),0))) -> 5.516233154 | E194: 5.540780489 | F194: 1.176712095 | G194: 0.08087336509 | H194: 8.759605942e-05 | I194: 0.001764074474 | J194: 0.001669378923 | K194: 4.794813114 | L194: 0.02094593046 | M194: 0.005411332333 | N194: 0.0004184719571 | O194: 1.399542303e-05 | P194: 8.940293895e-06 | Q194: 46.81246022 | R194: 0.2395633096 | S194: 0.2395614988 | T194: 0.2426701647 | U194: 0.03703007407 | V194: 0.03703007407 | W194: 0.03703007407 | X194: 0.03703007407 | AA194: 25.49799609 | AD194: 9.675550406e-07 | AE194: 0 | AF194: 0 | AG194: 21.31446412
A195: 168 | B195: 0.1946697567 | C195: 0.9733487833 | D195: =IF('Calculation Sheet'!$D$59="YES",(Vcc_max-C195)*ILIM_FINAL_TOL,(Vcc_max-C195)*($AE$13+IF(C195>=$AE$8,$AE$7,0)+(IF(C195>=$AE$6,C195,0)/$AE$5)+IF(C195>$AE$10,($AE$9/C195),0))) -> 5.513336341 | E195: 5.537883677 | F195: 1.182657375 | G195: 0.08133364247 | H195: 8.80984222e-05 | I195: 0.001774189838 | J195: 0.00166850272 | K195: 4.80276277 | L195: 0.02106581996 | M195: 0.005442350787 | N195: 0.0004208718163 | O195: 1.407568724e-05 | P195: 8.991566795e-06 | Q195: 46.84693073 | R195: 0.2409058995 | S195: 0.2409040787 | T195: 0.2440297489 | U195: 0.03724170393 | V195: 0.03724170393 | W195: 0.03724170393 | X195: 0.03724170393 | AA195: 25.50082234 | AD195: 9.733487833e-07 | AE195: 0 | AF195: 0 | AG195: 21.34610839
A196: 169 | B196: 0.1958285052 | C196: 0.9791425261 | D196: =IF('Calculation Sheet'!$D$59="YES",(Vcc_max-C196)*ILIM_FINAL_TOL,(Vcc_max-C196)*($AE$13+IF(C196>=$AE$8,$AE$7,0)+(IF(C196>=$AE$6,C196,0)/$AE$5)+IF(C196>$AE$10,($AE$9/C196),0))) -> 5.510439528 | E196: 5.534986865 | F196: 1.18859054 | G196: 0.08179363557 | H196: 8.860052111e-05 | I196: 0.00178429987 | J196: 0.001667626517 | K196: 4.810592904 | L196: 0.02118564365 | M196: 0.005473352761 | N196: 0.0004232704141 | O196: 1.415590929e-05 | P196: 9.042812769e-06 | Q196: 46.88111766 | R196: 0.2422474107 | S196: 0.24224558 | T196: 0.2453882357 | U196: 0.03745321374 | V196: 0.03745321374 | W196: 0.03745321374 | X196: 0.03745321374 | AA196: 25.50364674 | AD196: 9.791425261e-07 | AE196: 0 | AF196: 0 | AG196: 21.37747092
A197: 170 | B197: 0.1969872538 | C197: 0.9849362688 | D197: =IF('Calculation Sheet'!$D$59="YES",(Vcc_max-C197)*ILIM_FINAL_TOL,(Vcc_max-C197)*($AE$13+IF(C197>=$AE$8,$AE$7,0)+(IF(C197>=$AE$6,C197,0)/$AE$5)+IF(C197>$AE$10,($AE$9/C197),0))) -> 5.507542715 | E197: 5.532090052 | F197: 1.194511608 | G197: 0.0822533444 | H197: 8.910235616e-05 | I197: 0.001794404569 | J197: 0.001666750314 | K197: 4.818304833 | L197: 0.02130540152 | M197: 0.005504338255 | N197: 0.0004256677505 | O197: 1.42360892e-05 | P197: 9.094031816e-06 | Q197: 46.91502373 | R197: 0.2435878434 | S197: 0.2435860029 | T197: 0.2467456254 | U197: 0.03766460349 | V197: 0.03766460349 | W197: 0.03766460349 | X197: 0.03766460349 | AA197: 25.5064693 | AD197: 9.849362688e-07 | AE197: 0 | AF197: 0 | AG197: 21.40855443
A198: 171 | B198: 0.1981460023 | C198: 0.9907300116 | D198: =IF('Calculation Sheet'!$D$59="YES",(Vcc_max-C198)*ILIM_FINAL_TOL,(Vcc_max-C198)*($AE$13+IF(C198>=$AE$8,$AE$7,0)+(IF(C198>=$AE$6,C198,0)/$AE$5)+IF(C198>$AE$10,($AE$9/C198),0))) -> 5.504645901 | E198: 5.52919324 | F198: 1.200420595 | G198: 0.082712769 | H198: 8.960392735e-05 | I198: 0.001804503936 | J198: 0.001665874111 | K198: 4.82589986 | L198: 0.02142509358 | M198: 0.00553530727 | N198: 0.0004280638255 | O198: 1.431622695e-05 | P198: 9.145223938e-06 | Q198: 46.94865167 | R198: 0.2449271981 | S198: 0.2449253477 | T198: 0.2481019184 | U198: 0.03787587319 | V198: 0.03787587319 | W198: 0.03787587319 | X198: 0.03787587319 | AA198: 25.50929003 | AD198: 9.907300116e-07 | AE198: 0 | AF198: 0 | AG198: 21.43936165
A199: 172 | B199: 0.1993047509 | C199: 0.9965237543 | D199: =IF('Calculation Sheet'!$D$59="YES",(Vcc_max-C199)*ILIM_FINAL_TOL,(Vcc_max-C199)*($AE$13+IF(C199>=$AE$8,$AE$7,0)+(IF(C199>=$AE$6,C199,0)/$AE$5)+IF(C199>$AE$10,($AE$9/C199),0))) -> 5.501749088 | E199: 5.526296427 | F199: 1.206317518 | G199: 0.08317190938 | H199: 9.010523468e-05 | I199: 0.001814597971 | J199: 0.001664997908 | K199: 4.833379272 | L199: 0.02154471983 | M199: 0.005566259806 | N199: 0.0004304586391 | O199: 1.439632255e-05 | P199: 9.196389134e-06 | Q199: 46.98200416 | R199: 0.2462654749 | S199: 0.2462636147 | T199: 0.2494571148 | U199: 0.03808702284 | V199: 0.03808702284 | W199: 0.03808702284 | X199: 0.03808702284 | AA199: 25.51210891 | AD199: 9.965237543e-07 | AE199: 0 | AF199: 0 | AG199: 21.46989525
A200: 173 | B200: 0.2004634994 | C200: 1.002317497 | D200: =IF('Calculation Sheet'!$D$59="YES",(Vcc_max-C200)*ILIM_FINAL_TOL,(Vcc_max-C200)*($AE$13+IF(C200>=$AE$8,$AE$7,0)+(IF(C200>=$AE$6,C200,0)/$AE$5)+IF(C200>$AE$10,($AE$9/C200),0))) -> 5.498852275 | E200: 5.523399615 | F200: 1.212202393 | G200: 0.08363076558 | H200: 9.060627814e-05 | I200: 0.001824686673 | J200: 0.001664121705 | K200: 4.840744344 | L200: 0.02166428027 | M200: 0.005597195862 | N200: 0.0004328521913 | O200: 1.447637599e-05 | P200: 9.247527403e-06 | Q200: 47.01508383 | R200: 0.2476026742 | S200: 0.2476008041 | T200: 0.2508112151 | U200: 0.03829805245 | V200: 0.03829805245 | W200: 0.03829805245 | X200: 0.03829805245 | AA200: 25.51492595 | AD200: 1.002317497e-06 | AE200: 0 | AF200: 0 | AG200: 21.50015788
A201: 174 | B201: 0.201622248 | C201: 1.00811124 | D201: =IF('Calculation Sheet'!$D$59="YES",(Vcc_max-C201)*ILIM_FINAL_TOL,(Vcc_max-C201)*($AE$13+IF(C201>=$AE$8,$AE$7,0)+(IF(C201>=$AE$6,C201,0)/$AE$5)+IF(C201>$AE$10,($AE$9/C201),0))) -> 5.495955461 | E201: 5.520502802 | F201: 1.218075237 | G201: 0.08408933761 | H201: 9.110705774e-05 | I201: 0.001834770044 | J201: 0.001663245501 | K201: 4.847996335 | L201: 0.02178377491 | M201: 0.005628115439 | N201: 0.000435244482 | O201: 1.455638729e-05 | P201: 9.298638745e-06 | Q201: 47.04789333 | R201: 0.2489387961 | S201: 0.2489369162 | T201: 0.2521642194 | U201: 0.03850896202 | V201: 0.03850896202 | W201: 0.03850896202 | X201: 0.03850896202 | AA201: 25.51774116 | AD201: 1.00811124e-06 | AE201: 0 | AF201: 0 | AG201: 21.53015217
A202: 175 | B202: 0.2027809965 | C202: 1.013904983 | D202: =IF('Calculation Sheet'!$D$59="YES",(Vcc_max-C202)*ILIM_FINAL_TOL,(Vcc_max-C202)*($AE$13+IF(C202>=$AE$8,$AE$7,0)+(IF(C202>=$AE$6,C202,0)/$AE$5)+IF(C202>$AE$10,($AE$9/C202),0))) -> 5.493058648 | E202: 5.517605989 | F202: 1.223936067 | G202: 0.0845476255 | H202: 9.160757348e-05 | I202: 0.001844848082 | J202: 0.001662369298 | K202: 4.855136492 | L202: 0.02190320373 | M202: 0.005659018536 | N202: 0.0004376355114 | O202: 1.463635643e-05 | P202: 9.349723162e-06 | Q202: 47.08043524 | R202: 0.250273841 | S202: 0.2502719512 | T202: 0.253516128 | U202: 0.03871975155 | V202: 0.03871975155 | W202: 0.03871975155 | X202: 0.03871975155 | AA202: 25.52055452 | AD202: 1.013904983e-06 | AE202: 0 | AF202: 0 | AG202: 21.55988072
... 1825 more rows

Sheet Res EIA Tables (hidden)
A1: Standard EIA Decade Resistor Values
A3: 0.2 | B3: 0.1 | C3: 0.05 | D3: 0.02 | E3: 0.01 | F3: 0.5%, 0.25%, 0.1%
A4: E6 | B4: E12 | C4: E24 | D4: E48 | E4: E96 | F4: E192
A5: 100 | B5: 100 | C5: 100 | D5: 100 | E5: 100 | F5: 100
F6: 101
E7: 102 | F7: 102
F8: 104
D9: 105 | E9: 105 | F9: 105
F10: 106
E11: 107 | F11: 107
F12: 109
C13: 110 | D13: 110 | E13: 110 | F13: 110
F14: 111
E15: 113 | F15: 113
F16: 114
D17: 115 | E17: 115 | F17: 115
F18: 117
E19: 118 | F19: 118
F20: 120
B21: 120 | C21: 120 | D21: 121 | E21: 121 | F21: 121
F22: 123
E23: 124 | F23: 124
F24: 126
D25: 127 | E25: 127 | F25: 127
F26: 129
E27: 130 | F27: 130
F28: 132
C29: 130 | D29: 133 | E29: 133 | F29: 133
F30: 135
E31: 137 | F31: 137
F32: 138
D33: 140 | E33: 140 | F33: 140
F34: 142
E35: 143 | F35: 143
F36: 145
A37: 150 | B37: 150 | C37: 150 | D37: 147 | E37: 147 | F37: 147
F38: 149
E39: 150 | F39: 150
F40: 152
D41: 154 | E41: 154 | F41: 154
F42: 156
E43: 158 | F43: 158
F44: 160
C45: 160 | D45: 162 | E45: 162 | F45: 162
F46: 164
E47: 165 | F47: 165
F48: 167
D49: 169 | E49: 169 | F49: 169
F50: 172
E51: 174 | F51: 174
F52: 176
B53: 180 | C53: 180 | D53: 178 | E53: 178 | F53: 178
F54: 180
E55: 182 | F55: 182
F56: 184
D57: 187 | E57: 187 | F57: 187
F58: 189
E59: 191 | F59: 191
F60: 193
C61: 200 | D61: 196 | E61: 196 | F61: 196
F62: 198
E63: 200 | F63: 200
F64: 203
D65: 205 | E65: 205 | F65: 205
F66: 208
E67: 210 | F67: 210
F68: 213
A69: 220 | B69: 220 | C69: 220 | D69: 215 | E69: 215 | F69: 215
F70: 218
E71: 221 | F71: 221
F72: 223
D73: 226 | E73: 226 | F73: 226
F74: 229
E75: 232 | F75: 232
F76: 234
C77: 240 | D77: 237 | E77: 237 | F77: 237
F78: 240
E79: 243 | F79: 243
F80: 246
D81: 249 | E81: 249 | F81: 249
F82: 252
E83: 255 | F83: 255
F84: 258
B85: 270 | C85: 270 | D85: 261 | E85: 261 | F85: 261
F86: 264
E87: 267 | F87: 267
F88: 271
D89: 274 | E89: 274 | F89: 274
F90: 277
E91: 280 | F91: 280
F92: 284
C93: 300 | D93: 287 | E93: 287 | F93: 287
F94: 291
E95: 294 | F95: 294
F96: 298
D97: 301 | E97: 301 | F97: 301
F98: 305
E99: 309 | F99: 309
F100: 312
A101: 330 | B101: 330 | C101: 330 | D101: 316 | E101: 316 | F101: 316
F102: 320
E103: 324 | F103: 324
F104: 328
D105: 332 | E105: 332 | F105: 332
F106: 336
E107: 340 | F107: 340
F108: 344
C109: 360 | D109: 348 | E109: 348 | F109: 348
F110: 352
E111: 357 | F111: 357
F112: 361
D113: 365 | E113: 365 | F113: 365
F114: 370
E115: 374 | F115: 374
F116: 379
B117: 390 | C117: 390 | D117: 383 | E117: 383 | F117: 383
F118: 388
E119: 392 | F119: 392
F120: 397
D121: 402 | E121: 402 | F121: 402
F122: 407
E123: 412 | F123: 412
F124: 417
C125: 430 | D125: 422 | E125: 422 | F125: 422
F126: 427
E127: 432 | F127: 432
F128: 437
D129: 442 | E129: 442 | F129: 442
F130: 448
E131: 453 | F131: 453
F132: 459
A133: 470 | B133: 470 | C133: 470 | D133: 464 | E133: 464 | F133: 464
F134: 470
E135: 475 | F135: 475
F136: 481
D137: 487 | E137: 487 | F137: 487
F138: 493
E139: 499 | F139: 499
F140: 505
C141: 510 | D141: 511 | E141: 511 | F141: 511
F142: 517
E143: 523 | F143: 523
F144: 530
D145: 536 | E145: 536 | F145: 536
F146: 542
E147: 549 | F147: 549
F148: 556
B149: 560 | C149: 560 | D149: 562 | E149: 562 | F149: 562
F150: 569
E151: 576 | F151: 576
F152: 583
D153: 590 | E153: 590 | F153: 590
F154: 597
E155: 604 | F155: 604
F156: 612
C157: 620 | D157: 619 | E157: 619 | F157: 619
F158: 626
E159: 634 | F159: 634
F160: 642
D161: 649 | E161: 649 | F161: 649
F162: 657
E163: 665 | F163: 665
F164: 673
A165: 680 | B165: 680 | C165: 680 | D165: 681 | E165: 681 | F165: 681
F166: 690
E167: 698 | F167: 698
F168: 706
D169: 715 | E169: 715 | F169: 715
F170: 723
E171: 732 | F171: 732
F172: 741
C173: 750 | D173: 750 | E173: 750 | F173: 750
F174: 759
E175: 768 | F175: 768
F176: 777
D177: 787 | E177: 787 | F177: 787
F178: 796
E179: 806 | F179: 806
F180: 816
B181: 820 | C181: 820 | D181: 825 | E181: 825 | F181: 825
F182: 835
E183: 845 | F183: 845
F184: 856
D185: 866 | E185: 866 | F185: 866
F186: 876
E187: 887 | F187: 887
F188: 898
C189: 910 | D189: 909 | E189: 909 | F189: 909
F190: 920
E191: 931 | F191: 931
F192: 942
D193: 953 | E193: 953 | F193: 953
F194: 965
E195: 976 | F195: 976
F196: 988
A197: 1000 | B197: 1000 | C197: 1000 | D197: 1000 | E197: 1000 | F197: 1000 | G197: End Values Required for Processing

Sheet Cap Tables (hidden)
A1: Standard Capacitor Values
A3: pF | B3: nF | C3: µF | D3: mF
A4: 1 | B4: 1 | C4: 1 | D4: 1
A5: 1.1 | B5: 1.1
A6: 1.2 | B6: 1.2
A7: 1.3 | B7: 1.3
A8: 1.5 | B8: 1.5 | C8: 1.5 | D8: 1.5
A9: 1.6 | B9: 1.6
A10: 1.8 | B10: 1.8
A11: 2 | B11: 2
A12: 2.2 | B12: 2.2 | C12: 2.2 | D12: 2.2
A13: 2.4 | B13: 2.4
A14: 2.7 | B14: 2.7
A15: 3 | B15: 3
A16: 3.3 | B16: 3.3 | C16: 3.3 | D16: 3.3
A17: 3.6 | B17: 3.6 | C17: =C18 -> 4.7
A18: 3.9 | B18: 3.9 | C18: =C19 -> 4.7
A19: 4.3 | B19: 4.3 | C19: =C20 -> 4.7
A20: 4.7 | B20: 4.7 | C20: 4.7 | D20: 4.7
A21: 5.1 | B21: 5.1 | C21: =C22 -> 6.8
A22: 5.6 | B22: 5.6 | C22: =C23 -> 6.8
A23: 6.2 | B23: 6.2 | C23: =C24 -> 6.8
A24: 6.8 | B24: 6.8 | C24: 6.8 | D24: 6.8
A25: 7.5 | B25: 7.5 | C25: =C26 -> 10
A26: 8.2 | B26: 8.2 | C26: =C27 -> 10
A27: 9.1 | B27: 9.1 | C27: =C28 -> 10
A28: 10 | B28: 10 | C28: 10 | D28: 10
A29: 11 | B29: =B30 -> 15 | C29: 15
A30: 12 | B30: 15 | C30: 15
A31: 13 | B31: 15 | C31: 15
A32: 15 | B32: 15 | C32: 15
A33: 16 | B33: =B34 -> 22 | C33: 22
A34: 18 | B34: 22 | C34: 22
A35: 20 | B35: 22 | C35: 22
A36: 22 | B36: 22 | C36: 22
A37: 24 | B37: =B38 -> 33 | C37: 33
A38: 27 | B38: 33 | C38: 33
A39: 30 | B39: 33 | C39: 33
A40: 33 | B40: 33 | C40: 33
A41: 36 | B41: =B42 -> 47 | C41: 47
A42: 39 | B42: 47 | C42: 47
A43: 43 | B43: 47 | C43: 47
A44: 47 | B44: 47 | C44: 47
A45: 51 | B45: =B46 -> 68 | C45: 68
A46: 56 | B46: 68 | C46: 68
A47: 62 | B47: 68 | C47: 68
A48: 68 | B48: 68 | C48: 68
A49: 75 | B49: =B50 -> 100 | C49: 100
A50: 82 | B50: 100 | C50: 100
A51: 91 | B51: 100 | C51: 100
A52: 100 | B52: 100 | C52: 100
A53: 110 | B53: =B54 -> 150 | C53: 150
A54: 120 | B54: 150 | C54: 150
A55: 130 | B55: 150 | C55: 150
A56: 150 | B56: 150 | C56: 150
A57: 160 | B57: =B58 -> 220 | C57: 220
A58: 180 | B58: 220 | C58: 220
A59: 200 | B59: 220 | C59: 220
A60: 220 | B60: 220 | C60: 220
A61: 240 | B61: =B62 -> 330 | C61: 330
A62: 270 | B62: 330 | C62: 330
A63: 300 | B63: 330 | C63: 330
A64: 330 | B64: 330 | C64: 330
A65: 360 | B65: =B66 -> 470 | C65: 470
A66: 390 | B66: 470 | C66: 470
A67: 430 | B67: 470 | C67: 470
A68: 470 | B68: 470 | C68: 470
A69: 510 | B69: =B70 -> 680 | C69: 680
A70: 560 | B70: 680 | C70: 680
A71: 620 | B71: 680 | C71: 680
A72: 680 | B72: 680 | C72: 680
A73: 750 | B73: =B74 -> 1000 | C73: =C74 -> 1000
A74: 820 | B74: =B75 -> 1000 | C74: =C75 -> 1000
A75: 910 | B75: 1000 | C75: 1000
